Workbook

Sheet Index
F7: Setari
D16: Balanta venituri si cheltuieli | J16: Tranzactii
B17: Economii
D21: Raport Lunar
H22: Raport Anual

Sheet Setare fisier
A4: Setare informatii fisier
I5: Setare subcategorii cheltuieli
B6: Titulari | C6: Sold initial | E6: Categorii venituri | G6: Categorii cheltuieli | I6: Categorii cheltuieli | J6: Subcategorie cheltuieli
B7: Persoana 1 | C7: 500 | E7: Salariu | G7: Achizitii | I7: Achizitii | J7: Alte achizitii | K7: Sorteaza tabel subcatgorii dupa coloana Categorii cheltuieli!
B8: Persoana 2 | C8: 750 | E8: Alte venituri | G8: Asigurari | I8: Achizitii | J8: Electrocasnice
G9: Cheltuieli bancare | I9: Achizitii | J9: Electronice
G10: Cheltuieli casa | I10: Asigurari | J10: Alte asigurari
G11: Cheltuieli copil | I11: Asigurari | J11: Casa
G12: Cheltuieli exceptionale | I12: Asigurari | J12: Masina
G13: Cheltuieli vacanta | I13: Asigurari | J13: Pensie privata
G14: Divertisment | I14: Asigurari | J14: Sanatate
G15: Imprumuturi si economii | I15: Asigurari | J15: Viata
G16: Ingrijire personala | I16: Cheltuieli bancare | J16: Comisioane retrageri/OP
G17: Mancare si alte necesitati | I17: Cheltuieli bancare | J17: Taxe lunare
G18: Transport | I18: Cheltuieli casa | J18: Alte cheltuieli
I19: Cheltuieli casa | J19: Cablu si internet
I20: Cheltuieli casa | J20: Chirie
I21: Cheltuieli casa | J21: Curent
I22: Cheltuieli casa | J22: Gaz
I23: Cheltuieli casa | J23: Impozit casa
I24: Cheltuieli casa | J24: Intretinere
I25: Cheltuieli casa | J25: Telefon
I26: Cheltuieli copil | J26: Alte cheltuieli
I27: Cheltuieli copil | J27: Bona
I28: Cheltuieli copil | J28: Gradinita
I29: Cheltuieli copil | J29: Imbracaminte
I30: Cheltuieli copil | J30: Jucarii
I31: Cheltuieli copil | J31: Medical
I32: Cheltuieli exceptionale | J32: Alte cheltuieli exceptionale
I33: Cheltuieli exceptionale | J33: Cadou
I34: Cheltuieli vacanta | J34: Cazare
I35: Cheltuieli vacanta | J35: Cheltuieli diverse
I36: Cheltuieli vacanta | J36: Transport
I37: Divertisment | J37: Alte cheltuieli
I38: Divertisment | J38: Cinema
I39: Divertisment | J39: Iesiri in oras
I40: Divertisment | J40: Teatru
I41: Imprumuturi si economii | J41: Economisire
I42: Imprumuturi si economii | J42: Imprumuturi date
I43: Imprumuturi si economii | J43: Rate imprumuturi
I44: Ingrijire personala | J44: Alte cheltuieli
I45: Ingrijire personala | J45: Cosmetica
I46: Ingrijire personala | J46: Imbracaminte
I47: Ingrijire personala | J47: Medical
I48: Ingrijire personala | J48: Sala
I49: Mancare si alte necesitati | J49: Alte cumparaturi
I50: Mancare si alte necesitati | J50: Cumparaturi
I51: Transport | J51: Abonament RATB/Metrorex
I52: Transport | J52: Alte cheltuieli
I53: Transport | J53: Combustibil
I54: Transport | J54: Impozit masina

Sheet Economii
A4: ECONOMII
A6: Data: | B6: =TODAY() -> 2015-10-16
A8: Curs EUR: | B8: 4.45 | D8: Curs USD: | E8: 3.5
A9: Economii EUR actuale: | C9: =SUMIF(Table1[[#All],[Moneda]],"RON",Table1[[#All],[Suma]])/$B$8+SUMIF(Table1[[#All],[Moneda]],"EUR",Table1[[#All],[Suma]])+SUMIF(Table1[[#All],[Moneda]],"USD",Table1[[#All],[Suma]])*($E$8/$B$8) -> 3640.449438
A10: Economii EUR maturitate: | C10: =SUMIF(Table1[[#All],[Moneda]],"RON",Table1[[#All],[Valoare maturitate]])/$B$8+SUMIF(Table1[[#All],[Moneda]],"EUR",Table1[[#All],[Valoare maturitate]])+SUMIF(Table1[[#All],[Moneda]],"USD",Table1[[#All],[Valoare maturitate]])*($E$8/$B$8) -> 3652.067865
A11: Banca | B11: Moneda | C11: Suma | D11: Dobanda (% / an) | E11: Perioada (luni) | F11: Titular | G11: Valoare maturitate | H11: Valoare dobanda | I11: Data maturitate | J11: Valoare Impozit
A12: Alpha | B12: RON | C12: 10000 | D12: 0.03 | E12: 2 | F12: Persoana 1 | G12: =Table1[[#This Row],[Suma]]+Table1[[#This Row],[Valoare dobanda]]-Table1[[#This Row],[Valoare Impozit]] -> 10042 | H12: =(Table1[[#This Row],[Suma]]*Table1[[#This Row],[Dobanda (% / an)]]/12)*Table1[[#This Row],[Perioada (luni)]] -> 50 | J12: =Table1[[#This Row],[Valoare dobanda]]*0.16 -> 8
A13: BCR | B13: EUR | C13: 1000 | D13: 0.014 | E13: 2 | F13: Persoana 2 | G13: =Table1[[#This Row],[Suma]]+Table1[[#This Row],[Valoare dobanda]]-Table1[[#This Row],[Valoare Impozit]] -> 1001.96 | H13: =(Table1[[#This Row],[Suma]]*Table1[[#This Row],[Dobanda (% / an)]]/12)*Table1[[#This Row],[Perioada (luni)]] -> 2.333333333 | J13: =Table1[[#This Row],[Valoare dobanda]]*0.16 -> 0.3733333333
A14: Raiffeisen | B14: USD | C14: 500 | D14: 0.008 | E14: 1 | F14: Persoana 2 | G14: =Table1[[#This Row],[Suma]]+Table1[[#This Row],[Valoare dobanda]]-Table1[[#This Row],[Valoare Impozit]] -> 500.28 | H14: =(Table1[[#This Row],[Suma]]*Table1[[#This Row],[Dobanda (% / an)]]/12)*Table1[[#This Row],[Perioada (luni)]] -> 0.3333333333 | J14: =Table1[[#This Row],[Valoare dobanda]]*0.16 -> 0.05333333333
A15: Total RON | C15: =SUMIF(Table1[Moneda],"RON",Table1[Suma]) -> 10000 | G15: =SUMIF(Table1[Moneda],"RON",Table1[Valoare maturitate]) -> 10042
A16: Total EUR | C16: =SUMIF(Table1[Moneda],"EUR",Table1[Suma])+(SUMIF(Table1[Moneda],"USD",Table1[Suma])*($E$8/$B$8)) -> 1393.258427 | G16: =SUMIF(Table1[Moneda],"EUR",Table1[Valoare maturitate])+(SUMIF(Table1[Moneda],"USD",Table1[Valoare maturitate])*($E$8/$B$8)) -> 1395.438652

Sheet Tranzactii
A4: Tranzactii venituri si cheltuieli
D6: Cheltuieli | H6: Venituri | K6: Balanta
D7: ▼ | H7: ▼ | K7: ▼
A9: Luna | B9: Data | C9: Titular | D9: Categorie | E9: Subcategorie | F9: Descriere | G9: Valoare | H9: Categorie Venit | I9: Descriere Venit | J9: Valoare Venit | K9: Persoana 1 | L9: Persoana 2
A10: =IF(B10="","",MONTH(B10)) -> 1 | B10: 2015-01-01 | C10: Persoana 1 | D10: Cheltuieli bancare | E10: Taxe lunare | G10: 3.5 | K10: =IF(B10="","",IF(Tranzactii!$C10=$K$9,VLOOKUP(K9,'Setare fisier'!$B$6:$C$26,2,0)-Tranzactii!$G10+Tranzactii!$J10,VLOOKUP(K9,'Setare fisier'!$B$6:$C$26,2,0))) -> 496.5 | L10: =IF(C10="","",IF(Tranzactii!$C10=$L$9,VLOOKUP(L9,'Setare fisier'!$B$6:$C$26,2,0)-Tranzactii!$G10+Tranzactii!$J10,VLOOKUP(L9,'Setare fisier'!$B$6:$C$26,2,0))) -> 750
A11: =IF(B11="","",MONTH(B11)) -> 1 | B11: 2015-01-04 | C11: Persoana 1 | D11: Divertisment | E11: Iesiri in oras | G11: 40 | K11: =IF(A11="","",IF(Tranzactii!$C11=$K$9,K10+J11-G11,K10)) -> 456.5 | L11: =IF(A11="","",IF(Tranzactii!$C11=$L$9,L10+J11-G11,L10)) -> 750
A12: 1 | B12: 2015-01-04 | C12: Persoana 2 | D12: Cheltuieli casa | E12: Gaz | G12: 270 | K12: =IF(A12="","",IF(Tranzactii!$C12=$K$9,K11+J12-G12,K11)) -> 456.5 | L12: =IF(A12="","",IF(Tranzactii!$C12=$L$9,L11+J12-G12,L11)) -> 480
A13: 1 | B13: 2015-01-04 | C13: Persoana 1 | H13: Salariu | J13: 2500 | K13: =IF(A13="","",IF(Tranzactii!$C13=$K$9,K12+J13-G13,K12)) -> 2956.5 | L13: =IF(A13="","",IF(Tranzactii!$C13=$L$9,L12+J13-G13,L12)) -> 480
A14: 1 | B14: 2015-01-05 | C14: Persoana 2 | D14: Cheltuieli bancare | E14: Taxe lunare | G14: 3 | H14: Salariu | J14: 2000 | K14: =IF(A14="","",IF(Tranzactii!$C14=$K$9,K13+J14-G14,K13)) -> 2956.5 | L14: =IF(A14="","",IF(Tranzactii!$C14=$L$9,L13+J14-G14,L13)) -> 2477
A15: 1 | B15: 2015-01-07 | C15: Persoana 2 | D15: Cheltuieli exceptionale | E15: Cadou | G15: 200 | K15: =IF(A15="","",IF(Tranzactii!$C15=$K$9,K14+J15-G15,K14)) -> 2956.5 | L15: =IF(A15="","",IF(Tranzactii!$C15=$L$9,L14+J15-G15,L14)) -> 2277
A16: 1 | B16: 2015-01-07 | C16: Persoana 2 | D16: Cheltuieli copil | E16: Imbracaminte | G16: 170 | K16: =IF(A16="","",IF(Tranzactii!$C16=$K$9,K15+J16-G16,K15)) -> 2956.5 | L16: =IF(A16="","",IF(Tranzactii!$C16=$L$9,L15+J16-G16,L15)) -> 2107
A17: 1 | B17: 2015-01-07 | C17: Persoana 1 | D17: Mancare si alte necesitati | E17: Cumparaturi | G17: 100 | K17: =IF(A17="","",IF(Tranzactii!$C17=$K$9,K16+J17-G17,K16)) -> 2856.5 | L17: =IF(A17="","",IF(Tranzactii!$C17=$L$9,L16+J17-G17,L16)) -> 2107
A18: 1 | B18: 2015-01-07 | C18: Persoana 1 | D18: Asigurari | E18: Pensie privata | G18: 65 | K18: =IF(A18="","",IF(Tranzactii!$C18=$K$9,K17+J18-G18,K17)) -> 2791.5 | L18: =IF(A18="","",IF(Tranzactii!$C18=$L$9,L17+J18-G18,L17)) -> 2107
A19: 1 | B19: 2015-01-07 | C19: Persoana 1 | D19: Cheltuieli bancare | E19: Comisioane retrageri/OP | G19: 2.51 | K19: =IF(A19="","",IF(Tranzactii!$C19=$K$9,K18+J19-G19,K18)) -> 2788.99 | L19: =IF(A19="","",IF(Tranzactii!$C19=$L$9,L18+J19-G19,L18)) -> 2107
A20: 1 | B20: 2015-01-08 | C20: Persoana 2 | D20: Mancare si alte necesitati | E20: Cumparaturi | G20: 250 | K20: =IF(A20="","",IF(Tranzactii!$C20=$K$9,K19+J20-G20,K19)) -> 2788.99 | L20: =IF(A20="","",IF(Tranzactii!$C20=$L$9,L19+J20-G20,L19)) -> 1857
A21: 1 | B21: 2015-01-10 | C21: Persoana 1 | D21: Mancare si alte necesitati | E21: Cumparaturi | G21: 75 | K21: =IF(A21="","",IF(Tranzactii!$C21=$K$9,K20+J21-G21,K20)) -> 2713.99 | L21: =IF(A21="","",IF(Tranzactii!$C21=$L$9,L20+J21-G21,L20)) -> 1857
A22: 1 | B22: 2015-01-10 | C22: Persoana 1 | D22: Mancare si alte necesitati | E22: Cumparaturi | G22: 25 | K22: =IF(A22="","",IF(Tranzactii!$C22=$K$9,K21+J22-G22,K21)) -> 2688.99 | L22: =IF(A22="","",IF(Tranzactii!$C22=$L$9,L21+J22-G22,L21)) -> 1857
A23: 1 | B23: 2015-01-10 | C23: Persoana 1 | D23: Cheltuieli exceptionale | E23: Cadou | G23: 20 | K23: =IF(A23="","",IF(Tranzactii!$C23=$K$9,K22+J23-G23,K22)) -> 2668.99 | L23: =IF(A23="","",IF(Tranzactii!$C23=$L$9,L22+J23-G23,L22)) -> 1857
A24: 1 | B24: 2015-01-11 | C24: Persoana 1 | D24: Cheltuieli bancare | E24: Comisioane retrageri/OP | G24: 0.4 | K24: =IF(A24="","",IF(Tranzactii!$C24=$K$9,K23+J24-G24,K23)) -> 2668.59 | L24: =IF(A24="","",IF(Tranzactii!$C24=$L$9,L23+J24-G24,L23)) -> 1857
A25: 1 | B25: 2015-01-11 | C25: Persoana 1 | D25: Mancare si alte necesitati | E25: Cumparaturi | G25: 40 | K25: =IF(A25="","",IF(Tranzactii!$C25=$K$9,K24+J25-G25,K24)) -> 2628.59 | L25: =IF(A25="","",IF(Tranzactii!$C25=$L$9,L24+J25-G25,L24)) -> 1857
A26: 1 | B26: 2015-01-14 | C26: Persoana 2 | D26: Ingrijire personala | E26: Imbracaminte | G26: 100 | K26: =IF(A26="","",IF(Tranzactii!$C26=$K$9,K25+J26-G26,K25)) -> 2628.59 | L26: =IF(A26="","",IF(Tranzactii!$C26=$L$9,L25+J26-G26,L25)) -> 1757
A27: 1 | B27: 2015-01-10 | C27: Persoana 1 | D27: Cheltuieli casa | E27: Telefon | G27: 65 | K27: =IF(A27="","",IF(Tranzactii!$C27=$K$9,K26+J27-G27,K26)) -> 2563.59 | L27: =IF(A27="","",IF(Tranzactii!$C27=$L$9,L26+J27-G27,L26)) -> 1757
A28: 1 | B28: 2015-01-14 | C28: Persoana 2 | D28: Divertisment | E28: Cinema | G28: 50 | K28: =IF(A28="","",IF(Tranzactii!$C28=$K$9,K27+J28-G28,K27)) -> 2563.59 | L28: =IF(A28="","",IF(Tranzactii!$C28=$L$9,L27+J28-G28,L27)) -> 1707
A29: 1 | B29: 2015-01-14 | C29: Persoana 1 | D29: Mancare si alte necesitati | E29: Cumparaturi | G29: 80 | K29: =IF(A29="","",IF(Tranzactii!$C29=$K$9,K28+J29-G29,K28)) -> 2483.59 | L29: =IF(A29="","",IF(Tranzactii!$C29=$L$9,L28+J29-G29,L28)) -> 1707
A30: 1 | B30: 2015-01-14 | C30: Persoana 1 | D30: Cheltuieli bancare | E30: Comisioane retrageri/OP | G30: 0.6 | K30: =IF(A30="","",IF(Tranzactii!$C30=$K$9,K29+J30-G30,K29)) -> 2482.99 | L30: =IF(A30="","",IF(Tranzactii!$C30=$L$9,L29+J30-G30,L29)) -> 1707
A31: 1 | B31: 2015-01-14 | C31: Persoana 1 | D31: Mancare si alte necesitati | E31: Cumparaturi | G31: 60 | K31: =IF(A31="","",IF(Tranzactii!$C31=$K$9,K30+J31-G31,K30)) -> 2422.99 | L31: =IF(A31="","",IF(Tranzactii!$C31=$L$9,L30+J31-G31,L30)) -> 1707
A32: 1 | B32: 2015-01-19 | C32: Persoana 1 | D32: Asigurari | E32: Sanatate | G32: 100 | K32: =IF(A32="","",IF(Tranzactii!$C32=$K$9,K31+J32-G32,K31)) -> 2322.99 | L32: =IF(A32="","",IF(Tranzactii!$C32=$L$9,L31+J32-G32,L31)) -> 1707
A33: 1 | B33: 2015-01-19 | C33: Persoana 1 | D33: Ingrijire personala | E33: Cosmetica | G33: 40 | K33: =IF(A33="","",IF(Tranzactii!$C33=$K$9,K32+J33-G33,K32)) -> 2282.99 | L33: =IF(A33="","",IF(Tranzactii!$C33=$L$9,L32+J33-G33,L32)) -> 1707
A34: 1 | B34: 2015-01-19 | C34: Persoana 1 | D34: Mancare si alte necesitati | E34: Cumparaturi | G34: 35 | K34: =IF(A34="","",IF(Tranzactii!$C34=$K$9,K33+J34-G34,K33)) -> 2247.99 | L34: =IF(A34="","",IF(Tranzactii!$C34=$L$9,L33+J34-G34,L33)) -> 1707
A35: 1 | B35: 2015-01-20 | C35: Persoana 2 | D35: Transport | E35: Combustibil | G35: 200 | K35: =IF(A35="","",IF(Tranzactii!$C35=$K$9,K34+J35-G35,K34)) -> 2247.99 | L35: =IF(A35="","",IF(Tranzactii!$C35=$L$9,L34+J35-G35,L34)) -> 1507
A36: 1 | B36: 2015-01-18 | C36: Persoana 1 | D36: Mancare si alte necesitati | E36: Cumparaturi | G36: 25 | K36: =IF(A36="","",IF(Tranzactii!$C36=$K$9,K35+J36-G36,K35)) -> 2222.99 | L36: =IF(A36="","",IF(Tranzactii!$C36=$L$9,L35+J36-G36,L35)) -> 1507
A37: 1 | B37: 2012-01-21 | C37: Persoana 2 | D37: Mancare si alte necesitati | E37: Cumparaturi | G37: 10 | K37: =IF(A37="","",IF(Tranzactii!$C37=$K$9,K36+J37-G37,K36)) -> 2222.99 | L37: =IF(A37="","",IF(Tranzactii!$C37=$L$9,L36+J37-G37,L36)) -> 1497
A38: 1 | B38: 2012-01-19 | C38: Persoana 1 | D38: Cheltuieli bancare | E38: Comisioane retrageri/OP | G38: 0.32 | K38: =IF(A38="","",IF(Tranzactii!$C38=$K$9,K37+J38-G38,K37)) -> 2222.67 | L38: =IF(A38="","",IF(Tranzactii!$C38=$L$9,L37+J38-G38,L37)) -> 1497
A39: 1 | B39: 2015-01-22 | C39: Persoana 1 | D39: Cheltuieli vacanta | E39: Transport | G39: 300 | K39: =IF(A39="","",IF(Tranzactii!$C39=$K$9,K38+J39-G39,K38)) -> 1922.67 | L39: =IF(A39="","",IF(Tranzactii!$C39=$L$9,L38+J39-G39,L38)) -> 1497
A40: 1 | B40: 2015-01-22 | C40: Persoana 1 | D40: Cheltuieli vacanta | E40: Cheltuieli diverse | G40: 150 | K40: =IF(A40="","",IF(Tranzactii!$C40=$K$9,K39+J40-G40,K39)) -> 1772.67 | L40: =IF(A40="","",IF(Tranzactii!$C40=$L$9,L39+J40-G40,L39)) -> 1497
A41: 1 | B41: 2012-01-21 | C41: Persoana 2 | D41: Ingrijire personala | E41: Medical | G41: 40 | K41: =IF(A41="","",IF(Tranzactii!$C41=$K$9,K40+J41-G41,K40)) -> 1772.67 | L41: =IF(A41="","",IF(Tranzactii!$C41=$L$9,L40+J41-G41,L40)) -> 1457
A42: 1 | B42: 2015-01-22 | C42: Persoana 1 | D42: Cheltuieli vacanta | E42: Cazare | G42: 1000 | K42: =IF(A42="","",IF(Tranzactii!$C42=$K$9,K41+J42-G42,K41)) -> 772.67 | L42: =IF(A42="","",IF(Tranzactii!$C42=$L$9,L41+J42-G42,L41)) -> 1457
A43: 1 | B43: 2015-01-23 | C43: Persoana 1 | D43: Cheltuieli bancare | E43: Comisioane retrageri/OP | G43: 5.3 | K43: =IF(A43="","",IF(Tranzactii!$C43=$K$9,K42+J43-G43,K42)) -> 767.37 | L43: =IF(A43="","",IF(Tranzactii!$C43=$L$9,L42+J43-G43,L42)) -> 1457
A44: 1 | B44: 2015-01-22 | C44: Persoana 1 | D44: Transport | E44: Alte cheltuieli | F44: spalat masina | G44: 25 | K44: =IF(A44="","",IF(Tranzactii!$C44=$K$9,K43+J44-G44,K43)) -> 742.37 | L44: =IF(A44="","",IF(Tranzactii!$C44=$L$9,L43+J44-G44,L43)) -> 1457
A45: 1 | B45: 2015-01-22 | C45: Persoana 1 | D45: Mancare si alte necesitati | E45: Cumparaturi | G45: 15 | K45: =IF(A45="","",IF(Tranzactii!$C45=$K$9,K44+J45-G45,K44)) -> 727.37 | L45: =IF(A45="","",IF(Tranzactii!$C45=$L$9,L44+J45-G45,L44)) -> 1457
A46: 1 | B46: 2015-01-22 | C46: Persoana 1 | D46: Cheltuieli bancare | E46: Comisioane retrageri/OP | G46: 0.2 | K46: =IF(A46="","",IF(Tranzactii!$C46=$K$9,K45+J46-G46,K45)) -> 727.17 | L46: =IF(A46="","",IF(Tranzactii!$C46=$L$9,L45+J46-G46,L45)) -> 1457
A47: 1 | B47: 2015-01-22 | C47: Persoana 1 | D47: Mancare si alte necesitati | E47: Cumparaturi | G47: 13 | K47: =IF(A47="","",IF(Tranzactii!$C47=$K$9,K46+J47-G47,K46)) -> 714.17 | L47: =IF(A47="","",IF(Tranzactii!$C47=$L$9,L46+J47-G47,L46)) -> 1457
A48: 1 | B48: 2015-01-23 | C48: Persoana 2 | D48: Divertisment | E48: Cinema | G48: 26 | K48: =IF(A48="","",IF(Tranzactii!$C48=$K$9,K47+J48-G48,K47)) -> 714.17 | L48: =IF(A48="","",IF(Tranzactii!$C48=$L$9,L47+J48-G48,L47)) -> 1431
A49: 1 | B49: 2015-01-25 | C49: Persoana 2 | D49: Transport | E49: Combustibil | G49: 95 | K49: =IF(A49="","",IF(Tranzactii!$C49=$K$9,K48+J49-G49,K48)) -> 714.17 | L49: =IF(A49="","",IF(Tranzactii!$C49=$L$9,L48+J49-G49,L48)) -> 1336
A50: 1 | B50: 2015-01-27 | C50: Persoana 1 | D50: Imprumuturi si economii | E50: Economisire | G50: 500 | K50: =IF(A50="","",IF(Tranzactii!$C50=$K$9,K49+J50-G50,K49)) -> 214.17 | L50: =IF(A50="","",IF(Tranzactii!$C50=$L$9,L49+J50-G50,L49)) -> 1336
A51: 1 | B51: 2015-01-30 | C51: Persoana 2 | D51: Imprumuturi si economii | E51: Rate imprumuturi | G51: 1000 | K51: =IF(A51="","",IF(Tranzactii!$C51=$K$9,K50+J51-G51,K50)) -> 214.17 | L51: =IF(A51="","",IF(Tranzactii!$C51=$L$9,L50+J51-G51,L50)) -> 336
A52: 2 | B52: 2015-02-01 | C52: Persoana 2 | D52: Cheltuieli casa | E52: Chirie | G52: 1000 | H52: Salariu | J52: 2000 | K52: =IF(A52="","",IF(Tranzactii!$C52=$K$9,K51+J52-G52,K51)) -> 214.17 | L52: =IF(A52="","",IF(Tranzactii!$C52=$L$9,L51+J52-G52,L51)) -> 1336
K53: =IF(A53="","",IF(Tranzactii!$C53=$K$9,K52+J53-G53,K52)) ->  | L53: =IF(A53="","",IF(Tranzactii!$C53=$L$9,L52+J53-G53,L52)) -> 
K54: =IF(A54="","",IF(Tranzactii!$C54=$K$9,K53+J54-G54,K53)) ->  | L54: =IF(A54="","",IF(Tranzactii!$C54=$L$9,L53+J54-G54,L53)) -> 
K55: =IF(A55="","",IF(Tranzactii!$C55=$K$9,K54+J55-G55,K54)) ->  | L55: =IF(A55="","",IF(Tranzactii!$C55=$L$9,L54+J55-G55,L54)) -> 
K56: =IF(A56="","",IF(Tranzactii!$C56=$K$9,K55+J56-G56,K55)) ->  | L56: =IF(A56="","",IF(Tranzactii!$C56=$L$9,L55+J56-G56,L55)) -> 
K57: =IF(A57="","",IF(Tranzactii!$C57=$K$9,K56+J57-G57,K56)) ->  | L57: =IF(A57="","",IF(Tranzactii!$C57=$L$9,L56+J57-G57,L56)) -> 
K58: =IF(A58="","",IF(Tranzactii!$C58=$K$9,K57+J58-G58,K57)) ->  | L58: =IF(A58="","",IF(Tranzactii!$C58=$L$9,L57+J58-G58,L57)) -> 
K59: =IF(A59="","",IF(Tranzactii!$C59=$K$9,K58+J59-G59,K58)) ->  | L59: =IF(A59="","",IF(Tranzactii!$C59=$L$9,L58+J59-G59,L58)) -> 
K60: =IF(A60="","",IF(Tranzactii!$C60=$K$9,K59+J60-G60,K59)) ->  | L60: =IF(A60="","",IF(Tranzactii!$C60=$L$9,L59+J60-G60,L59)) -> 
K61: =IF(A61="","",IF(Tranzactii!$C61=$K$9,K60+J61-G61,K60)) ->  | L61: =IF(A61="","",IF(Tranzactii!$C61=$L$9,L60+J61-G61,L60)) -> 
K62: =IF(A62="","",IF(Tranzactii!$C62=$K$9,K61+J62-G62,K61)) ->  | L62: =IF(A62="","",IF(Tranzactii!$C62=$L$9,L61+J62-G62,L61)) -> 
K63: =IF(A63="","",IF(Tranzactii!$C63=$K$9,K62+J63-G63,K62)) ->  | L63: =IF(A63="","",IF(Tranzactii!$C63=$L$9,L62+J63-G63,L62)) -> 
K64: =IF(A64="","",IF(Tranzactii!$C64=$K$9,K63+J64-G64,K63)) ->  | L64: =IF(A64="","",IF(Tranzactii!$C64=$L$9,L63+J64-G64,L63)) -> 
K65: =IF(A65="","",IF(Tranzactii!$C65=$K$9,K64+J65-G65,K64)) ->  | L65: =IF(A65="","",IF(Tranzactii!$C65=$L$9,L64+J65-G65,L64)) -> 
K66: =IF(A66="","",IF(Tranzactii!$C66=$K$9,K65+J66-G66,K65)) ->  | L66: =IF(A66="","",IF(Tranzactii!$C66=$L$9,L65+J66-G66,L65)) -> 
K67: =IF(A67="","",IF(Tranzactii!$C67=$K$9,K66+J67-G67,K66)) ->  | L67: =IF(A67="","",IF(Tranzactii!$C67=$L$9,L66+J67-G67,L66)) -> 
K68: =IF(A68="","",IF(Tranzactii!$C68=$K$9,K67+J68-G68,K67)) ->  | L68: =IF(A68="","",IF(Tranzactii!$C68=$L$9,L67+J68-G68,L67)) -> 
K69: =IF(A69="","",IF(Tranzactii!$C69=$K$9,K68+J69-G69,K68)) ->  | L69: =IF(A69="","",IF(Tranzactii!$C69=$L$9,L68+J69-G69,L68)) -> 
K70: =IF(A70="","",IF(Tranzactii!$C70=$K$9,K69+J70-G70,K69)) ->  | L70: =IF(A70="","",IF(Tranzactii!$C70=$L$9,L69+J70-G70,L69)) -> 
K71: =IF(A71="","",IF(Tranzactii!$C71=$K$9,K70+J71-G71,K70)) ->  | L71: =IF(A71="","",IF(Tranzactii!$C71=$L$9,L70+J71-G71,L70)) -> 
K72: =IF(A72="","",IF(Tranzactii!$C72=$K$9,K71+J72-G72,K71)) ->  | L72: =IF(A72="","",IF(Tranzactii!$C72=$L$9,L71+J72-G72,L71)) -> 
A73: =IF(B73="","",MONTH(B73)) ->  | K73: =IF(A73="","",IF(Tranzactii!$C73=$K$9,K72+J73-G73,K72)) ->  | L73: =IF(A73="","",IF(Tranzactii!$C73=$L$9,L72+J73-G73,L72)) -> 
K74: =IF(A74="","",IF(Tranzactii!$C74=$K$9,K73+J74-G74,K73)) ->  | L74: =IF(A74="","",IF(Tranzactii!$C74=$L$9,L73+J74-G74,L73)) -> 
K75: =IF(A75="","",IF(Tranzactii!$C75=$K$9,K74+J75-G75,K74)) ->  | L75: =IF(A75="","",IF(Tranzactii!$C75=$L$9,L74+J75-G75,L74)) -> 
K76: =IF(A76="","",IF(Tranzactii!$C76=$K$9,K75+J76-G76,K75)) ->  | L76: =IF(A76="","",IF(Tranzactii!$C76=$L$9,L75+J76-G76,L75)) -> 
K77: =IF(A77="","",IF(Tranzactii!$C77=$K$9,K76+J77-G77,K76)) ->  | L77: =IF(A77="","",IF(Tranzactii!$C77=$L$9,L76+J77-G77,L76)) -> 
K78: =IF(A78="","",IF(Tranzactii!$C78=$K$9,K77+J78-G78,K77)) ->  | L78: =IF(A78="","",IF(Tranzactii!$C78=$L$9,L77+J78-G78,L77)) -> 
K79: =IF(A79="","",IF(Tranzactii!$C79=$K$9,K78+J79-G79,K78)) ->  | L79: =IF(A79="","",IF(Tranzactii!$C79=$L$9,L78+J79-G79,L78)) -> 
K80: =IF(A80="","",IF(Tranzactii!$C80=$K$9,K79+J80-G80,K79)) ->  | L80: =IF(A80="","",IF(Tranzactii!$C80=$L$9,L79+J80-G80,L79)) -> 
K81: =IF(A81="","",IF(Tranzactii!$C81=$K$9,K80+J81-G81,K80)) ->  | L81: =IF(A81="","",IF(Tranzactii!$C81=$L$9,L80+J81-G81,L80)) -> 
K82: =IF(A82="","",IF(Tranzactii!$C82=$K$9,K81+J82-G82,K81)) ->  | L82: =IF(A82="","",IF(Tranzactii!$C82=$L$9,L81+J82-G82,L81)) -> 
K83: =IF(A83="","",IF(Tranzactii!$C83=$K$9,K82+J83-G83,K82)) ->  | L83: =IF(A83="","",IF(Tranzactii!$C83=$L$9,L82+J83-G83,L82)) -> 
K84: =IF(A84="","",IF(Tranzactii!$C84=$K$9,K83+J84-G84,K83)) ->  | L84: =IF(A84="","",IF(Tranzactii!$C84=$L$9,L83+J84-G84,L83)) -> 
K85: =IF(A85="","",IF(Tranzactii!$C85=$K$9,K84+J85-G85,K84)) ->  | L85: =IF(A85="","",IF(Tranzactii!$C85=$L$9,L84+J85-G85,L84)) -> 
K86: =IF(A86="","",IF(Tranzactii!$C86=$K$9,K85+J86-G86,K85)) ->  | L86: =IF(A86="","",IF(Tranzactii!$C86=$L$9,L85+J86-G86,L85)) -> 
K87: =IF(A87="","",IF(Tranzactii!$C87=$K$9,K86+J87-G87,K86)) ->  | L87: =IF(A87="","",IF(Tranzactii!$C87=$L$9,L86+J87-G87,L86)) -> 
K88: =IF(A88="","",IF(Tranzactii!$C88=$K$9,K87+J88-G88,K87)) ->  | L88: =IF(A88="","",IF(Tranzactii!$C88=$L$9,L87+J88-G88,L87)) -> 
K89: =IF(A89="","",IF(Tranzactii!$C89=$K$9,K88+J89-G89,K88)) ->  | L89: =IF(A89="","",IF(Tranzactii!$C89=$L$9,L88+J89-G89,L88)) -> 
K90: =IF(A90="","",IF(Tranzactii!$C90=$K$9,K89+J90-G90,K89)) ->  | L90: =IF(A90="","",IF(Tranzactii!$C90=$L$9,L89+J90-G90,L89)) -> 
K91: =IF(A91="","",IF(Tranzactii!$C91=$K$9,K90+J91-G91,K90)) ->  | L91: =IF(A91="","",IF(Tranzactii!$C91=$L$9,L90+J91-G91,L90)) -> 
K92: =IF(A92="","",IF(Tranzactii!$C92=$K$9,K91+J92-G92,K91)) ->  | L92: =IF(A92="","",IF(Tranzactii!$C92=$L$9,L91+J92-G92,L91)) -> 
K93: =IF(A93="","",IF(Tranzactii!$C93=$K$9,K92+J93-G93,K92)) ->  | L93: =IF(A93="","",IF(Tranzactii!$C93=$L$9,L92+J93-G93,L92)) -> 
K94: =IF(A94="","",IF(Tranzactii!$C94=$K$9,K93+J94-G94,K93)) ->  | L94: =IF(A94="","",IF(Tranzactii!$C94=$L$9,L93+J94-G94,L93)) -> 
K95: =IF(A95="","",IF(Tranzactii!$C95=$K$9,K94+J95-G95,K94)) ->  | L95: =IF(A95="","",IF(Tranzactii!$C95=$L$9,L94+J95-G95,L94)) -> 
K96: =IF(A96="","",IF(Tranzactii!$C96=$K$9,K95+J96-G96,K95)) ->  | L96: =IF(A96="","",IF(Tranzactii!$C96=$L$9,L95+J96-G96,L95)) -> 
K97: =IF(A97="","",IF(Tranzactii!$C97=$K$9,K96+J97-G97,K96)) ->  | L97: =IF(A97="","",IF(Tranzactii!$C97=$L$9,L96+J97-G97,L96)) -> 
K98: =IF(A98="","",IF(Tranzactii!$C98=$K$9,K97+J98-G98,K97)) ->  | L98: =IF(A98="","",IF(Tranzactii!$C98=$L$9,L97+J98-G98,L97)) -> 
K99: =IF(A99="","",IF(Tranzactii!$C99=$K$9,K98+J99-G99,K98)) ->  | L99: =IF(A99="","",IF(Tranzactii!$C99=$L$9,L98+J99-G99,L98)) -> 
K100: =IF(A100="","",IF(Tranzactii!$C100=$K$9,K99+J100-G100,K99)) ->  | L100: =IF(A100="","",IF(Tranzactii!$C100=$L$9,L99+J100-G100,L99)) -> 
K101: =IF(A101="","",IF(Tranzactii!$C101=$K$9,K100+J101-G101,K100)) ->  | L101: =IF(A101="","",IF(Tranzactii!$C101=$L$9,L100+J101-G101,L100)) -> 
K102: =IF(A102="","",IF(Tranzactii!$C102=$K$9,K101+J102-G102,K101)) ->  | L102: =IF(A102="","",IF(Tranzactii!$C102=$L$9,L101+J102-G102,L101)) -> 
K103: =IF(A103="","",IF(Tranzactii!$C103=$K$9,K102+J103-G103,K102)) ->  | L103: =IF(A103="","",IF(Tranzactii!$C103=$L$9,L102+J103-G103,L102)) -> 
K104: =IF(A104="","",IF(Tranzactii!$C104=$K$9,K103+J104-G104,K103)) ->  | L104: =IF(A104="","",IF(Tranzactii!$C104=$L$9,L103+J104-G104,L103)) -> 
K105: =IF(A105="","",IF(Tranzactii!$C105=$K$9,K104+J105-G105,K104)) ->  | L105: =IF(A105="","",IF(Tranzactii!$C105=$L$9,L104+J105-G105,L104)) -> 
K106: =IF(A106="","",IF(Tranzactii!$C106=$K$9,K105+J106-G106,K105)) ->  | L106: =IF(A106="","",IF(Tranzactii!$C106=$L$9,L105+J106-G106,L105)) -> 
K107: =IF(A107="","",IF(Tranzactii!$C107=$K$9,K106+J107-G107,K106)) ->  | L107: =IF(A107="","",IF(Tranzactii!$C107=$L$9,L106+J107-G107,L106)) -> 
K108: =IF(A108="","",IF(Tranzactii!$C108=$K$9,K107+J108-G108,K107)) ->  | L108: =IF(A108="","",IF(Tranzactii!$C108=$L$9,L107+J108-G108,L107)) -> 
K109: =IF(A109="","",IF(Tranzactii!$C109=$K$9,K108+J109-G109,K108)) ->  | L109: =IF(A109="","",IF(Tranzactii!$C109=$L$9,L108+J109-G109,L108)) -> 
K110: =IF(A110="","",IF(Tranzactii!$C110=$K$9,K109+J110-G110,K109)) ->  | L110: =IF(A110="","",IF(Tranzactii!$C110=$L$9,L109+J110-G110,L109)) -> 
K111: =IF(A111="","",IF(Tranzactii!$C111=$K$9,K110+J111-G111,K110)) ->  | L111: =IF(A111="","",IF(Tranzactii!$C111=$L$9,L110+J111-G111,L110)) -> 
K112: =IF(A112="","",IF(Tranzactii!$C112=$K$9,K111+J112-G112,K111)) ->  | L112: =IF(A112="","",IF(Tranzactii!$C112=$L$9,L111+J112-G112,L111)) -> 
K113: =IF(A113="","",IF(Tranzactii!$C113=$K$9,K112+J113-G113,K112)) ->  | L113: =IF(A113="","",IF(Tranzactii!$C113=$L$9,L112+J113-G113,L112)) -> 
K114: =IF(A114="","",IF(Tranzactii!$C114=$K$9,K113+J114-G114,K113)) ->  | L114: =IF(A114="","",IF(Tranzactii!$C114=$L$9,L113+J114-G114,L113)) -> 
K115: =IF(A115="","",IF(Tranzactii!$C115=$K$9,K114+J115-G115,K114)) ->  | L115: =IF(A115="","",IF(Tranzactii!$C115=$L$9,L114+J115-G115,L114)) -> 
K116: =IF(A116="","",IF(Tranzactii!$C116=$K$9,K115+J116-G116,K115)) ->  | L116: =IF(A116="","",IF(Tranzactii!$C116=$L$9,L115+J116-G116,L115)) -> 
K117: =IF(A117="","",IF(Tranzactii!$C117=$K$9,K116+J117-G117,K116)) ->  | L117: =IF(A117="","",IF(Tranzactii!$C117=$L$9,L116+J117-G117,L116)) -> 
K118: =IF(A118="","",IF(Tranzactii!$C118=$K$9,K117+J118-G118,K117)) ->  | L118: =IF(A118="","",IF(Tranzactii!$C118=$L$9,L117+J118-G118,L117)) -> 
K119: =IF(A119="","",IF(Tranzactii!$C119=$K$9,K118+J119-G119,K118)) ->  | L119: =IF(A119="","",IF(Tranzactii!$C119=$L$9,L118+J119-G119,L118)) -> 
K120: =IF(A120="","",IF(Tranzactii!$C120=$K$9,K119+J120-G120,K119)) ->  | L120: =IF(A120="","",IF(Tranzactii!$C120=$L$9,L119+J120-G120,L119)) -> 
K121: =IF(A121="","",IF(Tranzactii!$C121=$K$9,K120+J121-G121,K120)) ->  | L121: =IF(A121="","",IF(Tranzactii!$C121=$L$9,L120+J121-G121,L120)) -> 
K122: =IF(A122="","",IF(Tranzactii!$C122=$K$9,K121+J122-G122,K121)) ->  | L122: =IF(A122="","",IF(Tranzactii!$C122=$L$9,L121+J122-G122,L121)) -> 
K123: =IF(A123="","",IF(Tranzactii!$C123=$K$9,K122+J123-G123,K122)) ->  | L123: =IF(A123="","",IF(Tranzactii!$C123=$L$9,L122+J123-G123,L122)) -> 
K124: =IF(A124="","",IF(Tranzactii!$C124=$K$9,K123+J124-G124,K123)) ->  | L124: =IF(A124="","",IF(Tranzactii!$C124=$L$9,L123+J124-G124,L123)) -> 
K125: =IF(A125="","",IF(Tranzactii!$C125=$K$9,K124+J125-G125,K124)) ->  | L125: =IF(A125="","",IF(Tranzactii!$C125=$L$9,L124+J125-G125,L124)) -> 
K126: =IF(A126="","",IF(Tranzactii!$C126=$K$9,K125+J126-G126,K125)) ->  | L126: =IF(A126="","",IF(Tranzactii!$C126=$L$9,L125+J126-G126,L125)) -> 
K127: =IF(A127="","",IF(Tranzactii!$C127=$K$9,K126+J127-G127,K126)) ->  | L127: =IF(A127="","",IF(Tranzactii!$C127=$L$9,L126+J127-G127,L126)) -> 
K128: =IF(A128="","",IF(Tranzactii!$C128=$K$9,K127+J128-G128,K127)) ->  | L128: =IF(A128="","",IF(Tranzactii!$C128=$L$9,L127+J128-G128,L127)) -> 
K129: =IF(A129="","",IF(Tranzactii!$C129=$K$9,K128+J129-G129,K128)) ->  | L129: =IF(A129="","",IF(Tranzactii!$C129=$L$9,L128+J129-G129,L128)) -> 
K130: =IF(A130="","",IF(Tranzactii!$C130=$K$9,K129+J130-G130,K129)) ->  | L130: =IF(A130="","",IF(Tranzactii!$C130=$L$9,L129+J130-G130,L129)) -> 
K131: =IF(A131="","",IF(Tranzactii!$C131=$K$9,K130+J131-G131,K130)) ->  | L131: =IF(A131="","",IF(Tranzactii!$C131=$L$9,L130+J131-G131,L130)) -> 
K132: =IF(A132="","",IF(Tranzactii!$C132=$K$9,K131+J132-G132,K131)) ->  | L132: =IF(A132="","",IF(Tranzactii!$C132=$L$9,L131+J132-G132,L131)) -> 
K133: =IF(A133="","",IF(Tranzactii!$C133=$K$9,K132+J133-G133,K132)) ->  | L133: =IF(A133="","",IF(Tranzactii!$C133=$L$9,L132+J133-G133,L132)) -> 
K134: =IF(A134="","",IF(Tranzactii!$C134=$K$9,K133+J134-G134,K133)) ->  | L134: =IF(A134="","",IF(Tranzactii!$C134=$L$9,L133+J134-G134,L133)) -> 
K135: =IF(A135="","",IF(Tranzactii!$C135=$K$9,K134+J135-G135,K134)) ->  | L135: =IF(A135="","",IF(Tranzactii!$C135=$L$9,L134+J135-G135,L134)) -> 
K136: =IF(A136="","",IF(Tranzactii!$C136=$K$9,K135+J136-G136,K135)) ->  | L136: =IF(A136="","",IF(Tranzactii!$C136=$L$9,L135+J136-G136,L135)) -> 
A137: =IF(B137="","",MONTH(B137)) ->  | K137: =IF(A137="","",IF(Tranzactii!$C137=$K$9,K136+J137-G137,K136)) ->  | L137: =IF(A137="","",IF(Tranzactii!$C137=$L$9,L136+J137-G137,L136)) -> 
K138: =IF(A138="","",IF(Tranzactii!$C138=$K$9,K137+J138-G138,K137)) ->  | L138: =IF(A138="","",IF(Tranzactii!$C138=$L$9,L137+J138-G138,L137)) -> 
K139: =IF(A139="","",IF(Tranzactii!$C139=$K$9,K138+J139-G139,K138)) ->  | L139: =IF(A139="","",IF(Tranzactii!$C139=$L$9,L138+J139-G139,L138)) -> 
K140: =IF(A140="","",IF(Tranzactii!$C140=$K$9,K139+J140-G140,K139)) ->  | L140: =IF(A140="","",IF(Tranzactii!$C140=$L$9,L139+J140-G140,L139)) -> 
K141: =IF(A141="","",IF(Tranzactii!$C141=$K$9,K140+J141-G141,K140)) ->  | L141: =IF(A141="","",IF(Tranzactii!$C141=$L$9,L140+J141-G141,L140)) -> 
K142: =IF(A142="","",IF(Tranzactii!$C142=$K$9,K141+J142-G142,K141)) ->  | L142: =IF(A142="","",IF(Tranzactii!$C142=$L$9,L141+J142-G142,L141)) -> 
K143: =IF(A143="","",IF(Tranzactii!$C143=$K$9,K142+J143-G143,K142)) ->  | L143: =IF(A143="","",IF(Tranzactii!$C143=$L$9,L142+J143-G143,L142)) -> 
K144: =IF(A144="","",IF(Tranzactii!$C144=$K$9,K143+J144-G144,K143)) ->  | L144: =IF(A144="","",IF(Tranzactii!$C144=$L$9,L143+J144-G144,L143)) -> 
K145: =IF(A145="","",IF(Tranzactii!$C145=$K$9,K144+J145-G145,K144)) ->  | L145: =IF(A145="","",IF(Tranzactii!$C145=$L$9,L144+J145-G145,L144)) -> 
K146: =IF(A146="","",IF(Tranzactii!$C146=$K$9,K145+J146-G146,K145)) ->  | L146: =IF(A146="","",IF(Tranzactii!$C146=$L$9,L145+J146-G146,L145)) -> 
K147: =IF(A147="","",IF(Tranzactii!$C147=$K$9,K146+J147-G147,K146)) ->  | L147: =IF(A147="","",IF(Tranzactii!$C147=$L$9,L146+J147-G147,L146)) -> 
K148: =IF(A148="","",IF(Tranzactii!$C148=$K$9,K147+J148-G148,K147)) ->  | L148: =IF(A148="","",IF(Tranzactii!$C148=$L$9,L147+J148-G148,L147)) -> 
K149: =IF(A149="","",IF(Tranzactii!$C149=$K$9,K148+J149-G149,K148)) ->  | L149: =IF(A149="","",IF(Tranzactii!$C149=$L$9,L148+J149-G149,L148)) -> 
K150: =IF(A150="","",IF(Tranzactii!$C150=$K$9,K149+J150-G150,K149)) ->  | L150: =IF(A150="","",IF(Tranzactii!$C150=$L$9,L149+J150-G150,L149)) -> 
K151: =IF(A151="","",IF(Tranzactii!$C151=$K$9,K150+J151-G151,K150)) ->  | L151: =IF(A151="","",IF(Tranzactii!$C151=$L$9,L150+J151-G151,L150)) -> 
K152: =IF(A152="","",IF(Tranzactii!$C152=$K$9,K151+J152-G152,K151)) ->  | L152: =IF(A152="","",IF(Tranzactii!$C152=$L$9,L151+J152-G152,L151)) -> 
K153: =IF(A153="","",IF(Tranzactii!$C153=$K$9,K152+J153-G153,K152)) ->  | L153: =IF(A153="","",IF(Tranzactii!$C153=$L$9,L152+J153-G153,L152)) -> 
K154: =IF(A154="","",IF(Tranzactii!$C154=$K$9,K153+J154-G154,K153)) ->  | L154: =IF(A154="","",IF(Tranzactii!$C154=$L$9,L153+J154-G154,L153)) -> 
K155: =IF(A155="","",IF(Tranzactii!$C155=$K$9,K154+J155-G155,K154)) ->  | L155: =IF(A155="","",IF(Tranzactii!$C155=$L$9,L154+J155-G155,L154)) -> 
K156: =IF(A156="","",IF(Tranzactii!$C156=$K$9,K155+J156-G156,K155)) ->  | L156: =IF(A156="","",IF(Tranzactii!$C156=$L$9,L155+J156-G156,L155)) -> 
K157: =IF(A157="","",IF(Tranzactii!$C157=$K$9,K156+J157-G157,K156)) ->  | L157: =IF(A157="","",IF(Tranzactii!$C157=$L$9,L156+J157-G157,L156)) -> 
K158: =IF(A158="","",IF(Tranzactii!$C158=$K$9,K157+J158-G158,K157)) ->  | L158: =IF(A158="","",IF(Tranzactii!$C158=$L$9,L157+J158-G158,L157)) -> 
K159: =IF(A159="","",IF(Tranzactii!$C159=$K$9,K158+J159-G159,K158)) ->  | L159: =IF(A159="","",IF(Tranzactii!$C159=$L$9,L158+J159-G159,L158)) -> 
K160: =IF(A160="","",IF(Tranzactii!$C160=$K$9,K159+J160-G160,K159)) ->  | L160: =IF(A160="","",IF(Tranzactii!$C160=$L$9,L159+J160-G160,L159)) -> 
K161: =IF(A161="","",IF(Tranzactii!$C161=$K$9,K160+J161-G161,K160)) ->  | L161: =IF(A161="","",IF(Tranzactii!$C161=$L$9,L160+J161-G161,L160)) -> 
K162: =IF(A162="","",IF(Tranzactii!$C162=$K$9,K161+J162-G162,K161)) ->  | L162: =IF(A162="","",IF(Tranzactii!$C162=$L$9,L161+J162-G162,L161)) -> 
K163: =IF(A163="","",IF(Tranzactii!$C163=$K$9,K162+J163-G163,K162)) ->  | L163: =IF(A163="","",IF(Tranzactii!$C163=$L$9,L162+J163-G163,L162)) -> 
K164: =IF(A164="","",IF(Tranzactii!$C164=$K$9,K163+J164-G164,K163)) ->  | L164: =IF(A164="","",IF(Tranzactii!$C164=$L$9,L163+J164-G164,L163)) -> 
K165: =IF(A165="","",IF(Tranzactii!$C165=$K$9,K164+J165-G165,K164)) ->  | L165: =IF(A165="","",IF(Tranzactii!$C165=$L$9,L164+J165-G165,L164)) -> 
K166: =IF(A166="","",IF(Tranzactii!$C166=$K$9,K165+J166-G166,K165)) ->  | L166: =IF(A166="","",IF(Tranzactii!$C166=$L$9,L165+J166-G166,L165)) -> 
K167: =IF(A167="","",IF(Tranzactii!$C167=$K$9,K166+J167-G167,K166)) ->  | L167: =IF(A167="","",IF(Tranzactii!$C167=$L$9,L166+J167-G167,L166)) -> 
K168: =IF(A168="","",IF(Tranzactii!$C168=$K$9,K167+J168-G168,K167)) ->  | L168: =IF(A168="","",IF(Tranzactii!$C168=$L$9,L167+J168-G168,L167)) -> 
K169: =IF(A169="","",IF(Tranzactii!$C169=$K$9,K168+J169-G169,K168)) ->  | L169: =IF(A169="","",IF(Tranzactii!$C169=$L$9,L168+J169-G169,L168)) -> 
K170: =IF(A170="","",IF(Tranzactii!$C170=$K$9,K169+J170-G170,K169)) ->  | L170: =IF(A170="","",IF(Tranzactii!$C170=$L$9,L169+J170-G170,L169)) -> 
K171: =IF(A171="","",IF(Tranzactii!$C171=$K$9,K170+J171-G171,K170)) ->  | L171: =IF(A171="","",IF(Tranzactii!$C171=$L$9,L170+J171-G171,L170)) -> 
K172: =IF(A172="","",IF(Tranzactii!$C172=$K$9,K171+J172-G172,K171)) ->  | L172: =IF(A172="","",IF(Tranzactii!$C172=$L$9,L171+J172-G172,L171)) -> 
K173: =IF(A173="","",IF(Tranzactii!$C173=$K$9,K172+J173-G173,K172)) ->  | L173: =IF(A173="","",IF(Tranzactii!$C173=$L$9,L172+J173-G173,L172)) -> 
K174: =IF(A174="","",IF(Tranzactii!$C174=$K$9,K173+J174-G174,K173)) ->  | L174: =IF(A174="","",IF(Tranzactii!$C174=$L$9,L173+J174-G174,L173)) -> 
K175: =IF(A175="","",IF(Tranzactii!$C175=$K$9,K174+J175-G175,K174)) ->  | L175: =IF(A175="","",IF(Tranzactii!$C175=$L$9,L174+J175-G175,L174)) -> 
K176: =IF(A176="","",IF(Tranzactii!$C176=$K$9,K175+J176-G176,K175)) ->  | L176: =IF(A176="","",IF(Tranzactii!$C176=$L$9,L175+J176-G176,L175)) -> 
K177: =IF(A177="","",IF(Tranzactii!$C177=$K$9,K176+J177-G177,K176)) ->  | L177: =IF(A177="","",IF(Tranzactii!$C177=$L$9,L176+J177-G177,L176)) -> 
K178: =IF(A178="","",IF(Tranzactii!$C178=$K$9,K177+J178-G178,K177)) ->  | L178: =IF(A178="","",IF(Tranzactii!$C178=$L$9,L177+J178-G178,L177)) -> 
K179: =IF(A179="","",IF(Tranzactii!$C179=$K$9,K178+J179-G179,K178)) ->  | L179: =IF(A179="","",IF(Tranzactii!$C179=$L$9,L178+J179-G179,L178)) -> 
K180: =IF(A180="","",IF(Tranzactii!$C180=$K$9,K179+J180-G180,K179)) ->  | L180: =IF(A180="","",IF(Tranzactii!$C180=$L$9,L179+J180-G180,L179)) -> 
K181: =IF(A181="","",IF(Tranzactii!$C181=$K$9,K180+J181-G181,K180)) ->  | L181: =IF(A181="","",IF(Tranzactii!$C181=$L$9,L180+J181-G181,L180)) -> 
K182: =IF(A182="","",IF(Tranzactii!$C182=$K$9,K181+J182-G182,K181)) ->  | L182: =IF(A182="","",IF(Tranzactii!$C182=$L$9,L181+J182-G182,L181)) -> 
K183: =IF(A183="","",IF(Tranzactii!$C183=$K$9,K182+J183-G183,K182)) ->  | L183: =IF(A183="","",IF(Tranzactii!$C183=$L$9,L182+J183-G183,L182)) -> 
K184: =IF(A184="","",IF(Tranzactii!$C184=$K$9,K183+J184-G184,K183)) ->  | L184: =IF(A184="","",IF(Tranzactii!$C184=$L$9,L183+J184-G184,L183)) -> 
K185: =IF(A185="","",IF(Tranzactii!$C185=$K$9,K184+J185-G185,K184)) ->  | L185: =IF(A185="","",IF(Tranzactii!$C185=$L$9,L184+J185-G185,L184)) -> 
K186: =IF(A186="","",IF(Tranzactii!$C186=$K$9,K185+J186-G186,K185)) ->  | L186: =IF(A186="","",IF(Tranzactii!$C186=$L$9,L185+J186-G186,L185)) -> 
K187: =IF(A187="","",IF(Tranzactii!$C187=$K$9,K186+J187-G187,K186)) ->  | L187: =IF(A187="","",IF(Tranzactii!$C187=$L$9,L186+J187-G187,L186)) -> 
K188: =IF(A188="","",IF(Tranzactii!$C188=$K$9,K187+J188-G188,K187)) ->  | L188: =IF(A188="","",IF(Tranzactii!$C188=$L$9,L187+J188-G188,L187)) -> 
K189: =IF(A189="","",IF(Tranzactii!$C189=$K$9,K188+J189-G189,K188)) ->  | L189: =IF(A189="","",IF(Tranzactii!$C189=$L$9,L188+J189-G189,L188)) -> 
K190: =IF(A190="","",IF(Tranzactii!$C190=$K$9,K189+J190-G190,K189)) ->  | L190: =IF(A190="","",IF(Tranzactii!$C190=$L$9,L189+J190-G190,L189)) -> 
K191: =IF(A191="","",IF(Tranzactii!$C191=$K$9,K190+J191-G191,K190)) ->  | L191: =IF(A191="","",IF(Tranzactii!$C191=$L$9,L190+J191-G191,L190)) -> 
K192: =IF(A192="","",IF(Tranzactii!$C192=$K$9,K191+J192-G192,K191)) ->  | L192: =IF(A192="","",IF(Tranzactii!$C192=$L$9,L191+J192-G192,L191)) -> 
K193: =IF(A193="","",IF(Tranzactii!$C193=$K$9,K192+J193-G193,K192)) ->  | L193: =IF(A193="","",IF(Tranzactii!$C193=$L$9,L192+J193-G193,L192)) -> 
K194: =IF(A194="","",IF(Tranzactii!$C194=$K$9,K193+J194-G194,K193)) ->  | L194: =IF(A194="","",IF(Tranzactii!$C194=$L$9,L193+J194-G194,L193)) -> 
K195: =IF(A195="","",IF(Tranzactii!$C195=$K$9,K194+J195-G195,K194)) ->  | L195: =IF(A195="","",IF(Tranzactii!$C195=$L$9,L194+J195-G195,L194)) -> 
K196: =IF(A196="","",IF(Tranzactii!$C196=$K$9,K195+J196-G196,K195)) ->  | L196: =IF(A196="","",IF(Tranzactii!$C196=$L$9,L195+J196-G196,L195)) -> 
K197: =IF(A197="","",IF(Tranzactii!$C197=$K$9,K196+J197-G197,K196)) ->  | L197: =IF(A197="","",IF(Tranzactii!$C197=$L$9,L196+J197-G197,L196)) -> 
K198: =IF(A198="","",IF(Tranzactii!$C198=$K$9,K197+J198-G198,K197)) ->  | L198: =IF(A198="","",IF(Tranzactii!$C198=$L$9,L197+J198-G198,L197)) -> 
K199: =IF(A199="","",IF(Tranzactii!$C199=$K$9,K198+J199-G199,K198)) ->  | L199: =IF(A199="","",IF(Tranzactii!$C199=$L$9,L198+J199-G199,L198)) -> 
K200: =IF(A200="","",IF(Tranzactii!$C200=$K$9,K199+J200-G200,K199)) ->  | L200: =IF(A200="","",IF(Tranzactii!$C200=$L$9,L199+J200-G200,L199)) -> 
A201: =IF(B201="","",MONTH(B201)) ->  | K201: =IF(A201="","",IF(Tranzactii!$C201=$K$9,K200+J201-G201,K200)) ->  | L201: =IF(A201="","",IF(Tranzactii!$C201=$L$9,L200+J201-G201,L200)) -> 
K202: =IF(A202="","",IF(Tranzactii!$C202=$K$9,K201+J202-G202,K201)) ->  | L202: =IF(A202="","",IF(Tranzactii!$C202=$L$9,L201+J202-G202,L201)) -> 
K203: =IF(A203="","",IF(Tranzactii!$C203=$K$9,K202+J203-G203,K202)) ->  | L203: =IF(A203="","",IF(Tranzactii!$C203=$L$9,L202+J203-G203,L202)) -> 
K204: =IF(A204="","",IF(Tranzactii!$C204=$K$9,K203+J204-G204,K203)) ->  | L204: =IF(A204="","",IF(Tranzactii!$C204=$L$9,L203+J204-G204,L203)) -> 
K205: =IF(A205="","",IF(Tranzactii!$C205=$K$9,K204+J205-G205,K204)) ->  | L205: =IF(A205="","",IF(Tranzactii!$C205=$L$9,L204+J205-G205,L204)) -> 
... 963 more rows

Sheet Raport Anual
B1: Raport anual 2015 | L1: =MONTH(MAX(Table4[Data])) -> 2
B3: Sumar balanta | H3: Evolutie 2012 - 2015
C4: Venituri | D4: Cheltuieli | E4: Economii | F4: Balanta | I4: 2012 | J4: 2013 | K4: 2014 | L4: 2015 | N4: Medie anuala
B5: REALIZAT | C5: ='Colectare date venit'!O9 -> 6500 | D5: ='Colectare date cheltuieli'!O56 -> 5151.83 | E5: ='Colectare date cheltuieli'!$O$42 -> 500 | F5: =C5-D5 -> 1348.17 | H5: Venituri | I5: =HLOOKUP($L$1,'Colectare date 2012'!$C$2:$N$7,6,0) -> 6305 | J5: =HLOOKUP($L$1,'Colectare date 2013'!$C$1:$N$6,6,0) -> 6950 | K5: =HLOOKUP($L$1,'Colectare date 2014'!$C$3:$N$8,6,0) -> 7600 | L5: ='Colectare date venit'!$O$9 -> 6500 | M5: =IF(K5>N5,1,IF(K5<N5,-1,0)) -> 1 | N5: =AVERAGE(I5:L5) -> 6838.75
B6: PROIECTAT | C6: =HLOOKUP($L$1,'VC Previziuni'!$C$5:N$10,6,0) -> 8000 | D6: =HLOOKUP($L$1,'VC Previziuni'!$C$5:$N$63,58,0) -> 8686 | E6: =HLOOKUP($L$1,'VC Previziuni'!$C$5:$N$63,59,0) -> 500 | F6: =C6-D6 -> -686 | H6: Cheltuieli | I6: =HLOOKUP($L$1,'Colectare date 2012'!$C$2:$N$52,50,0) -> 7481.5 | J6: =HLOOKUP($L$1,'Colectare date 2013'!$C$1:$N$55,53,0) -> 3511.4 | K6: =HLOOKUP($L$1,'Colectare date 2014'!$C$3:$N$59,56,0) -> 7351.9 | L6: ='Colectare date cheltuieli'!$O$56 -> 5151.83 | M6: =IF(K6>N6,1,IF(K6<N6,-1,0)) -> 1 | N6: =AVERAGE(I6:L6) -> 5874.1575
H7: Economii | I7: =HLOOKUP($L$1,'Colectare date 2012'!$C$2:$N$52,51,0) -> 0 | J7: =HLOOKUP($L$1,'Colectare date 2013'!$C$1:$N$55,54,0) -> 7007.8 | K7: =HLOOKUP($L$1,'Colectare date 2014'!$C$3:$N$59,57,0) -> 0 | L7: ='Colectare date cheltuieli'!O42 -> 500 | M7: =IF(K7>N7,1,IF(K7<N7,-1,0)) -> -1 | N7: =AVERAGE(I7:L7) -> 1876.95
B9: Analiza lunara
C11: Ianuarie | D11: Februarie | E11: Martie | F11: Aprilie | G11: Mai | H11: Iunie | I11: Iulie | J11: August | K11: Septembrie | L11: Octombrie | M11: Noiembrie | N11: Decembrie
B12: Venituri | C12: ='Colectare date venit'!C9 -> 4500 | D12: ='Colectare date venit'!D9 -> 2000 | E12: ='Colectare date venit'!E9 -> 0 | F12: ='Colectare date venit'!F9 -> 0 | G12: ='Colectare date venit'!G9 -> 0 | H12: ='Colectare date venit'!H9 -> 0 | I12: ='Colectare date venit'!I9 -> 0 | J12: ='Colectare date venit'!J9 -> 0 | K12: ='Colectare date venit'!K9 -> 0 | L12: ='Colectare date venit'!L9 -> 0 | M12: ='Colectare date venit'!M9 -> 0 | N12: ='Colectare date venit'!N9 -> 0
B13: Cheltuieli | C13: ='Colectare date cheltuieli'!C56 -> 4151.83 | D13: ='Colectare date cheltuieli'!D56 -> 1000 | E13: ='Colectare date cheltuieli'!E56 -> 0 | F13: ='Colectare date cheltuieli'!F56 -> 0 | G13: ='Colectare date cheltuieli'!G56 -> 0 | H13: ='Colectare date cheltuieli'!H56 -> 0 | I13: ='Colectare date cheltuieli'!I56 -> 0 | J13: ='Colectare date cheltuieli'!J56 -> 0 | K13: ='Colectare date cheltuieli'!K56 -> 0 | L13: ='Colectare date cheltuieli'!L56 -> 0 | M13: ='Colectare date cheltuieli'!M56 -> 0 | N13: ='Colectare date cheltuieli'!N56 -> 0
B14: Economii | C14: ='Colectare date cheltuieli'!C42 -> 500 | D14: ='Colectare date cheltuieli'!D42 -> 0 | E14: ='Colectare date cheltuieli'!E42 -> 0 | F14: ='Colectare date cheltuieli'!F42 -> 0 | G14: ='Colectare date cheltuieli'!G42 -> 0 | H14: ='Colectare date cheltuieli'!H42 -> 0 | I14: ='Colectare date cheltuieli'!I42 -> 0 | J14: ='Colectare date cheltuieli'!J42 -> 0 | K14: ='Colectare date cheltuieli'!K42 -> 0 | L14: ='Colectare date cheltuieli'!L42 -> 0 | M14: ='Colectare date cheltuieli'!M42 -> 0 | N14: ='Colectare date cheltuieli'!N42 -> 0
B16: Analiza categoriilor de cheltuieli | K16: Categorie | L16: Cheltuieli exceptionale
B17: Rank | C17: Categorie | D17: Valoare realizat 2012 | E17: Valoare realizat 2013 | F17: Valoare realizat 2014 | G17: Valoare realizat | H17: Valoare previzionat
B18: 1 | C18: =INDEX('Colectare date cheltuieli'!$U$9:$U$19,MATCH('Raport Anual'!$B18,'Colectare date cheltuieli'!$W$9:$W$19,0),1) -> Imprumuturi si economii | D18: =SUMIF('Colectare date 2012'!$A$11:$A$49,'Raport Anual'!$C18,'Colectare date 2012'!$O$11:$O$49) -> 1400 | E18: =SUMIF('Colectare date 2013'!$A$10:$A$52,C18,'Colectare date 2013'!$O$10:$O$52) -> 1322 | F18: =SUMIF('Colectare date 2014'!$A$13:$A$56,'Raport Anual'!C18,'Colectare date 2014'!$O$13:$O$56) -> 56 | G18: =VLOOKUP($C18,'Colectare date cheltuieli'!$U$8:$V$19,2,0) -> 1500 | H18: =VLOOKUP($C18,'Colectare date cheltuieli'!$U$8:$X$19,4,0) -> 2500 | K18: Subcategorie | L18: Descriere | M18: Sum of Valoare
B19: 2 | C19: =INDEX('Colectare date cheltuieli'!$U$9:$U$19,MATCH('Raport Anual'!$B19,'Colectare date cheltuieli'!$W$9:$W$19,0),1) -> Cheltuieli vacanta | D19: =SUMIF('Colectare date 2012'!$A$11:$A$49,'Raport Anual'!$C19,'Colectare date 2012'!$O$11:$O$49) -> 0 | E19: =SUMIF('Colectare date 2013'!$A$10:$A$52,C19,'Colectare date 2013'!$O$10:$O$52) -> 0 | F19: =SUMIF('Colectare date 2014'!$A$13:$A$56,'Raport Anual'!C19,'Colectare date 2014'!$O$13:$O$56) -> 800 | G19: =VLOOKUP($C19,'Colectare date cheltuieli'!$U$8:$V$19,2,0) -> 1450 | H19: =VLOOKUP($C19,'Colectare date cheltuieli'!$U$8:$X$19,4,0) -> 1700 | K19: Cazare | L19: (blank) | M19: 220
B20: 3 | C20: =INDEX('Colectare date cheltuieli'!$U$9:$U$19,MATCH('Raport Anual'!$B20,'Colectare date cheltuieli'!$W$9:$W$19,0),1) -> Cheltuieli casa | D20: =SUMIF('Colectare date 2012'!$A$11:$A$49,'Raport Anual'!$C20,'Colectare date 2012'!$O$11:$O$49) -> 4577 | E20: =SUMIF('Colectare date 2013'!$A$10:$A$52,C20,'Colectare date 2013'!$O$10:$O$52) -> 1460.5 | F20: =SUMIF('Colectare date 2014'!$A$13:$A$56,'Raport Anual'!C20,'Colectare date 2014'!$O$13:$O$56) -> 1650 | G20: =VLOOKUP($C20,'Colectare date cheltuieli'!$U$8:$V$19,2,0) -> 1335 | H20: =VLOOKUP($C20,'Colectare date cheltuieli'!$U$8:$X$19,4,0) -> 620 | K20: Cazare Total | M20: 220
B21: 4 | C21: =INDEX('Colectare date cheltuieli'!$U$9:$U$19,MATCH('Raport Anual'!$B21,'Colectare date cheltuieli'!$W$9:$W$19,0),1) -> Mancare si alte necesitati | D21: =SUMIF('Colectare date 2012'!$A$11:$A$49,'Raport Anual'!$C21,'Colectare date 2012'!$O$11:$O$49) -> 9575 | E21: =SUMIF('Colectare date 2013'!$A$10:$A$52,C21,'Colectare date 2013'!$O$10:$O$52) -> 3100 | F21: =SUMIF('Colectare date 2014'!$A$13:$A$56,'Raport Anual'!C21,'Colectare date 2014'!$O$13:$O$56) -> 3500 | G21: =VLOOKUP($C21,'Colectare date cheltuieli'!$U$8:$V$19,2,0) -> 728 | H21: =VLOOKUP($C21,'Colectare date cheltuieli'!$U$8:$X$19,4,0) -> 2000 | K21: Grand Total | M21: 220
B22: 5 | C22: =INDEX('Colectare date cheltuieli'!$U$9:$U$19,MATCH('Raport Anual'!$B22,'Colectare date cheltuieli'!$W$9:$W$19,0),1) -> Transport | D22: =SUMIF('Colectare date 2012'!$A$11:$A$49,'Raport Anual'!$C22,'Colectare date 2012'!$O$11:$O$49) -> 2340 | E22: =SUMIF('Colectare date 2013'!$A$10:$A$52,C22,'Colectare date 2013'!$O$10:$O$52) -> 710 | F22: =SUMIF('Colectare date 2014'!$A$13:$A$56,'Raport Anual'!C22,'Colectare date 2014'!$O$13:$O$56) -> 500 | G22: =VLOOKUP($C22,'Colectare date cheltuieli'!$U$8:$V$19,2,0) -> 320 | H22: =VLOOKUP($C22,'Colectare date cheltuieli'!$U$8:$X$19,4,0) -> 500
B23: 6 | C23: =INDEX('Colectare date cheltuieli'!$U$9:$U$19,MATCH('Raport Anual'!$B23,'Colectare date cheltuieli'!$W$9:$W$19,0),1) -> Cheltuieli exceptionale | D23: =SUMIF('Colectare date 2012'!$A$11:$A$49,'Raport Anual'!$C23,'Colectare date 2012'!$O$11:$O$49) -> 381.63 | E23: =SUMIF('Colectare date 2013'!$A$10:$A$52,C23,'Colectare date 2013'!$O$10:$O$52) -> 678 | F23: =SUMIF('Colectare date 2014'!$A$13:$A$56,'Raport Anual'!C23,'Colectare date 2014'!$O$13:$O$56) -> 117 | G23: =VLOOKUP($C23,'Colectare date cheltuieli'!$U$8:$V$19,2,0) -> 220 | H23: =VLOOKUP($C23,'Colectare date cheltuieli'!$U$8:$X$19,4,0) -> 300
B24: 7 | C24: =INDEX('Colectare date cheltuieli'!$U$9:$U$19,MATCH('Raport Anual'!$B24,'Colectare date cheltuieli'!$W$9:$W$19,0),1) -> Ingrijire personala | D24: =SUMIF('Colectare date 2012'!$A$11:$A$49,'Raport Anual'!$C24,'Colectare date 2012'!$O$11:$O$49) -> 1634 | E24: =SUMIF('Colectare date 2013'!$A$10:$A$52,C24,'Colectare date 2013'!$O$10:$O$52) -> 671 | F24: =SUMIF('Colectare date 2014'!$A$13:$A$56,'Raport Anual'!C24,'Colectare date 2014'!$O$13:$O$56) -> 139.9 | G24: =VLOOKUP($C24,'Colectare date cheltuieli'!$U$8:$V$19,2,0) -> 180 | H24: =VLOOKUP($C24,'Colectare date cheltuieli'!$U$8:$X$19,4,0) -> 700
B25: 8 | C25: =INDEX('Colectare date cheltuieli'!$U$9:$U$19,MATCH('Raport Anual'!$B25,'Colectare date cheltuieli'!$W$9:$W$19,0),1) -> Cheltuieli copil | D25: =SUMIF('Colectare date 2012'!$A$11:$A$49,'Raport Anual'!$C25,'Colectare date 2012'!$O$11:$O$49) -> 330 | E25: =SUMIF('Colectare date 2013'!$A$10:$A$52,C25,'Colectare date 2013'!$O$10:$O$52) -> 505 | F25: =SUMIF('Colectare date 2014'!$A$13:$A$56,'Raport Anual'!C25,'Colectare date 2014'!$O$13:$O$56) -> 0 | G25: =VLOOKUP($C25,'Colectare date cheltuieli'!$U$8:$V$19,2,0) -> 170 | H25: =VLOOKUP($C25,'Colectare date cheltuieli'!$U$8:$X$19,4,0) -> 0
B26: 9 | C26: =INDEX('Colectare date cheltuieli'!$U$9:$U$19,MATCH('Raport Anual'!$B26,'Colectare date cheltuieli'!$W$9:$W$19,0),1) -> Asigurari | D26: =SUMIF('Colectare date 2012'!$A$11:$A$49,'Raport Anual'!$C26,'Colectare date 2012'!$O$11:$O$49) -> 2644 | E26: =SUMIF('Colectare date 2013'!$A$10:$A$52,C26,'Colectare date 2013'!$O$10:$O$52) -> 1429 | F26: =SUMIF('Colectare date 2014'!$A$13:$A$56,'Raport Anual'!C26,'Colectare date 2014'!$O$13:$O$56) -> 288 | G26: =VLOOKUP($C26,'Colectare date cheltuieli'!$U$8:$V$19,2,0) -> 165 | H26: =VLOOKUP($C26,'Colectare date cheltuieli'!$U$8:$X$19,4,0) -> 130
B27: 10 | C27: =INDEX('Colectare date cheltuieli'!$U$9:$U$19,MATCH('Raport Anual'!$B27,'Colectare date cheltuieli'!$W$9:$W$19,0),1) -> Divertisment | D27: =SUMIF('Colectare date 2012'!$A$11:$A$49,'Raport Anual'!$C27,'Colectare date 2012'!$O$11:$O$49) -> 135.3 | E27: =SUMIF('Colectare date 2013'!$A$10:$A$52,C27,'Colectare date 2013'!$O$10:$O$52) -> 464.9 | F27: =SUMIF('Colectare date 2014'!$A$13:$A$56,'Raport Anual'!C27,'Colectare date 2014'!$O$13:$O$56) -> 250 | G27: =VLOOKUP($C27,'Colectare date cheltuieli'!$U$8:$V$19,2,0) -> 116 | H27: =VLOOKUP($C27,'Colectare date cheltuieli'!$U$8:$X$19,4,0) -> 200
B28: 11 | C28: =INDEX('Colectare date cheltuieli'!$U$9:$U$19,MATCH('Raport Anual'!$B28,'Colectare date cheltuieli'!$W$9:$W$19,0),1) -> Cheltuieli bancare | D28: =SUMIF('Colectare date 2012'!$A$11:$A$49,'Raport Anual'!$C28,'Colectare date 2012'!$O$11:$O$49) -> 103 | E28: =SUMIF('Colectare date 2013'!$A$10:$A$52,C28,'Colectare date 2013'!$O$10:$O$52) -> 15 | F28: =SUMIF('Colectare date 2014'!$A$13:$A$56,'Raport Anual'!C28,'Colectare date 2014'!$O$13:$O$56) -> 51 | G28: =VLOOKUP($C28,'Colectare date cheltuieli'!$U$8:$V$19,2,0) -> 15.83 | H28: =VLOOKUP($C28,'Colectare date cheltuieli'!$U$8:$X$19,4,0) -> 36
B29: 12 | C29: =INDEX('Colectare date cheltuieli'!$U$9:$U$20,MATCH('Raport Anual'!$B29,'Colectare date cheltuieli'!$W$9:$W$20,0),1) -> Achizitii | D29: =SUMIF('Colectare date 2012'!$A$11:$A$49,'Raport Anual'!$C29,'Colectare date 2012'!$O$11:$O$49) -> 0 | E29: =SUMIF('Colectare date 2013'!$A$10:$A$52,C29,'Colectare date 2013'!$O$10:$O$52) -> 0 | F29: =SUMIF('Colectare date 2014'!$A$13:$A$56,'Raport Anual'!C29,'Colectare date 2014'!$O$13:$O$56) -> 0 | G29: =VLOOKUP($C29,'Colectare date cheltuieli'!$U$8:$V$20,2,0) -> 0 | H29: =VLOOKUP($C29,'Colectare date cheltuieli'!$U$8:$X$20,4,0) -> 0

Sheet Raport Lunar
B1: Raport lunar
A3: Selecteaza luna de raportare: | D3: Februarie | F3: 1 | G3: Sumar balanta lunara
H4: Venituri | I4: Cheltuieli | J4: Economii | K4: Procent economisire | L4: Balanta
G5: REALIZAT | H5: =IF($D$3="","",HLOOKUP($D$3,'Colectare date venit'!$A$6:$N$9,4,0)) -> 2000 | I5: =IF($D$3="","",HLOOKUP($D$3,'Colectare date cheltuieli'!C7:O60,50,0)) -> 1000 | J5: =VLOOKUP("Economisire",'Colectare date cheltuieli'!B7:P51,15,0) -> 0 | K5: =J5/H5 -> 0 | L5: =H5-I5 -> 1000
G6: PROIECTAT | H6: =IF($D$3="","",HLOOKUP($D$3,Table3[[#All],[Categorie venituri]:[Decembrie]],4,0)) -> 4000 | I6: =IF($D$3="","",HLOOKUP($D$3,Table2[[#All],[Categorie cheltuieli]:[Decembrie]],50,0)) -> 3708 | J6: =HLOOKUP(D3,'VC Previziuni'!A12:N47,36,0) -> 500 | K6: =J6/H6 -> 0.125 | L6: =H6-I6 -> 292
B8: Analiza venituri | E8: Analiza cheltuieli
E9: Rank | F9: Categorie | G9: Valoare realizat | H9: Valoare previzionat | I9: Diferenta | K9: Luna | L9: 1
B10: Luna | C10: 1 | E10: 1 | F10: =INDEX('Colectare date cheltuieli'!$Z$9:$Z$20,MATCH(Table26[[#This Row],[Rank]],'Colectare date cheltuieli'!$AC$9:$AC$20,0),1) -> Cheltuieli casa | G10: =VLOOKUP(Table26[[#This Row],[Categorie]],'Colectare date cheltuieli'!$Z$9:$AB$20,2,0) -> 1000 | H10: =VLOOKUP(Table26[[#This Row],[Categorie]],'Colectare date cheltuieli'!$Z$9:$AB$20,3,0) -> 275 | I10: =Table26[[#This Row],[Valoare previzionat]]-Table26[[#This Row],[Valoare realizat]] -> -725
E11: 2 | F11: =INDEX('Colectare date cheltuieli'!$Z$9:$Z$20,MATCH(Table26[[#This Row],[Rank]],'Colectare date cheltuieli'!$AC$9:$AC$20,0),1) -> Cheltuieli bancare | G11: =VLOOKUP(Table26[[#This Row],[Categorie]],'Colectare date cheltuieli'!$Z$9:$AB$20,2,0) -> 0 | H11: =VLOOKUP(Table26[[#This Row],[Categorie]],'Colectare date cheltuieli'!$Z$9:$AB$20,3,0) -> 18 | I11: =Table26[[#This Row],[Valoare previzionat]]-Table26[[#This Row],[Valoare realizat]] -> 18 | K11: Categorie | L11: Subcategorie | M11: Descriere | N11: Sum of Valoare
B12: Categorie Venit | C12: Sum of Valoare Venit | E12: 3 | F12: =INDEX('Colectare date cheltuieli'!$Z$9:$Z$20,MATCH(Table26[[#This Row],[Rank]],'Colectare date cheltuieli'!$AC$9:$AC$20,0),1) ->  | G12: =VLOOKUP(Table26[[#This Row],[Categorie]],'Colectare date cheltuieli'!$Z$9:$AB$20,2,0) ->  | H12: =VLOOKUP(Table26[[#This Row],[Categorie]],'Colectare date cheltuieli'!$Z$9:$AB$20,3,0) ->  | I12: =Table26[[#This Row],[Valoare previzionat]]-Table26[[#This Row],[Valoare realizat]] ->  | K12: Asigurari | L12: Pensie privata | N12: 65
B13: Salariu | C13: 4500 | E13: 4 | F13: =INDEX('Colectare date cheltuieli'!$Z$9:$Z$20,MATCH(Table26[[#This Row],[Rank]],'Colectare date cheltuieli'!$AC$9:$AC$20,0),1) ->  | G13: =VLOOKUP(Table26[[#This Row],[Categorie]],'Colectare date cheltuieli'!$Z$9:$AB$20,2,0) ->  | H13: =VLOOKUP(Table26[[#This Row],[Categorie]],'Colectare date cheltuieli'!$Z$9:$AB$20,3,0) ->  | I13: =Table26[[#This Row],[Valoare previzionat]]-Table26[[#This Row],[Valoare realizat]] ->  | K13: Asigurari | L13: Sanatate | N13: 100
B14: (blank) | E14: 5 | F14: =INDEX('Colectare date cheltuieli'!$Z$9:$Z$20,MATCH(Table26[[#This Row],[Rank]],'Colectare date cheltuieli'!$AC$9:$AC$20,0),1) ->  | G14: =VLOOKUP(Table26[[#This Row],[Categorie]],'Colectare date cheltuieli'!$Z$9:$AB$20,2,0) ->  | H14: =VLOOKUP(Table26[[#This Row],[Categorie]],'Colectare date cheltuieli'!$Z$9:$AB$20,3,0) ->  | I14: =Table26[[#This Row],[Valoare previzionat]]-Table26[[#This Row],[Valoare realizat]] ->  | K14: Asigurari Total | N14: 165
B15: Grand Total | C15: 4500 | E15: 6 | F15: =INDEX('Colectare date cheltuieli'!$Z$9:$Z$20,MATCH(Table26[[#This Row],[Rank]],'Colectare date cheltuieli'!$AC$9:$AC$20,0),1) ->  | G15: =VLOOKUP(Table26[[#This Row],[Categorie]],'Colectare date cheltuieli'!$Z$9:$AB$20,2,0) ->  | H15: =VLOOKUP(Table26[[#This Row],[Categorie]],'Colectare date cheltuieli'!$Z$9:$AB$20,3,0) ->  | I15: =Table26[[#This Row],[Valoare previzionat]]-Table26[[#This Row],[Valoare realizat]] ->  | K15: Cheltuieli bancare | L15: Comisioane retrageri/OP | N15: 9.33
E16: 7 | F16: =INDEX('Colectare date cheltuieli'!$Z$9:$Z$20,MATCH(Table26[[#This Row],[Rank]],'Colectare date cheltuieli'!$AC$9:$AC$20,0),1) ->  | G16: =VLOOKUP(Table26[[#This Row],[Categorie]],'Colectare date cheltuieli'!$Z$9:$AB$20,2,0) ->  | H16: =VLOOKUP(Table26[[#This Row],[Categorie]],'Colectare date cheltuieli'!$Z$9:$AB$20,3,0) ->  | I16: =Table26[[#This Row],[Valoare previzionat]]-Table26[[#This Row],[Valoare realizat]] ->  | K16: Cheltuieli bancare | L16: Taxe lunare | N16: 6.5
E17: 8 | F17: =INDEX('Colectare date cheltuieli'!$Z$9:$Z$20,MATCH(Table26[[#This Row],[Rank]],'Colectare date cheltuieli'!$AC$9:$AC$20,0),1) ->  | G17: =VLOOKUP(Table26[[#This Row],[Categorie]],'Colectare date cheltuieli'!$Z$9:$AB$20,2,0) ->  | H17: =VLOOKUP(Table26[[#This Row],[Categorie]],'Colectare date cheltuieli'!$Z$9:$AB$20,3,0) ->  | I17: =Table26[[#This Row],[Valoare previzionat]]-Table26[[#This Row],[Valoare realizat]] ->  | K17: Cheltuieli bancare Total | N17: 15.83
E18: 9 | F18: =INDEX('Colectare date cheltuieli'!$Z$9:$Z$20,MATCH(Table26[[#This Row],[Rank]],'Colectare date cheltuieli'!$AC$9:$AC$20,0),1) ->  | G18: =VLOOKUP(Table26[[#This Row],[Categorie]],'Colectare date cheltuieli'!$Z$9:$AB$20,2,0) ->  | H18: =VLOOKUP(Table26[[#This Row],[Categorie]],'Colectare date cheltuieli'!$Z$9:$AB$20,3,0) ->  | I18: =Table26[[#This Row],[Valoare previzionat]]-Table26[[#This Row],[Valoare realizat]] ->  | K18: Cheltuieli casa | L18: Gaz | N18: 270
E19: 10 | F19: =INDEX('Colectare date cheltuieli'!$Z$9:$Z$20,MATCH(Table26[[#This Row],[Rank]],'Colectare date cheltuieli'!$AC$9:$AC$20,0),1) ->  | G19: =VLOOKUP(Table26[[#This Row],[Categorie]],'Colectare date cheltuieli'!$Z$9:$AB$20,2,0) ->  | H19: =VLOOKUP(Table26[[#This Row],[Categorie]],'Colectare date cheltuieli'!$Z$9:$AB$20,3,0) ->  | I19: =Table26[[#This Row],[Valoare previzionat]]-Table26[[#This Row],[Valoare realizat]] ->  | K19: Cheltuieli casa | L19: Telefon | N19: 65
E20: 11 | F20: =INDEX('Colectare date cheltuieli'!$Z$9:$Z$20,MATCH(Table26[[#This Row],[Rank]],'Colectare date cheltuieli'!$AC$9:$AC$20,0),1) ->  | G20: =VLOOKUP(Table26[[#This Row],[Categorie]],'Colectare date cheltuieli'!$Z$9:$AB$20,2,0) ->  | H20: =VLOOKUP(Table26[[#This Row],[Categorie]],'Colectare date cheltuieli'!$Z$9:$AB$20,3,0) ->  | I20: =Table26[[#This Row],[Valoare previzionat]]-Table26[[#This Row],[Valoare realizat]] ->  | K20: Cheltuieli casa Total | N20: 335
E21: 12 | F21: =INDEX('Colectare date cheltuieli'!$Z$9:$Z$20,MATCH(Table26[[#This Row],[Rank]],'Colectare date cheltuieli'!$AC$9:$AC$20,0),1) ->  | G21: =VLOOKUP(Table26[[#This Row],[Categorie]],'Colectare date cheltuieli'!$Z$9:$AB$20,2,0) ->  | H21: =VLOOKUP(Table26[[#This Row],[Categorie]],'Colectare date cheltuieli'!$Z$9:$AB$20,3,0) ->  | I21: =Table26[[#This Row],[Valoare previzionat]]-Table26[[#This Row],[Valoare realizat]] ->  | K21: Cheltuieli copil | L21: Imbracaminte | N21: 170
K22: Cheltuieli copil Total | N22: 170
K23: Cheltuieli exceptionale | L23: Cazare | N23: 220
K24: Cheltuieli exceptionale Total | N24: 220
K25: Cheltuieli vacanta | L25: Cazare | N25: 1000
K26: Cheltuieli vacanta | L26: Cheltuieli diverse | N26: 150
K27: Cheltuieli vacanta | L27: Transport | N27: 300
K28: Cheltuieli vacanta Total | N28: 1450
K29: Divertisment | L29: Cinema | N29: 76
K30: Divertisment | L30: Iesiri in oras | N30: 40
K31: Divertisment Total | N31: 116
K32: Imprumuturi si economii | L32: Economisire | N32: 500
K33: Imprumuturi si economii | L33: Rate imprumuturi | N33: 1000
K34: Imprumuturi si economii Total | N34: 1500
K35: Ingrijire personala | L35: Cosmetica | N35: 40
K36: Ingrijire personala | L36: Imbracaminte | N36: 100
K37: Ingrijire personala | L37: Medical | N37: 40
K38: Ingrijire personala Total | N38: 180
K39: Mancare si alte necesitati | L39: Cumparaturi | N39: 728
K40: Mancare si alte necesitati Total | N40: 728
K41: Transport | L41: Alte cheltuieli | N41: 25
K42: Transport | L42: Combustibil | N42: 295
K43: Transport Total | N43: 320
K44: (blank) | L44: (blank)
K45: (blank) Total
K46: Grand Total | N46: 5199.83

Sheet VC Previziuni
A4: Setare venituri si cheltuieli previzionate
C5: 1 | D5: 2 | E5: 3 | F5: 4 | G5: 5 | H5: 6 | I5: 7 | J5: 8 | K5: 9 | L5: 10 | M5: 11 | N5: 12
A6: Categorie venituri | B6: Column1 | C6: Ianuarie | D6: Februarie | E6: Martie | F6: Aprilie | G6: Mai | H6: Iunie | I6: Iulie | J6: August | K6: Septembrie | L6: Octombrie | M6: Noiembrie | N6: Decembrie | O6: Total
A7: ='Setare fisier'!E7 -> Salariu | C7: 4000 | D7: 4000 | O7: =SUM(Table3[[#This Row],[Ianuarie]:[Decembrie]]) -> 8000
A8: ='Setare fisier'!E8 -> Alte venituri | O8: =SUM(Table3[[#This Row],[Ianuarie]:[Decembrie]]) -> 0
A9: Total | C9: =SUBTOTAL(109,Table3[Ianuarie]) -> 4000 | D9: =SUBTOTAL(109,Table3[Februarie]) -> 4000 | E9: =SUBTOTAL(109,Table3[Martie]) -> 0 | F9: =SUBTOTAL(109,Table3[Aprilie]) -> 0 | G9: =SUBTOTAL(109,Table3[Mai]) -> 0 | H9: =SUBTOTAL(109,Table3[Iunie]) -> 0 | I9: =SUBTOTAL(109,Table3[Iulie]) -> 0 | J9: =SUBTOTAL(109,Table3[August]) -> 0 | K9: =SUBTOTAL(109,Table3[Septembrie]) -> 0 | L9: =SUBTOTAL(109,Table3[Octombrie]) -> 0 | M9: =SUBTOTAL(109,Table3[Noiembrie]) -> 0 | N9: =SUBTOTAL(109,Table3[Decembrie]) -> 0 | O9: =SUBTOTAL(109,Table3[Total]) -> 8000
A10: Proiectat YTD Venituri | C10: =SUM($C9:C9) -> 4000 | D10: =SUM($C9:D9) -> 8000 | E10: =SUM($C9:E9) -> 8000 | F10: =SUM($C9:F9) -> 8000 | G10: =SUM($C9:G9) -> 8000 | H10: =SUM($C9:H9) -> 8000 | I10: =SUM($C9:I9) -> 8000 | J10: =SUM($C9:J9) -> 8000 | K10: =SUM($C9:K9) -> 8000 | L10: =SUM($C9:L9) -> 8000 | M10: =SUM($C9:M9) -> 8000 | N10: =SUM($C9:N9) -> 8000
A12: Categorie cheltuieli | B12: Descriere | C12: Ianuarie | D12: Februarie | E12: Martie | F12: Aprilie | G12: Mai | H12: Iunie | I12: Iulie | J12: August | K12: Septembrie | L12: Octombrie | M12: Noiembrie | N12: Decembrie | O12: Total
A13: ='Setare fisier'!I7 -> Achizitii | B13: ='Setare fisier'!J7 -> Alte achizitii | O13: =SUM(Table2[[#This Row],[Ianuarie]:[Decembrie]]) -> 0
A14: ='Setare fisier'!I8 -> Achizitii | B14: ='Setare fisier'!J8 -> Electrocasnice | O14: =SUM(Table2[[#This Row],[Ianuarie]:[Decembrie]]) -> 0
A15: ='Setare fisier'!I9 -> Achizitii | B15: ='Setare fisier'!J9 -> Electronice | O15: =SUM(Table2[[#This Row],[Ianuarie]:[Decembrie]]) -> 0
A16: ='Setare fisier'!I10 -> Asigurari | B16: ='Setare fisier'!J10 -> Alte asigurari | O16: =SUM(Table2[[#This Row],[Ianuarie]:[Decembrie]]) -> 0
A17: ='Setare fisier'!I11 -> Asigurari | B17: ='Setare fisier'!J11 -> Casa | O17: =SUM(Table2[[#This Row],[Ianuarie]:[Decembrie]]) -> 0
A18: ='Setare fisier'!I12 -> Asigurari | B18: ='Setare fisier'!J12 -> Masina | O18: =SUM(Table2[[#This Row],[Ianuarie]:[Decembrie]]) -> 0
A19: ='Setare fisier'!I13 -> Asigurari | B19: ='Setare fisier'!J13 -> Pensie privata | C19: 65 | D19: 65 | O19: =SUM(Table2[[#This Row],[Ianuarie]:[Decembrie]]) -> 130
A20: ='Setare fisier'!I14 -> Asigurari | B20: ='Setare fisier'!J14 -> Sanatate | O20: =SUM(Table2[[#This Row],[Ianuarie]:[Decembrie]]) -> 0
A21: ='Setare fisier'!I15 -> Asigurari | B21: ='Setare fisier'!J15 -> Viata | O21: =SUM(Table2[[#This Row],[Ianuarie]:[Decembrie]]) -> 0
A22: ='Setare fisier'!I16 -> Cheltuieli bancare | B22: ='Setare fisier'!J16 -> Comisioane retrageri/OP | C22: 10 | D22: 10 | O22: =SUM(Table2[[#This Row],[Ianuarie]:[Decembrie]]) -> 20
A23: ='Setare fisier'!I17 -> Cheltuieli bancare | B23: ='Setare fisier'!J17 -> Taxe lunare | C23: 8 | D23: 8 | O23: =SUM(Table2[[#This Row],[Ianuarie]:[Decembrie]]) -> 16
A24: ='Setare fisier'!I18 -> Cheltuieli casa | B24: ='Setare fisier'!J18 -> Alte cheltuieli | O24: =SUM(Table2[[#This Row],[Ianuarie]:[Decembrie]]) -> 0
A25: ='Setare fisier'!I19 -> Cheltuieli casa | B25: ='Setare fisier'!J19 -> Cablu si internet | O25: =SUM(Table2[[#This Row],[Ianuarie]:[Decembrie]]) -> 0
A26: ='Setare fisier'!I20 -> Cheltuieli casa | B26: ='Setare fisier'!J20 -> Chirie | O26: =SUM(Table2[[#This Row],[Ianuarie]:[Decembrie]]) -> 0
A27: ='Setare fisier'!I21 -> Cheltuieli casa | B27: ='Setare fisier'!J21 -> Curent | C27: 270 | D27: 200 | O27: =SUM(Table2[[#This Row],[Ianuarie]:[Decembrie]]) -> 470
A28: ='Setare fisier'!I22 -> Cheltuieli casa | B28: ='Setare fisier'!J22 -> Gaz | O28: =SUM(Table2[[#This Row],[Ianuarie]:[Decembrie]]) -> 0
A29: ='Setare fisier'!I23 -> Cheltuieli casa | B29: ='Setare fisier'!J23 -> Impozit casa | O29: =SUM(Table2[[#This Row],[Ianuarie]:[Decembrie]]) -> 0
A30: ='Setare fisier'!I24 -> Cheltuieli casa | B30: ='Setare fisier'!J24 -> Intretinere | O30: =SUM(Table2[[#This Row],[Ianuarie]:[Decembrie]]) -> 0
A31: ='Setare fisier'!I25 -> Cheltuieli casa | B31: ='Setare fisier'!J25 -> Telefon | C31: 75 | D31: 75 | O31: =SUM(Table2[[#This Row],[Ianuarie]:[Decembrie]]) -> 150
A32: ='Setare fisier'!I26 -> Cheltuieli copil | B32: ='Setare fisier'!J26 -> Alte cheltuieli | O32: =SUM(Table2[[#This Row],[Ianuarie]:[Decembrie]]) -> 0
A33: Cheltuieli copil | B33: ='Setare fisier'!J27 -> Bona | O33: =SUM(Table2[[#This Row],[Ianuarie]:[Decembrie]]) -> 0
A34: Cheltuieli copil | B34: ='Setare fisier'!J28 -> Gradinita | O34: =SUM(Table2[[#This Row],[Ianuarie]:[Decembrie]]) -> 0
A35: ='Setare fisier'!I29 -> Cheltuieli copil | B35: ='Setare fisier'!J29 -> Imbracaminte | O35: =SUM(Table2[[#This Row],[Ianuarie]:[Decembrie]]) -> 0
A36: ='Setare fisier'!I30 -> Cheltuieli copil | B36: ='Setare fisier'!J30 -> Jucarii | O36: =SUM(Table2[[#This Row],[Ianuarie]:[Decembrie]]) -> 0
A37: ='Setare fisier'!I31 -> Cheltuieli copil | B37: ='Setare fisier'!J31 -> Medical | O37: =SUM(Table2[[#This Row],[Ianuarie]:[Decembrie]]) -> 0
A38: ='Setare fisier'!I32 -> Cheltuieli exceptionale | B38: ='Setare fisier'!J32 -> Alte cheltuieli exceptionale | O38: =SUM(Table2[[#This Row],[Ianuarie]:[Decembrie]]) -> 0
A39: ='Setare fisier'!I33 -> Cheltuieli exceptionale | B39: ='Setare fisier'!J33 -> Cadou | C39: 150 | D39: 150 | O39: =SUM(Table2[[#This Row],[Ianuarie]:[Decembrie]]) -> 300
A40: ='Setare fisier'!I34 -> Cheltuieli vacanta | B40: ='Setare fisier'!J34 -> Cazare | C40: 1000 | O40: =SUM(Table2[[#This Row],[Ianuarie]:[Decembrie]]) -> 1000
A41: ='Setare fisier'!I35 -> Cheltuieli vacanta | B41: ='Setare fisier'!J35 -> Cheltuieli diverse | C41: 250 | O41: =SUM(Table2[[#This Row],[Ianuarie]:[Decembrie]]) -> 250
A42: ='Setare fisier'!I36 -> Cheltuieli vacanta | B42: ='Setare fisier'!J36 -> Transport | C42: 450 | O42: =SUM(Table2[[#This Row],[Ianuarie]:[Decembrie]]) -> 450
A43: ='Setare fisier'!I37 -> Divertisment | B43: ='Setare fisier'!J37 -> Alte cheltuieli | O43: =SUM(Table2[[#This Row],[Ianuarie]:[Decembrie]]) -> 0
A44: ='Setare fisier'!I38 -> Divertisment | B44: ='Setare fisier'!J38 -> Cinema | C44: 100 | D44: 100 | O44: =SUM(Table2[[#This Row],[Ianuarie]:[Decembrie]]) -> 200
A45: ='Setare fisier'!I39 -> Divertisment | B45: ='Setare fisier'!J39 -> Iesiri in oras | O45: =SUM(Table2[[#This Row],[Ianuarie]:[Decembrie]]) -> 0
A46: ='Setare fisier'!I40 -> Divertisment | B46: ='Setare fisier'!J40 -> Teatru | O46: =SUM(Table2[[#This Row],[Ianuarie]:[Decembrie]]) -> 0
A47: ='Setare fisier'!I41 -> Imprumuturi si economii | B47: ='Setare fisier'!J41 -> Economisire | D47: 500 | O47: =SUM(Table2[[#This Row],[Ianuarie]:[Decembrie]]) -> 500
A48: ='Setare fisier'!I42 -> Imprumuturi si economii | B48: ='Setare fisier'!J42 -> Imprumuturi date | O48: =SUM(Table2[[#This Row],[Ianuarie]:[Decembrie]]) -> 0
A49: ='Setare fisier'!I43 -> Imprumuturi si economii | B49: ='Setare fisier'!J43 -> Rate imprumuturi | C49: 1000 | D49: 1000 | O49: =SUM(Table2[[#This Row],[Ianuarie]:[Decembrie]]) -> 2000
A50: ='Setare fisier'!I44 -> Ingrijire personala | B50: ='Setare fisier'!J44 -> Alte cheltuieli | O50: =SUM(Table2[[#This Row],[Ianuarie]:[Decembrie]]) -> 0
A51: ='Setare fisier'!I45 -> Ingrijire personala | B51: ='Setare fisier'!J45 -> Cosmetica | C51: 100 | D51: 100 | O51: =SUM(Table2[[#This Row],[Ianuarie]:[Decembrie]]) -> 200
A52: ='Setare fisier'!I46 -> Ingrijire personala | B52: ='Setare fisier'!J46 -> Imbracaminte | C52: 250 | D52: 250 | O52: =SUM(Table2[[#This Row],[Ianuarie]:[Decembrie]]) -> 500
A53: ='Setare fisier'!I47 -> Ingrijire personala | B53: ='Setare fisier'!J47 -> Medical | O53: =SUM(Table2[[#This Row],[Ianuarie]:[Decembrie]]) -> 0
A54: ='Setare fisier'!I48 -> Ingrijire personala | B54: ='Setare fisier'!J48 -> Sala | O54: =SUM(Table2[[#This Row],[Ianuarie]:[Decembrie]]) -> 0
A55: ='Setare fisier'!I49 -> Mancare si alte necesitati | B55: ='Setare fisier'!J49 -> Alte cumparaturi | O55: =SUM(Table2[[#This Row],[Ianuarie]:[Decembrie]]) -> 0
A56: ='Setare fisier'!I50 -> Mancare si alte necesitati | B56: ='Setare fisier'!J50 -> Cumparaturi | C56: 1000 | D56: 1000 | O56: =SUM(Table2[[#This Row],[Ianuarie]:[Decembrie]]) -> 2000
A57: ='Setare fisier'!I51 -> Transport | B57: ='Setare fisier'!J51 -> Abonament RATB/Metrorex | O57: =SUM(Table2[[#This Row],[Ianuarie]:[Decembrie]]) -> 0
A58: ='Setare fisier'!I52 -> Transport | B58: ='Setare fisier'!J52 -> Alte cheltuieli | O58: =SUM(Table2[[#This Row],[Ianuarie]:[Decembrie]]) -> 0
A59: ='Setare fisier'!I53 -> Transport | B59: ='Setare fisier'!J53 -> Combustibil | C59: 250 | D59: 250 | O59: =SUM(Table2[[#This Row],[Ianuarie]:[Decembrie]]) -> 500
A60: ='Setare fisier'!I54 -> Transport | B60: ='Setare fisier'!J54 -> Impozit masina | O60: =SUM(Table2[[#This Row],[Ianuarie]:[Decembrie]]) -> 0
A61: Total | C61: =SUBTOTAL(109,Table2[Ianuarie]) -> 4978 | D61: =SUBTOTAL(109,Table2[Februarie]) -> 3708 | E61: =SUBTOTAL(109,Table2[Martie]) -> 0 | F61: =SUBTOTAL(109,Table2[Aprilie]) -> 0 | G61: =SUBTOTAL(109,Table2[Mai]) -> 0 | H61: =SUBTOTAL(109,Table2[Iunie]) -> 0 | I61: =SUBTOTAL(109,Table2[Iulie]) -> 0 | J61: =SUBTOTAL(109,Table2[August]) -> 0 | K61: =SUBTOTAL(109,Table2[Septembrie]) -> 0 | L61: =SUBTOTAL(109,Table2[Octombrie]) -> 0 | M61: =SUBTOTAL(109,Table2[Noiembrie]) -> 0 | N61: =SUBTOTAL(109,Table2[Decembrie]) -> 0 | O61: =SUBTOTAL(109,Table2[Total]) -> 8686
A62: Proiectat YTD Cheltuieli | C62: =SUM($C61:C61) -> 4978 | D62: =SUM($C61:D61) -> 8686 | E62: =SUM($C61:E61) -> 8686 | F62: =SUM($C61:F61) -> 8686 | G62: =SUM($C61:G61) -> 8686 | H62: =SUM($C61:H61) -> 8686 | I62: =SUM($C61:I61) -> 8686 | J62: =SUM($C61:J61) -> 8686 | K62: =SUM($C61:K61) -> 8686 | L62: =SUM($C61:L61) -> 8686 | M62: =SUM($C61:M61) -> 8686 | N62: =SUM($C61:N61) -> 8686
A63: Proiectat YTD Economii | C63: =SUM($C47:C47) -> 0 | D63: =SUM($C47:D47) -> 500 | E63: =SUM($C47:E47) -> 500 | F63: =SUM($C47:F47) -> 500 | G63: =SUM($C47:G47) -> 500 | H63: =SUM($C47:H47) -> 500 | I63: =SUM($C47:I47) -> 500 | J63: =SUM($C47:J47) -> 500 | K63: =SUM($C47:K47) -> 500 | L63: =SUM($C47:L47) -> 500 | M63: =SUM($C47:M47) -> 500 | N63: =SUM($C47:N47) -> 500

Sheet Colectare date venit
C2: =IF((COUNTA('Setare fisier'!$E$7:$E$25)-(MATCH("Total",$A:$A,0)-7))<0,CONCATENATE("Numarul de categorii de venituri setate este mai mic decat numarul din aceasta pagina cu ",-(COUNTA('Setare fisier'!$E$7:$E$25)-(MATCH("Total",$A:$A,0)-7)),"!"),IF((COUNTA('Setare fisier'!$E$7:$E$25)-(MATCH("Total",$A:$A,0)-7))>0,CONCATENATE("Numarul de categorii de venituri setate este mai mare decat numarul din aceasta pagina cu ",(COUNTA('Setare fisier'!$E$7:$E$25)-(MATCH("Total",$A:$A,0)-7)),"!"),"")) -> 
C5: 1 | D5: 2 | E5: 3 | F5: 4 | G5: 5 | H5: 6 | I5: 7 | J5: 8 | K5: 9 | L5: 10 | M5: 11 | N5: 12
A6: Categorie venituri | B6: n | C6: Ianuarie | D6: Februarie | E6: Martie | F6: Aprilie | G6: Mai | H6: Iunie | I6: Iulie | J6: August | K6: Septembrie | L6: Octombrie | M6: Noiembrie | N6: Decembrie | O6: Total | P6: Luna raportare
A7: ='Setare fisier'!E7 -> Salariu | C7: =SUMIFS(Tranzactii!$J$10:$J$4852,Tranzactii!$A$10:$A$4852,'Colectare date venit'!C$5,Tranzactii!$H$10:$H$4852,'Colectare date venit'!$A7) -> 4500 | D7: =SUMIFS(Tranzactii!$J$10:$J$4852,Tranzactii!$A$10:$A$4852,'Colectare date venit'!D$5,Tranzactii!$H$10:$H$4852,'Colectare date venit'!$A7) -> 2000 | E7: =SUMIFS(Tranzactii!$J$10:$J$4852,Tranzactii!$A$10:$A$4852,'Colectare date venit'!E$5,Tranzactii!$H$10:$H$4852,'Colectare date venit'!$A7) -> 0 | F7: =SUMIFS(Tranzactii!$J$10:$J$4852,Tranzactii!$A$10:$A$4852,'Colectare date venit'!F$5,Tranzactii!$H$10:$H$4852,'Colectare date venit'!$A7) -> 0 | G7: =SUMIFS(Tranzactii!$J$10:$J$4852,Tranzactii!$A$10:$A$4852,'Colectare date venit'!G$5,Tranzactii!$H$10:$H$4852,'Colectare date venit'!$A7) -> 0 | H7: =SUMIFS(Tranzactii!$J$10:$J$4852,Tranzactii!$A$10:$A$4852,'Colectare date venit'!H$5,Tranzactii!$H$10:$H$4852,'Colectare date venit'!$A7) -> 0 | I7: =SUMIFS(Tranzactii!$J$10:$J$4852,Tranzactii!$A$10:$A$4852,'Colectare date venit'!I$5,Tranzactii!$H$10:$H$4852,'Colectare date venit'!$A7) -> 0 | J7: =SUMIFS(Tranzactii!$J$10:$J$4852,Tranzactii!$A$10:$A$4852,'Colectare date venit'!J$5,Tranzactii!$H$10:$H$4852,'Colectare date venit'!$A7) -> 0 | K7: =SUMIFS(Tranzactii!$J$10:$J$4852,Tranzactii!$A$10:$A$4852,'Colectare date venit'!K$5,Tranzactii!$H$10:$H$4852,'Colectare date venit'!$A7) -> 0 | L7: =SUMIFS(Tranzactii!$J$10:$J$4852,Tranzactii!$A$10:$A$4852,'Colectare date venit'!L$5,Tranzactii!$H$10:$H$4852,'Colectare date venit'!$A7) -> 0 | M7: =SUMIFS(Tranzactii!$J$10:$J$4852,Tranzactii!$A$10:$A$4852,'Colectare date venit'!M$5,Tranzactii!$H$10:$H$4852,'Colectare date venit'!$A7) -> 0 | N7: =SUMIFS(Tranzactii!$J$10:$J$4852,Tranzactii!$A$10:$A$4852,'Colectare date venit'!N$5,Tranzactii!$H$10:$H$4852,'Colectare date venit'!$A7) -> 0 | O7: =SUM(C7:N7) -> 6500 | P7: =IF('Raport Lunar'!$D$3="","",HLOOKUP('Raport Lunar'!$D$3,$A$6:$N$8,Q7+1,0)) -> 2000 | Q7: 1
A8: ='Setare fisier'!E8 -> Alte venituri | C8: =SUMIFS(Tranzactii!$J$10:$J$4852,Tranzactii!$A$10:$A$4852,'Colectare date venit'!C$5,Tranzactii!$H$10:$H$4852,'Colectare date venit'!$A8) -> 0 | D8: =SUMIFS(Tranzactii!$J$10:$J$4852,Tranzactii!$A$10:$A$4852,'Colectare date venit'!D$5,Tranzactii!$H$10:$H$4852,'Colectare date venit'!$A8) -> 0 | E8: =SUMIFS(Tranzactii!$J$10:$J$4852,Tranzactii!$A$10:$A$4852,'Colectare date venit'!E$5,Tranzactii!$H$10:$H$4852,'Colectare date venit'!$A8) -> 0 | F8: =SUMIFS(Tranzactii!$J$10:$J$4852,Tranzactii!$A$10:$A$4852,'Colectare date venit'!F$5,Tranzactii!$H$10:$H$4852,'Colectare date venit'!$A8) -> 0 | G8: =SUMIFS(Tranzactii!$J$10:$J$4852,Tranzactii!$A$10:$A$4852,'Colectare date venit'!G$5,Tranzactii!$H$10:$H$4852,'Colectare date venit'!$A8) -> 0 | H8: =SUMIFS(Tranzactii!$J$10:$J$4852,Tranzactii!$A$10:$A$4852,'Colectare date venit'!H$5,Tranzactii!$H$10:$H$4852,'Colectare date venit'!$A8) -> 0 | I8: =SUMIFS(Tranzactii!$J$10:$J$4852,Tranzactii!$A$10:$A$4852,'Colectare date venit'!I$5,Tranzactii!$H$10:$H$4852,'Colectare date venit'!$A8) -> 0 | J8: =SUMIFS(Tranzactii!$J$10:$J$4852,Tranzactii!$A$10:$A$4852,'Colectare date venit'!J$5,Tranzactii!$H$10:$H$4852,'Colectare date venit'!$A8) -> 0 | K8: =SUMIFS(Tranzactii!$J$10:$J$4852,Tranzactii!$A$10:$A$4852,'Colectare date venit'!K$5,Tranzactii!$H$10:$H$4852,'Colectare date venit'!$A8) -> 0 | L8: =SUMIFS(Tranzactii!$J$10:$J$4852,Tranzactii!$A$10:$A$4852,'Colectare date venit'!L$5,Tranzactii!$H$10:$H$4852,'Colectare date venit'!$A8) -> 0 | M8: =SUMIFS(Tranzactii!$J$10:$J$4852,Tranzactii!$A$10:$A$4852,'Colectare date venit'!M$5,Tranzactii!$H$10:$H$4852,'Colectare date venit'!$A8) -> 0 | N8: =SUMIFS(Tranzactii!$J$10:$J$4852,Tranzactii!$A$10:$A$4852,'Colectare date venit'!N$5,Tranzactii!$H$10:$H$4852,'Colectare date venit'!$A8) -> 0 | O8: =SUM(C8:N8) -> 0 | P8: =IF('Raport Lunar'!$D$3="","",HLOOKUP('Raport Lunar'!$D$3,$A$6:$N$8,Q8+1,0)) -> 0 | Q8: 2
A9: Total | C9: =SUM(C7:C8) -> 4500 | D9: =SUM(D7:D8) -> 2000 | E9: =SUM(E7:E8) -> 0 | F9: 0 | G9: 0 | H9: 0 | I9: 0 | J9: 0 | K9: 0 | L9: 0 | M9: 0 | N9: 0 | O9: 6500 | P9: 2000

Sheet Colectare date cheltuieli
C2: =IF((COUNTA('Setare fisier'!$I$7:$I$60)-(MATCH("Total",$A:$A,0)-8))<0,CONCATENATE("Numarul de categorii de cheltuieli setate este mai mic decat numarul din aceasta pagina cu ",-(COUNTA('Setare fisier'!$I$7:$I$60)-(MATCH("Total",$A:$A,0)-8)),,"!"),IF((COUNTA('Setare fisier'!$I$7:$I$60)-(MATCH("Total",$A:$A,0)-8))>0,CONCATENATE("Numarul de categorii de cheltuieli setate este mai mare decat numarul din aceasta pagina cu ",(COUNTA('Setare fisier'!$I$7:$I$60)-(MATCH("Total",$A:$A,0)-8)),,"!"),"")) -> 
A6: CHELTUIELI REALIZATE | C6: 1 | D6: 2 | E6: 3 | F6: 4 | G6: 5 | H6: 6 | I6: 7 | J6: 8 | K6: 9 | L6: 10 | M6: 11 | N6: 12
A7: Categorie | B7: Descriere | C7: Ianuarie | D7: Februarie | E7: Martie | F7: Aprilie | G7: Mai | H7: Iunie | I7: Iulie | J7: August | K7: Septembrie | L7: Octombrie | M7: Noiembrie | N7: Decembrie | O7: Total | P7: Luna raportare | R7: Luna preconizat | S7: Diferenta | U7: SUMAR CHELTUIELI
A8: ='Setare fisier'!I7 -> Achizitii | B8: ='Setare fisier'!J7 -> Alte achizitii | C8: =SUMIFS(Tranzactii!$G$10:$G$4852,Tranzactii!$A$10:$A$4852,C$6,Tranzactii!$D$10:$D$4852,'Colectare date cheltuieli'!$A8,Tranzactii!$E$10:$E$4852,'Colectare date cheltuieli'!$B8) -> 0 | D8: =SUMIFS(Tranzactii!$G$10:$G$4852,Tranzactii!$A$10:$A$4852,D$6,Tranzactii!$D$10:$D$4852,'Colectare date cheltuieli'!$A8,Tranzactii!$E$10:$E$4852,'Colectare date cheltuieli'!$B8) -> 0 | E8: =SUMIFS(Tranzactii!$G$10:$G$4852,Tranzactii!$A$10:$A$4852,E$6,Tranzactii!$D$10:$D$4852,'Colectare date cheltuieli'!$A8,Tranzactii!$E$10:$E$4852,'Colectare date cheltuieli'!$B8) -> 0 | F8: =SUMIFS(Tranzactii!$G$10:$G$4852,Tranzactii!$A$10:$A$4852,F$6,Tranzactii!$D$10:$D$4852,'Colectare date cheltuieli'!$A8,Tranzactii!$E$10:$E$4852,'Colectare date cheltuieli'!$B8) -> 0 | G8: =SUMIFS(Tranzactii!$G$10:$G$4852,Tranzactii!$A$10:$A$4852,G$6,Tranzactii!$D$10:$D$4852,'Colectare date cheltuieli'!$A8,Tranzactii!$E$10:$E$4852,'Colectare date cheltuieli'!$B8) -> 0 | H8: =SUMIFS(Tranzactii!$G$10:$G$4852,Tranzactii!$A$10:$A$4852,H$6,Tranzactii!$D$10:$D$4852,'Colectare date cheltuieli'!$A8,Tranzactii!$E$10:$E$4852,'Colectare date cheltuieli'!$B8) -> 0 | I8: =SUMIFS(Tranzactii!$G$10:$G$4852,Tranzactii!$A$10:$A$4852,I$6,Tranzactii!$D$10:$D$4852,'Colectare date cheltuieli'!$A8,Tranzactii!$E$10:$E$4852,'Colectare date cheltuieli'!$B8) -> 0 | J8: =SUMIFS(Tranzactii!$G$10:$G$4852,Tranzactii!$A$10:$A$4852,J$6,Tranzactii!$D$10:$D$4852,'Colectare date cheltuieli'!$A8,Tranzactii!$E$10:$E$4852,'Colectare date cheltuieli'!$B8) -> 0 | K8: =SUMIFS(Tranzactii!$G$10:$G$4852,Tranzactii!$A$10:$A$4852,K$6,Tranzactii!$D$10:$D$4852,'Colectare date cheltuieli'!$A8,Tranzactii!$E$10:$E$4852,'Colectare date cheltuieli'!$B8) -> 0 | L8: =SUMIFS(Tranzactii!$G$10:$G$4852,Tranzactii!$A$10:$A$4852,L$6,Tranzactii!$D$10:$D$4852,'Colectare date cheltuieli'!$A8,Tranzactii!$E$10:$E$4852,'Colectare date cheltuieli'!$B8) -> 0 | M8: =SUMIFS(Tranzactii!$G$10:$G$4852,Tranzactii!$A$10:$A$4852,M$6,Tranzactii!$D$10:$D$4852,'Colectare date cheltuieli'!$A8,Tranzactii!$E$10:$E$4852,'Colectare date cheltuieli'!$B8) -> 0 | N8: =SUMIFS(Tranzactii!$G$10:$G$4852,Tranzactii!$A$10:$A$4852,N$6,Tranzactii!$D$10:$D$4852,'Colectare date cheltuieli'!$A8,Tranzactii!$E$10:$E$4852,'Colectare date cheltuieli'!$B8) -> 0 | O8: =SUM(C8:N8) -> 0 | P8: =IF('Raport Lunar'!$D$3="","",HLOOKUP('Raport Lunar'!$D$3,$A$7:$N$55,Q8,0)) -> 0 | Q8: 2 | R8: =HLOOKUP('Raport Lunar'!$D$3,'VC Previziuni'!$A$12:$N$60,ROWS('Colectare date cheltuieli'!$C$7:C8),0) -> 0 | S8: =R8-P8 -> 0 | U8: Categorie | V8: Total an | W8: Rank | X8: Total an preconizat | Z8: Categorie | AA8: Luna Realizat | AB8: Luna preconizat | AC8: Rank
A9: ='Setare fisier'!I8 -> Achizitii | B9: ='Setare fisier'!J8 -> Electrocasnice | C9: =SUMIFS(Tranzactii!$G$10:$G$4852,Tranzactii!$A$10:$A$4852,C$6,Tranzactii!$D$10:$D$4852,'Colectare date cheltuieli'!$A9,Tranzactii!$E$10:$E$4852,'Colectare date cheltuieli'!$B9) -> 0 | D9: =SUMIFS(Tranzactii!$G$10:$G$4852,Tranzactii!$A$10:$A$4852,D$6,Tranzactii!$D$10:$D$4852,'Colectare date cheltuieli'!$A9,Tranzactii!$E$10:$E$4852,'Colectare date cheltuieli'!$B9) -> 0 | E9: =SUMIFS(Tranzactii!$G$10:$G$4852,Tranzactii!$A$10:$A$4852,E$6,Tranzactii!$D$10:$D$4852,'Colectare date cheltuieli'!$A9,Tranzactii!$E$10:$E$4852,'Colectare date cheltuieli'!$B9) -> 0 | F9: =SUMIFS(Tranzactii!$G$10:$G$4852,Tranzactii!$A$10:$A$4852,F$6,Tranzactii!$D$10:$D$4852,'Colectare date cheltuieli'!$A9,Tranzactii!$E$10:$E$4852,'Colectare date cheltuieli'!$B9) -> 0 | G9: =SUMIFS(Tranzactii!$G$10:$G$4852,Tranzactii!$A$10:$A$4852,G$6,Tranzactii!$D$10:$D$4852,'Colectare date cheltuieli'!$A9,Tranzactii!$E$10:$E$4852,'Colectare date cheltuieli'!$B9) -> 0 | H9: =SUMIFS(Tranzactii!$G$10:$G$4852,Tranzactii!$A$10:$A$4852,H$6,Tranzactii!$D$10:$D$4852,'Colectare date cheltuieli'!$A9,Tranzactii!$E$10:$E$4852,'Colectare date cheltuieli'!$B9) -> 0 | I9: =SUMIFS(Tranzactii!$G$10:$G$4852,Tranzactii!$A$10:$A$4852,I$6,Tranzactii!$D$10:$D$4852,'Colectare date cheltuieli'!$A9,Tranzactii!$E$10:$E$4852,'Colectare date cheltuieli'!$B9) -> 0 | J9: =SUMIFS(Tranzactii!$G$10:$G$4852,Tranzactii!$A$10:$A$4852,J$6,Tranzactii!$D$10:$D$4852,'Colectare date cheltuieli'!$A9,Tranzactii!$E$10:$E$4852,'Colectare date cheltuieli'!$B9) -> 0 | K9: =SUMIFS(Tranzactii!$G$10:$G$4852,Tranzactii!$A$10:$A$4852,K$6,Tranzactii!$D$10:$D$4852,'Colectare date cheltuieli'!$A9,Tranzactii!$E$10:$E$4852,'Colectare date cheltuieli'!$B9) -> 0 | L9: =SUMIFS(Tranzactii!$G$10:$G$4852,Tranzactii!$A$10:$A$4852,L$6,Tranzactii!$D$10:$D$4852,'Colectare date cheltuieli'!$A9,Tranzactii!$E$10:$E$4852,'Colectare date cheltuieli'!$B9) -> 0 | M9: =SUMIFS(Tranzactii!$G$10:$G$4852,Tranzactii!$A$10:$A$4852,M$6,Tranzactii!$D$10:$D$4852,'Colectare date cheltuieli'!$A9,Tranzactii!$E$10:$E$4852,'Colectare date cheltuieli'!$B9) -> 0 | N9: =SUMIFS(Tranzactii!$G$10:$G$4852,Tranzactii!$A$10:$A$4852,N$6,Tranzactii!$D$10:$D$4852,'Colectare date cheltuieli'!$A9,Tranzactii!$E$10:$E$4852,'Colectare date cheltuieli'!$B9) -> 0 | O9: =SUM(C9:N9) -> 0 | P9: =IF('Raport Lunar'!$D$3="","",HLOOKUP('Raport Lunar'!$D$3,$A$7:$N$55,Q9,0)) -> 0 | Q9: 3 | R9: =HLOOKUP('Raport Lunar'!$D$3,'VC Previziuni'!$A$12:$N$60,ROWS('Colectare date cheltuieli'!$C$7:C9),0) -> 0 | S9: 0 | U9: Cheltuieli casa | V9: =SUMIF($A$7:$A$55,U9,$O$7:$O$55) -> 1335 | W9: =RANK(V9,V$9:V$20) -> 3 | X9: =SUMIFS(Table2[Total],Table2[Categorie cheltuieli],'Colectare date cheltuieli'!U9) -> 620 | Z9: Cheltuieli casa | AA9: =SUMIF($A$8:$A$55,Z9,$P$8:$P$55) -> 1000 | AB9: =SUMIF($A$8:$A$55,Z9,$R$8:$R$55) -> 275 | AC9: =RANK(AA9,AA$9:AA$20) -> 1
A10: ='Setare fisier'!I9 -> Achizitii | B10: ='Setare fisier'!J9 -> Electronice | C10: =SUMIFS(Tranzactii!$G$10:$G$4852,Tranzactii!$A$10:$A$4852,C$6,Tranzactii!$D$10:$D$4852,'Colectare date cheltuieli'!$A10,Tranzactii!$E$10:$E$4852,'Colectare date cheltuieli'!$B10) -> 0 | D10: =SUMIFS(Tranzactii!$G$10:$G$4852,Tranzactii!$A$10:$A$4852,D$6,Tranzactii!$D$10:$D$4852,'Colectare date cheltuieli'!$A10,Tranzactii!$E$10:$E$4852,'Colectare date cheltuieli'!$B10) -> 0 | E10: =SUMIFS(Tranzactii!$G$10:$G$4852,Tranzactii!$A$10:$A$4852,E$6,Tranzactii!$D$10:$D$4852,'Colectare date cheltuieli'!$A10,Tranzactii!$E$10:$E$4852,'Colectare date cheltuieli'!$B10) -> 0 | F10: =SUMIFS(Tranzactii!$G$10:$G$4852,Tranzactii!$A$10:$A$4852,F$6,Tranzactii!$D$10:$D$4852,'Colectare date cheltuieli'!$A10,Tranzactii!$E$10:$E$4852,'Colectare date cheltuieli'!$B10) -> 0 | G10: =SUMIFS(Tranzactii!$G$10:$G$4852,Tranzactii!$A$10:$A$4852,G$6,Tranzactii!$D$10:$D$4852,'Colectare date cheltuieli'!$A10,Tranzactii!$E$10:$E$4852,'Colectare date cheltuieli'!$B10) -> 0 | H10: =SUMIFS(Tranzactii!$G$10:$G$4852,Tranzactii!$A$10:$A$4852,H$6,Tranzactii!$D$10:$D$4852,'Colectare date cheltuieli'!$A10,Tranzactii!$E$10:$E$4852,'Colectare date cheltuieli'!$B10) -> 0 | I10: =SUMIFS(Tranzactii!$G$10:$G$4852,Tranzactii!$A$10:$A$4852,I$6,Tranzactii!$D$10:$D$4852,'Colectare date cheltuieli'!$A10,Tranzactii!$E$10:$E$4852,'Colectare date cheltuieli'!$B10) -> 0 | J10: =SUMIFS(Tranzactii!$G$10:$G$4852,Tranzactii!$A$10:$A$4852,J$6,Tranzactii!$D$10:$D$4852,'Colectare date cheltuieli'!$A10,Tranzactii!$E$10:$E$4852,'Colectare date cheltuieli'!$B10) -> 0 | K10: =SUMIFS(Tranzactii!$G$10:$G$4852,Tranzactii!$A$10:$A$4852,K$6,Tranzactii!$D$10:$D$4852,'Colectare date cheltuieli'!$A10,Tranzactii!$E$10:$E$4852,'Colectare date cheltuieli'!$B10) -> 0 | L10: =SUMIFS(Tranzactii!$G$10:$G$4852,Tranzactii!$A$10:$A$4852,L$6,Tranzactii!$D$10:$D$4852,'Colectare date cheltuieli'!$A10,Tranzactii!$E$10:$E$4852,'Colectare date cheltuieli'!$B10) -> 0 | M10: =SUMIFS(Tranzactii!$G$10:$G$4852,Tranzactii!$A$10:$A$4852,M$6,Tranzactii!$D$10:$D$4852,'Colectare date cheltuieli'!$A10,Tranzactii!$E$10:$E$4852,'Colectare date cheltuieli'!$B10) -> 0 | N10: =SUMIFS(Tranzactii!$G$10:$G$4852,Tranzactii!$A$10:$A$4852,N$6,Tranzactii!$D$10:$D$4852,'Colectare date cheltuieli'!$A10,Tranzactii!$E$10:$E$4852,'Colectare date cheltuieli'!$B10) -> 0 | O10: 0 | P10: =IF('Raport Lunar'!$D$3="","",HLOOKUP('Raport Lunar'!$D$3,$A$7:$N$55,Q10,0)) -> 0 | Q10: 4 | R10: =HLOOKUP('Raport Lunar'!$D$3,'VC Previziuni'!$A$12:$N$60,ROWS('Colectare date cheltuieli'!$C$7:C10),0) -> 0 | S10: 0 | U10: Cheltuieli bancare | V10: 15.83 | W10: =RANK(V10,V$9:V$20) -> 11 | X10: =SUMIFS(Table2[Total],Table2[Categorie cheltuieli],'Colectare date cheltuieli'!U10) -> 36 | Z10: Cheltuieli bancare | AA10: =SUMIF($A$8:$A$55,Z10,$P$8:$P$55) -> 0 | AB10: =SUMIF($A$8:$A$55,Z10,$R$8:$R$55) -> 18 | AC10: =RANK(AA10,AA$9:AA$20) -> 2
A11: ='Setare fisier'!I10 -> Asigurari | B11: ='Setare fisier'!J10 -> Alte asigurari | C11: =SUMIFS(Tranzactii!$G$10:$G$4852,Tranzactii!$A$10:$A$4852,C$6,Tranzactii!$D$10:$D$4852,'Colectare date cheltuieli'!$A11,Tranzactii!$E$10:$E$4852,'Colectare date cheltuieli'!$B11) -> 0 | D11: =SUMIFS(Tranzactii!$G$10:$G$4852,Tranzactii!$A$10:$A$4852,D$6,Tranzactii!$D$10:$D$4852,'Colectare date cheltuieli'!$A11,Tranzactii!$E$10:$E$4852,'Colectare date cheltuieli'!$B11) -> 0 | E11: =SUMIFS(Tranzactii!$G$10:$G$4852,Tranzactii!$A$10:$A$4852,E$6,Tranzactii!$D$10:$D$4852,'Colectare date cheltuieli'!$A11,Tranzactii!$E$10:$E$4852,'Colectare date cheltuieli'!$B11) -> 0 | F11: =SUMIFS(Tranzactii!$G$10:$G$4852,Tranzactii!$A$10:$A$4852,F$6,Tranzactii!$D$10:$D$4852,'Colectare date cheltuieli'!$A11,Tranzactii!$E$10:$E$4852,'Colectare date cheltuieli'!$B11) -> 0 | G11: =SUMIFS(Tranzactii!$G$10:$G$4852,Tranzactii!$A$10:$A$4852,G$6,Tranzactii!$D$10:$D$4852,'Colectare date cheltuieli'!$A11,Tranzactii!$E$10:$E$4852,'Colectare date cheltuieli'!$B11) -> 0 | H11: =SUMIFS(Tranzactii!$G$10:$G$4852,Tranzactii!$A$10:$A$4852,H$6,Tranzactii!$D$10:$D$4852,'Colectare date cheltuieli'!$A11,Tranzactii!$E$10:$E$4852,'Colectare date cheltuieli'!$B11) -> 0 | I11: =SUMIFS(Tranzactii!$G$10:$G$4852,Tranzactii!$A$10:$A$4852,I$6,Tranzactii!$D$10:$D$4852,'Colectare date cheltuieli'!$A11,Tranzactii!$E$10:$E$4852,'Colectare date cheltuieli'!$B11) -> 0 | J11: =SUMIFS(Tranzactii!$G$10:$G$4852,Tranzactii!$A$10:$A$4852,J$6,Tranzactii!$D$10:$D$4852,'Colectare date cheltuieli'!$A11,Tranzactii!$E$10:$E$4852,'Colectare date cheltuieli'!$B11) -> 0 | K11: =SUMIFS(Tranzactii!$G$10:$G$4852,Tranzactii!$A$10:$A$4852,K$6,Tranzactii!$D$10:$D$4852,'Colectare date cheltuieli'!$A11,Tranzactii!$E$10:$E$4852,'Colectare date cheltuieli'!$B11) -> 0 | L11: =SUMIFS(Tranzactii!$G$10:$G$4852,Tranzactii!$A$10:$A$4852,L$6,Tranzactii!$D$10:$D$4852,'Colectare date cheltuieli'!$A11,Tranzactii!$E$10:$E$4852,'Colectare date cheltuieli'!$B11) -> 0 | M11: =SUMIFS(Tranzactii!$G$10:$G$4852,Tranzactii!$A$10:$A$4852,M$6,Tranzactii!$D$10:$D$4852,'Colectare date cheltuieli'!$A11,Tranzactii!$E$10:$E$4852,'Colectare date cheltuieli'!$B11) -> 0 | N11: =SUMIFS(Tranzactii!$G$10:$G$4852,Tranzactii!$A$10:$A$4852,N$6,Tranzactii!$D$10:$D$4852,'Colectare date cheltuieli'!$A11,Tranzactii!$E$10:$E$4852,'Colectare date cheltuieli'!$B11) -> 0 | O11: 0 | P11: =IF('Raport Lunar'!$D$3="","",HLOOKUP('Raport Lunar'!$D$3,$A$7:$N$55,Q11,0)) -> 0 | Q11: 5 | R11: =HLOOKUP('Raport Lunar'!$D$3,'VC Previziuni'!$A$12:$N$60,ROWS('Colectare date cheltuieli'!$C$7:C11),0) -> 0 | S11: 0 | U11: Transport | V11: 320 | W11: 5 | X11: =SUMIFS(Table2[Total],Table2[Categorie cheltuieli],'Colectare date cheltuieli'!U11) -> 500 | Z11: Transport | AA11: 0 | AB11: 250 | AC11: 2
A12: ='Setare fisier'!I11 -> Asigurari | B12: ='Setare fisier'!J11 -> Casa | C12: =SUMIFS(Tranzactii!$G$10:$G$4852,Tranzactii!$A$10:$A$4852,C$6,Tranzactii!$D$10:$D$4852,'Colectare date cheltuieli'!$A12,Tranzactii!$E$10:$E$4852,'Colectare date cheltuieli'!$B12) -> 0 | D12: =SUMIFS(Tranzactii!$G$10:$G$4852,Tranzactii!$A$10:$A$4852,D$6,Tranzactii!$D$10:$D$4852,'Colectare date cheltuieli'!$A12,Tranzactii!$E$10:$E$4852,'Colectare date cheltuieli'!$B12) -> 0 | E12: =SUMIFS(Tranzactii!$G$10:$G$4852,Tranzactii!$A$10:$A$4852,E$6,Tranzactii!$D$10:$D$4852,'Colectare date cheltuieli'!$A12,Tranzactii!$E$10:$E$4852,'Colectare date cheltuieli'!$B12) -> 0 | F12: =SUMIFS(Tranzactii!$G$10:$G$4852,Tranzactii!$A$10:$A$4852,F$6,Tranzactii!$D$10:$D$4852,'Colectare date cheltuieli'!$A12,Tranzactii!$E$10:$E$4852,'Colectare date cheltuieli'!$B12) -> 0 | G12: =SUMIFS(Tranzactii!$G$10:$G$4852,Tranzactii!$A$10:$A$4852,G$6,Tranzactii!$D$10:$D$4852,'Colectare date cheltuieli'!$A12,Tranzactii!$E$10:$E$4852,'Colectare date cheltuieli'!$B12) -> 0 | H12: =SUMIFS(Tranzactii!$G$10:$G$4852,Tranzactii!$A$10:$A$4852,H$6,Tranzactii!$D$10:$D$4852,'Colectare date cheltuieli'!$A12,Tranzactii!$E$10:$E$4852,'Colectare date cheltuieli'!$B12) -> 0 | I12: =SUMIFS(Tranzactii!$G$10:$G$4852,Tranzactii!$A$10:$A$4852,I$6,Tranzactii!$D$10:$D$4852,'Colectare date cheltuieli'!$A12,Tranzactii!$E$10:$E$4852,'Colectare date cheltuieli'!$B12) -> 0 | J12: =SUMIFS(Tranzactii!$G$10:$G$4852,Tranzactii!$A$10:$A$4852,J$6,Tranzactii!$D$10:$D$4852,'Colectare date cheltuieli'!$A12,Tranzactii!$E$10:$E$4852,'Colectare date cheltuieli'!$B12) -> 0 | K12: =SUMIFS(Tranzactii!$G$10:$G$4852,Tranzactii!$A$10:$A$4852,K$6,Tranzactii!$D$10:$D$4852,'Colectare date cheltuieli'!$A12,Tranzactii!$E$10:$E$4852,'Colectare date cheltuieli'!$B12) -> 0 | L12: =SUMIFS(Tranzactii!$G$10:$G$4852,Tranzactii!$A$10:$A$4852,L$6,Tranzactii!$D$10:$D$4852,'Colectare date cheltuieli'!$A12,Tranzactii!$E$10:$E$4852,'Colectare date cheltuieli'!$B12) -> 0 | M12: =SUMIFS(Tranzactii!$G$10:$G$4852,Tranzactii!$A$10:$A$4852,M$6,Tranzactii!$D$10:$D$4852,'Colectare date cheltuieli'!$A12,Tranzactii!$E$10:$E$4852,'Colectare date cheltuieli'!$B12) -> 0 | N12: =SUMIFS(Tranzactii!$G$10:$G$4852,Tranzactii!$A$10:$A$4852,N$6,Tranzactii!$D$10:$D$4852,'Colectare date cheltuieli'!$A12,Tranzactii!$E$10:$E$4852,'Colectare date cheltuieli'!$B12) -> 0 | O12: 0 | P12: =IF('Raport Lunar'!$D$3="","",HLOOKUP('Raport Lunar'!$D$3,$A$7:$N$55,Q12,0)) -> 0 | Q12: 6 | R12: =HLOOKUP('Raport Lunar'!$D$3,'VC Previziuni'!$A$12:$N$60,ROWS('Colectare date cheltuieli'!$C$7:C12),0) -> 0 | S12: 0 | U12: Asigurari | V12: 165 | W12: 9 | X12: =SUMIFS(Table2[Total],Table2[Categorie cheltuieli],'Colectare date cheltuieli'!U12) -> 130 | Z12: Asigurari | AA12: 0 | AB12: 65 | AC12: 2
A13: ='Setare fisier'!I12 -> Asigurari | B13: ='Setare fisier'!J12 -> Masina | C13: =SUMIFS(Tranzactii!$G$10:$G$4852,Tranzactii!$A$10:$A$4852,C$6,Tranzactii!$D$10:$D$4852,'Colectare date cheltuieli'!$A13,Tranzactii!$E$10:$E$4852,'Colectare date cheltuieli'!$B13) -> 0 | D13: =SUMIFS(Tranzactii!$G$10:$G$4852,Tranzactii!$A$10:$A$4852,D$6,Tranzactii!$D$10:$D$4852,'Colectare date cheltuieli'!$A13,Tranzactii!$E$10:$E$4852,'Colectare date cheltuieli'!$B13) -> 0 | E13: =SUMIFS(Tranzactii!$G$10:$G$4852,Tranzactii!$A$10:$A$4852,E$6,Tranzactii!$D$10:$D$4852,'Colectare date cheltuieli'!$A13,Tranzactii!$E$10:$E$4852,'Colectare date cheltuieli'!$B13) -> 0 | F13: =SUMIFS(Tranzactii!$G$10:$G$4852,Tranzactii!$A$10:$A$4852,F$6,Tranzactii!$D$10:$D$4852,'Colectare date cheltuieli'!$A13,Tranzactii!$E$10:$E$4852,'Colectare date cheltuieli'!$B13) -> 0 | G13: =SUMIFS(Tranzactii!$G$10:$G$4852,Tranzactii!$A$10:$A$4852,G$6,Tranzactii!$D$10:$D$4852,'Colectare date cheltuieli'!$A13,Tranzactii!$E$10:$E$4852,'Colectare date cheltuieli'!$B13) -> 0 | H13: =SUMIFS(Tranzactii!$G$10:$G$4852,Tranzactii!$A$10:$A$4852,H$6,Tranzactii!$D$10:$D$4852,'Colectare date cheltuieli'!$A13,Tranzactii!$E$10:$E$4852,'Colectare date cheltuieli'!$B13) -> 0 | I13: =SUMIFS(Tranzactii!$G$10:$G$4852,Tranzactii!$A$10:$A$4852,I$6,Tranzactii!$D$10:$D$4852,'Colectare date cheltuieli'!$A13,Tranzactii!$E$10:$E$4852,'Colectare date cheltuieli'!$B13) -> 0 | J13: =SUMIFS(Tranzactii!$G$10:$G$4852,Tranzactii!$A$10:$A$4852,J$6,Tranzactii!$D$10:$D$4852,'Colectare date cheltuieli'!$A13,Tranzactii!$E$10:$E$4852,'Colectare date cheltuieli'!$B13) -> 0 | K13: =SUMIFS(Tranzactii!$G$10:$G$4852,Tranzactii!$A$10:$A$4852,K$6,Tranzactii!$D$10:$D$4852,'Colectare date cheltuieli'!$A13,Tranzactii!$E$10:$E$4852,'Colectare date cheltuieli'!$B13) -> 0 | L13: =SUMIFS(Tranzactii!$G$10:$G$4852,Tranzactii!$A$10:$A$4852,L$6,Tranzactii!$D$10:$D$4852,'Colectare date cheltuieli'!$A13,Tranzactii!$E$10:$E$4852,'Colectare date cheltuieli'!$B13) -> 0 | M13: =SUMIFS(Tranzactii!$G$10:$G$4852,Tranzactii!$A$10:$A$4852,M$6,Tranzactii!$D$10:$D$4852,'Colectare date cheltuieli'!$A13,Tranzactii!$E$10:$E$4852,'Colectare date cheltuieli'!$B13) -> 0 | N13: =SUMIFS(Tranzactii!$G$10:$G$4852,Tranzactii!$A$10:$A$4852,N$6,Tranzactii!$D$10:$D$4852,'Colectare date cheltuieli'!$A13,Tranzactii!$E$10:$E$4852,'Colectare date cheltuieli'!$B13) -> 0 | O13: 0 | P13: =IF('Raport Lunar'!$D$3="","",HLOOKUP('Raport Lunar'!$D$3,$A$7:$N$55,Q13,0)) -> 0 | Q13: 7 | R13: =HLOOKUP('Raport Lunar'!$D$3,'VC Previziuni'!$A$12:$N$60,ROWS('Colectare date cheltuieli'!$C$7:C13),0) -> 0 | S13: 0 | U13: Mancare si alte necesitati | V13: 728 | W13: 4 | X13: =SUMIFS(Table2[Total],Table2[Categorie cheltuieli],'Colectare date cheltuieli'!U13) -> 2000 | Z13: Mancare si alte necesitati | AA13: 0 | AB13: 1000 | AC13: 2
A14: ='Setare fisier'!I13 -> Asigurari | B14: ='Setare fisier'!J13 -> Pensie privata | C14: =SUMIFS(Tranzactii!$G$10:$G$4852,Tranzactii!$A$10:$A$4852,C$6,Tranzactii!$D$10:$D$4852,'Colectare date cheltuieli'!$A14,Tranzactii!$E$10:$E$4852,'Colectare date cheltuieli'!$B14) -> 65 | D14: =SUMIFS(Tranzactii!$G$10:$G$4852,Tranzactii!$A$10:$A$4852,D$6,Tranzactii!$D$10:$D$4852,'Colectare date cheltuieli'!$A14,Tranzactii!$E$10:$E$4852,'Colectare date cheltuieli'!$B14) -> 0 | E14: =SUMIFS(Tranzactii!$G$10:$G$4852,Tranzactii!$A$10:$A$4852,E$6,Tranzactii!$D$10:$D$4852,'Colectare date cheltuieli'!$A14,Tranzactii!$E$10:$E$4852,'Colectare date cheltuieli'!$B14) -> 0 | F14: =SUMIFS(Tranzactii!$G$10:$G$4852,Tranzactii!$A$10:$A$4852,F$6,Tranzactii!$D$10:$D$4852,'Colectare date cheltuieli'!$A14,Tranzactii!$E$10:$E$4852,'Colectare date cheltuieli'!$B14) -> 0 | G14: =SUMIFS(Tranzactii!$G$10:$G$4852,Tranzactii!$A$10:$A$4852,G$6,Tranzactii!$D$10:$D$4852,'Colectare date cheltuieli'!$A14,Tranzactii!$E$10:$E$4852,'Colectare date cheltuieli'!$B14) -> 0 | H14: =SUMIFS(Tranzactii!$G$10:$G$4852,Tranzactii!$A$10:$A$4852,H$6,Tranzactii!$D$10:$D$4852,'Colectare date cheltuieli'!$A14,Tranzactii!$E$10:$E$4852,'Colectare date cheltuieli'!$B14) -> 0 | I14: =SUMIFS(Tranzactii!$G$10:$G$4852,Tranzactii!$A$10:$A$4852,I$6,Tranzactii!$D$10:$D$4852,'Colectare date cheltuieli'!$A14,Tranzactii!$E$10:$E$4852,'Colectare date cheltuieli'!$B14) -> 0 | J14: =SUMIFS(Tranzactii!$G$10:$G$4852,Tranzactii!$A$10:$A$4852,J$6,Tranzactii!$D$10:$D$4852,'Colectare date cheltuieli'!$A14,Tranzactii!$E$10:$E$4852,'Colectare date cheltuieli'!$B14) -> 0 | K14: =SUMIFS(Tranzactii!$G$10:$G$4852,Tranzactii!$A$10:$A$4852,K$6,Tranzactii!$D$10:$D$4852,'Colectare date cheltuieli'!$A14,Tranzactii!$E$10:$E$4852,'Colectare date cheltuieli'!$B14) -> 0 | L14: =SUMIFS(Tranzactii!$G$10:$G$4852,Tranzactii!$A$10:$A$4852,L$6,Tranzactii!$D$10:$D$4852,'Colectare date cheltuieli'!$A14,Tranzactii!$E$10:$E$4852,'Colectare date cheltuieli'!$B14) -> 0 | M14: =SUMIFS(Tranzactii!$G$10:$G$4852,Tranzactii!$A$10:$A$4852,M$6,Tranzactii!$D$10:$D$4852,'Colectare date cheltuieli'!$A14,Tranzactii!$E$10:$E$4852,'Colectare date cheltuieli'!$B14) -> 0 | N14: =SUMIFS(Tranzactii!$G$10:$G$4852,Tranzactii!$A$10:$A$4852,N$6,Tranzactii!$D$10:$D$4852,'Colectare date cheltuieli'!$A14,Tranzactii!$E$10:$E$4852,'Colectare date cheltuieli'!$B14) -> 0 | O14: 65 | P14: =IF('Raport Lunar'!$D$3="","",HLOOKUP('Raport Lunar'!$D$3,$A$7:$N$55,Q14,0)) -> 0 | Q14: 8 | R14: =HLOOKUP('Raport Lunar'!$D$3,'VC Previziuni'!$A$12:$N$60,ROWS('Colectare date cheltuieli'!$C$7:C14),0) -> 65 | S14: 65 | U14: Ingrijire personala | V14: 180 | W14: 7 | X14: =SUMIFS(Table2[Total],Table2[Categorie cheltuieli],'Colectare date cheltuieli'!U14) -> 700 | Z14: Ingrijire personala | AA14: 0 | AB14: 350 | AC14: 2
A15: ='Setare fisier'!I14 -> Asigurari | B15: ='Setare fisier'!J14 -> Sanatate | C15: =SUMIFS(Tranzactii!$G$10:$G$4852,Tranzactii!$A$10:$A$4852,C$6,Tranzactii!$D$10:$D$4852,'Colectare date cheltuieli'!$A15,Tranzactii!$E$10:$E$4852,'Colectare date cheltuieli'!$B15) -> 100 | D15: =SUMIFS(Tranzactii!$G$10:$G$4852,Tranzactii!$A$10:$A$4852,D$6,Tranzactii!$D$10:$D$4852,'Colectare date cheltuieli'!$A15,Tranzactii!$E$10:$E$4852,'Colectare date cheltuieli'!$B15) -> 0 | E15: =SUMIFS(Tranzactii!$G$10:$G$4852,Tranzactii!$A$10:$A$4852,E$6,Tranzactii!$D$10:$D$4852,'Colectare date cheltuieli'!$A15,Tranzactii!$E$10:$E$4852,'Colectare date cheltuieli'!$B15) -> 0 | F15: =SUMIFS(Tranzactii!$G$10:$G$4852,Tranzactii!$A$10:$A$4852,F$6,Tranzactii!$D$10:$D$4852,'Colectare date cheltuieli'!$A15,Tranzactii!$E$10:$E$4852,'Colectare date cheltuieli'!$B15) -> 0 | G15: =SUMIFS(Tranzactii!$G$10:$G$4852,Tranzactii!$A$10:$A$4852,G$6,Tranzactii!$D$10:$D$4852,'Colectare date cheltuieli'!$A15,Tranzactii!$E$10:$E$4852,'Colectare date cheltuieli'!$B15) -> 0 | H15: =SUMIFS(Tranzactii!$G$10:$G$4852,Tranzactii!$A$10:$A$4852,H$6,Tranzactii!$D$10:$D$4852,'Colectare date cheltuieli'!$A15,Tranzactii!$E$10:$E$4852,'Colectare date cheltuieli'!$B15) -> 0 | I15: =SUMIFS(Tranzactii!$G$10:$G$4852,Tranzactii!$A$10:$A$4852,I$6,Tranzactii!$D$10:$D$4852,'Colectare date cheltuieli'!$A15,Tranzactii!$E$10:$E$4852,'Colectare date cheltuieli'!$B15) -> 0 | J15: =SUMIFS(Tranzactii!$G$10:$G$4852,Tranzactii!$A$10:$A$4852,J$6,Tranzactii!$D$10:$D$4852,'Colectare date cheltuieli'!$A15,Tranzactii!$E$10:$E$4852,'Colectare date cheltuieli'!$B15) -> 0 | K15: =SUMIFS(Tranzactii!$G$10:$G$4852,Tranzactii!$A$10:$A$4852,K$6,Tranzactii!$D$10:$D$4852,'Colectare date cheltuieli'!$A15,Tranzactii!$E$10:$E$4852,'Colectare date cheltuieli'!$B15) -> 0 | L15: =SUMIFS(Tranzactii!$G$10:$G$4852,Tranzactii!$A$10:$A$4852,L$6,Tranzactii!$D$10:$D$4852,'Colectare date cheltuieli'!$A15,Tranzactii!$E$10:$E$4852,'Colectare date cheltuieli'!$B15) -> 0 | M15: =SUMIFS(Tranzactii!$G$10:$G$4852,Tranzactii!$A$10:$A$4852,M$6,Tranzactii!$D$10:$D$4852,'Colectare date cheltuieli'!$A15,Tranzactii!$E$10:$E$4852,'Colectare date cheltuieli'!$B15) -> 0 | N15: =SUMIFS(Tranzactii!$G$10:$G$4852,Tranzactii!$A$10:$A$4852,N$6,Tranzactii!$D$10:$D$4852,'Colectare date cheltuieli'!$A15,Tranzactii!$E$10:$E$4852,'Colectare date cheltuieli'!$B15) -> 0 | O15: 100 | P15: =IF('Raport Lunar'!$D$3="","",HLOOKUP('Raport Lunar'!$D$3,$A$7:$N$55,Q15,0)) -> 0 | Q15: 9 | R15: =HLOOKUP('Raport Lunar'!$D$3,'VC Previziuni'!$A$12:$N$60,ROWS('Colectare date cheltuieli'!$C$7:C15),0) -> 0 | S15: 0 | U15: Cheltuieli copil | V15: 170 | W15: 8 | X15: =SUMIFS(Table2[Total],Table2[Categorie cheltuieli],'Colectare date cheltuieli'!U15) -> 0 | Z15: Cheltuieli copil | AA15: 0 | AB15: 0 | AC15: 2
A16: ='Setare fisier'!I15 -> Asigurari | B16: ='Setare fisier'!J15 -> Viata | C16: =SUMIFS(Tranzactii!$G$10:$G$4852,Tranzactii!$A$10:$A$4852,C$6,Tranzactii!$D$10:$D$4852,'Colectare date cheltuieli'!$A16,Tranzactii!$E$10:$E$4852,'Colectare date cheltuieli'!$B16) -> 0 | D16: =SUMIFS(Tranzactii!$G$10:$G$4852,Tranzactii!$A$10:$A$4852,D$6,Tranzactii!$D$10:$D$4852,'Colectare date cheltuieli'!$A16,Tranzactii!$E$10:$E$4852,'Colectare date cheltuieli'!$B16) -> 0 | E16: =SUMIFS(Tranzactii!$G$10:$G$4852,Tranzactii!$A$10:$A$4852,E$6,Tranzactii!$D$10:$D$4852,'Colectare date cheltuieli'!$A16,Tranzactii!$E$10:$E$4852,'Colectare date cheltuieli'!$B16) -> 0 | F16: =SUMIFS(Tranzactii!$G$10:$G$4852,Tranzactii!$A$10:$A$4852,F$6,Tranzactii!$D$10:$D$4852,'Colectare date cheltuieli'!$A16,Tranzactii!$E$10:$E$4852,'Colectare date cheltuieli'!$B16) -> 0 | G16: =SUMIFS(Tranzactii!$G$10:$G$4852,Tranzactii!$A$10:$A$4852,G$6,Tranzactii!$D$10:$D$4852,'Colectare date cheltuieli'!$A16,Tranzactii!$E$10:$E$4852,'Colectare date cheltuieli'!$B16) -> 0 | H16: =SUMIFS(Tranzactii!$G$10:$G$4852,Tranzactii!$A$10:$A$4852,H$6,Tranzactii!$D$10:$D$4852,'Colectare date cheltuieli'!$A16,Tranzactii!$E$10:$E$4852,'Colectare date cheltuieli'!$B16) -> 0 | I16: =SUMIFS(Tranzactii!$G$10:$G$4852,Tranzactii!$A$10:$A$4852,I$6,Tranzactii!$D$10:$D$4852,'Colectare date cheltuieli'!$A16,Tranzactii!$E$10:$E$4852,'Colectare date cheltuieli'!$B16) -> 0 | J16: =SUMIFS(Tranzactii!$G$10:$G$4852,Tranzactii!$A$10:$A$4852,J$6,Tranzactii!$D$10:$D$4852,'Colectare date cheltuieli'!$A16,Tranzactii!$E$10:$E$4852,'Colectare date cheltuieli'!$B16) -> 0 | K16: =SUMIFS(Tranzactii!$G$10:$G$4852,Tranzactii!$A$10:$A$4852,K$6,Tranzactii!$D$10:$D$4852,'Colectare date cheltuieli'!$A16,Tranzactii!$E$10:$E$4852,'Colectare date cheltuieli'!$B16) -> 0 | L16: =SUMIFS(Tranzactii!$G$10:$G$4852,Tranzactii!$A$10:$A$4852,L$6,Tranzactii!$D$10:$D$4852,'Colectare date cheltuieli'!$A16,Tranzactii!$E$10:$E$4852,'Colectare date cheltuieli'!$B16) -> 0 | M16: =SUMIFS(Tranzactii!$G$10:$G$4852,Tranzactii!$A$10:$A$4852,M$6,Tranzactii!$D$10:$D$4852,'Colectare date cheltuieli'!$A16,Tranzactii!$E$10:$E$4852,'Colectare date cheltuieli'!$B16) -> 0 | N16: =SUMIFS(Tranzactii!$G$10:$G$4852,Tranzactii!$A$10:$A$4852,N$6,Tranzactii!$D$10:$D$4852,'Colectare date cheltuieli'!$A16,Tranzactii!$E$10:$E$4852,'Colectare date cheltuieli'!$B16) -> 0 | O16: 0 | P16: =IF('Raport Lunar'!$D$3="","",HLOOKUP('Raport Lunar'!$D$3,$A$7:$N$55,Q16,0)) -> 0 | Q16: 10 | R16: =HLOOKUP('Raport Lunar'!$D$3,'VC Previziuni'!$A$12:$N$60,ROWS('Colectare date cheltuieli'!$C$7:C16),0) -> 0 | S16: 0 | U16: Divertisment | V16: 116 | W16: 10 | X16: =SUMIFS(Table2[Total],Table2[Categorie cheltuieli],'Colectare date cheltuieli'!U16) -> 200 | Z16: Divertisment | AA16: 0 | AB16: 100 | AC16: 2
A17: ='Setare fisier'!I16 -> Cheltuieli bancare | B17: ='Setare fisier'!J16 -> Comisioane retrageri/OP | C17: =SUMIFS(Tranzactii!$G$10:$G$4852,Tranzactii!$A$10:$A$4852,C$6,Tranzactii!$D$10:$D$4852,'Colectare date cheltuieli'!$A17,Tranzactii!$E$10:$E$4852,'Colectare date cheltuieli'!$B17) -> 9.33 | D17: =SUMIFS(Tranzactii!$G$10:$G$4852,Tranzactii!$A$10:$A$4852,D$6,Tranzactii!$D$10:$D$4852,'Colectare date cheltuieli'!$A17,Tranzactii!$E$10:$E$4852,'Colectare date cheltuieli'!$B17) -> 0 | E17: =SUMIFS(Tranzactii!$G$10:$G$4852,Tranzactii!$A$10:$A$4852,E$6,Tranzactii!$D$10:$D$4852,'Colectare date cheltuieli'!$A17,Tranzactii!$E$10:$E$4852,'Colectare date cheltuieli'!$B17) -> 0 | F17: =SUMIFS(Tranzactii!$G$10:$G$4852,Tranzactii!$A$10:$A$4852,F$6,Tranzactii!$D$10:$D$4852,'Colectare date cheltuieli'!$A17,Tranzactii!$E$10:$E$4852,'Colectare date cheltuieli'!$B17) -> 0 | G17: =SUMIFS(Tranzactii!$G$10:$G$4852,Tranzactii!$A$10:$A$4852,G$6,Tranzactii!$D$10:$D$4852,'Colectare date cheltuieli'!$A17,Tranzactii!$E$10:$E$4852,'Colectare date cheltuieli'!$B17) -> 0 | H17: =SUMIFS(Tranzactii!$G$10:$G$4852,Tranzactii!$A$10:$A$4852,H$6,Tranzactii!$D$10:$D$4852,'Colectare date cheltuieli'!$A17,Tranzactii!$E$10:$E$4852,'Colectare date cheltuieli'!$B17) -> 0 | I17: =SUMIFS(Tranzactii!$G$10:$G$4852,Tranzactii!$A$10:$A$4852,I$6,Tranzactii!$D$10:$D$4852,'Colectare date cheltuieli'!$A17,Tranzactii!$E$10:$E$4852,'Colectare date cheltuieli'!$B17) -> 0 | J17: =SUMIFS(Tranzactii!$G$10:$G$4852,Tranzactii!$A$10:$A$4852,J$6,Tranzactii!$D$10:$D$4852,'Colectare date cheltuieli'!$A17,Tranzactii!$E$10:$E$4852,'Colectare date cheltuieli'!$B17) -> 0 | K17: =SUMIFS(Tranzactii!$G$10:$G$4852,Tranzactii!$A$10:$A$4852,K$6,Tranzactii!$D$10:$D$4852,'Colectare date cheltuieli'!$A17,Tranzactii!$E$10:$E$4852,'Colectare date cheltuieli'!$B17) -> 0 | L17: =SUMIFS(Tranzactii!$G$10:$G$4852,Tranzactii!$A$10:$A$4852,L$6,Tranzactii!$D$10:$D$4852,'Colectare date cheltuieli'!$A17,Tranzactii!$E$10:$E$4852,'Colectare date cheltuieli'!$B17) -> 0 | M17: =SUMIFS(Tranzactii!$G$10:$G$4852,Tranzactii!$A$10:$A$4852,M$6,Tranzactii!$D$10:$D$4852,'Colectare date cheltuieli'!$A17,Tranzactii!$E$10:$E$4852,'Colectare date cheltuieli'!$B17) -> 0 | N17: =SUMIFS(Tranzactii!$G$10:$G$4852,Tranzactii!$A$10:$A$4852,N$6,Tranzactii!$D$10:$D$4852,'Colectare date cheltuieli'!$A17,Tranzactii!$E$10:$E$4852,'Colectare date cheltuieli'!$B17) -> 0 | O17: 9.33 | P17: =IF('Raport Lunar'!$D$3="","",HLOOKUP('Raport Lunar'!$D$3,$A$7:$N$55,Q17,0)) -> 0 | Q17: 11 | R17: =HLOOKUP('Raport Lunar'!$D$3,'VC Previziuni'!$A$12:$N$60,ROWS('Colectare date cheltuieli'!$C$7:C17),0) -> 10 | S17: 10 | U17: Imprumuturi si economii | V17: 1500 | W17: 1 | X17: =SUMIFS(Table2[Total],Table2[Categorie cheltuieli],'Colectare date cheltuieli'!U17) -> 2500 | Z17: Imprumuturi si economii | AA17: 0 | AB17: 1500 | AC17: 2
A18: ='Setare fisier'!I17 -> Cheltuieli bancare | B18: ='Setare fisier'!J17 -> Taxe lunare | C18: =SUMIFS(Tranzactii!$G$10:$G$4852,Tranzactii!$A$10:$A$4852,C$6,Tranzactii!$D$10:$D$4852,'Colectare date cheltuieli'!$A18,Tranzactii!$E$10:$E$4852,'Colectare date cheltuieli'!$B18) -> 6.5 | D18: =SUMIFS(Tranzactii!$G$10:$G$4852,Tranzactii!$A$10:$A$4852,D$6,Tranzactii!$D$10:$D$4852,'Colectare date cheltuieli'!$A18,Tranzactii!$E$10:$E$4852,'Colectare date cheltuieli'!$B18) -> 0 | E18: =SUMIFS(Tranzactii!$G$10:$G$4852,Tranzactii!$A$10:$A$4852,E$6,Tranzactii!$D$10:$D$4852,'Colectare date cheltuieli'!$A18,Tranzactii!$E$10:$E$4852,'Colectare date cheltuieli'!$B18) -> 0 | F18: =SUMIFS(Tranzactii!$G$10:$G$4852,Tranzactii!$A$10:$A$4852,F$6,Tranzactii!$D$10:$D$4852,'Colectare date cheltuieli'!$A18,Tranzactii!$E$10:$E$4852,'Colectare date cheltuieli'!$B18) -> 0 | G18: =SUMIFS(Tranzactii!$G$10:$G$4852,Tranzactii!$A$10:$A$4852,G$6,Tranzactii!$D$10:$D$4852,'Colectare date cheltuieli'!$A18,Tranzactii!$E$10:$E$4852,'Colectare date cheltuieli'!$B18) -> 0 | H18: =SUMIFS(Tranzactii!$G$10:$G$4852,Tranzactii!$A$10:$A$4852,H$6,Tranzactii!$D$10:$D$4852,'Colectare date cheltuieli'!$A18,Tranzactii!$E$10:$E$4852,'Colectare date cheltuieli'!$B18) -> 0 | I18: =SUMIFS(Tranzactii!$G$10:$G$4852,Tranzactii!$A$10:$A$4852,I$6,Tranzactii!$D$10:$D$4852,'Colectare date cheltuieli'!$A18,Tranzactii!$E$10:$E$4852,'Colectare date cheltuieli'!$B18) -> 0 | J18: =SUMIFS(Tranzactii!$G$10:$G$4852,Tranzactii!$A$10:$A$4852,J$6,Tranzactii!$D$10:$D$4852,'Colectare date cheltuieli'!$A18,Tranzactii!$E$10:$E$4852,'Colectare date cheltuieli'!$B18) -> 0 | K18: =SUMIFS(Tranzactii!$G$10:$G$4852,Tranzactii!$A$10:$A$4852,K$6,Tranzactii!$D$10:$D$4852,'Colectare date cheltuieli'!$A18,Tranzactii!$E$10:$E$4852,'Colectare date cheltuieli'!$B18) -> 0 | L18: =SUMIFS(Tranzactii!$G$10:$G$4852,Tranzactii!$A$10:$A$4852,L$6,Tranzactii!$D$10:$D$4852,'Colectare date cheltuieli'!$A18,Tranzactii!$E$10:$E$4852,'Colectare date cheltuieli'!$B18) -> 0 | M18: =SUMIFS(Tranzactii!$G$10:$G$4852,Tranzactii!$A$10:$A$4852,M$6,Tranzactii!$D$10:$D$4852,'Colectare date cheltuieli'!$A18,Tranzactii!$E$10:$E$4852,'Colectare date cheltuieli'!$B18) -> 0 | N18: =SUMIFS(Tranzactii!$G$10:$G$4852,Tranzactii!$A$10:$A$4852,N$6,Tranzactii!$D$10:$D$4852,'Colectare date cheltuieli'!$A18,Tranzactii!$E$10:$E$4852,'Colectare date cheltuieli'!$B18) -> 0 | O18: 6.5 | P18: =IF('Raport Lunar'!$D$3="","",HLOOKUP('Raport Lunar'!$D$3,$A$7:$N$55,Q18,0)) -> 0 | Q18: 12 | R18: =HLOOKUP('Raport Lunar'!$D$3,'VC Previziuni'!$A$12:$N$60,ROWS('Colectare date cheltuieli'!$C$7:C18),0) -> 8 | S18: 8 | U18: Cheltuieli exceptionale | V18: 220 | W18: 6 | X18: =SUMIFS(Table2[Total],Table2[Categorie cheltuieli],'Colectare date cheltuieli'!U18) -> 300 | Z18: Cheltuieli exceptionale | AA18: 0 | AB18: 150 | AC18: 2
A19: ='Setare fisier'!I18 -> Cheltuieli casa | B19: ='Setare fisier'!J18 -> Alte cheltuieli | C19: =SUMIFS(Tranzactii!$G$10:$G$4852,Tranzactii!$A$10:$A$4852,C$6,Tranzactii!$D$10:$D$4852,'Colectare date cheltuieli'!$A19,Tranzactii!$E$10:$E$4852,'Colectare date cheltuieli'!$B19) -> 0 | D19: =SUMIFS(Tranzactii!$G$10:$G$4852,Tranzactii!$A$10:$A$4852,D$6,Tranzactii!$D$10:$D$4852,'Colectare date cheltuieli'!$A19,Tranzactii!$E$10:$E$4852,'Colectare date cheltuieli'!$B19) -> 0 | E19: =SUMIFS(Tranzactii!$G$10:$G$4852,Tranzactii!$A$10:$A$4852,E$6,Tranzactii!$D$10:$D$4852,'Colectare date cheltuieli'!$A19,Tranzactii!$E$10:$E$4852,'Colectare date cheltuieli'!$B19) -> 0 | F19: =SUMIFS(Tranzactii!$G$10:$G$4852,Tranzactii!$A$10:$A$4852,F$6,Tranzactii!$D$10:$D$4852,'Colectare date cheltuieli'!$A19,Tranzactii!$E$10:$E$4852,'Colectare date cheltuieli'!$B19) -> 0 | G19: =SUMIFS(Tranzactii!$G$10:$G$4852,Tranzactii!$A$10:$A$4852,G$6,Tranzactii!$D$10:$D$4852,'Colectare date cheltuieli'!$A19,Tranzactii!$E$10:$E$4852,'Colectare date cheltuieli'!$B19) -> 0 | H19: =SUMIFS(Tranzactii!$G$10:$G$4852,Tranzactii!$A$10:$A$4852,H$6,Tranzactii!$D$10:$D$4852,'Colectare date cheltuieli'!$A19,Tranzactii!$E$10:$E$4852,'Colectare date cheltuieli'!$B19) -> 0 | I19: =SUMIFS(Tranzactii!$G$10:$G$4852,Tranzactii!$A$10:$A$4852,I$6,Tranzactii!$D$10:$D$4852,'Colectare date cheltuieli'!$A19,Tranzactii!$E$10:$E$4852,'Colectare date cheltuieli'!$B19) -> 0 | J19: =SUMIFS(Tranzactii!$G$10:$G$4852,Tranzactii!$A$10:$A$4852,J$6,Tranzactii!$D$10:$D$4852,'Colectare date cheltuieli'!$A19,Tranzactii!$E$10:$E$4852,'Colectare date cheltuieli'!$B19) -> 0 | K19: =SUMIFS(Tranzactii!$G$10:$G$4852,Tranzactii!$A$10:$A$4852,K$6,Tranzactii!$D$10:$D$4852,'Colectare date cheltuieli'!$A19,Tranzactii!$E$10:$E$4852,'Colectare date cheltuieli'!$B19) -> 0 | L19: =SUMIFS(Tranzactii!$G$10:$G$4852,Tranzactii!$A$10:$A$4852,L$6,Tranzactii!$D$10:$D$4852,'Colectare date cheltuieli'!$A19,Tranzactii!$E$10:$E$4852,'Colectare date cheltuieli'!$B19) -> 0 | M19: =SUMIFS(Tranzactii!$G$10:$G$4852,Tranzactii!$A$10:$A$4852,M$6,Tranzactii!$D$10:$D$4852,'Colectare date cheltuieli'!$A19,Tranzactii!$E$10:$E$4852,'Colectare date cheltuieli'!$B19) -> 0 | N19: =SUMIFS(Tranzactii!$G$10:$G$4852,Tranzactii!$A$10:$A$4852,N$6,Tranzactii!$D$10:$D$4852,'Colectare date cheltuieli'!$A19,Tranzactii!$E$10:$E$4852,'Colectare date cheltuieli'!$B19) -> 0 | O19: 0 | P19: =IF('Raport Lunar'!$D$3="","",HLOOKUP('Raport Lunar'!$D$3,$A$7:$N$55,Q19,0)) -> 0 | Q19: 13 | R19: =HLOOKUP('Raport Lunar'!$D$3,'VC Previziuni'!$A$12:$N$60,ROWS('Colectare date cheltuieli'!$C$7:C19),0) -> 0 | S19: 0 | U19: Cheltuieli vacanta | V19: 1450 | W19: 2 | X19: =SUMIFS(Table2[Total],Table2[Categorie cheltuieli],'Colectare date cheltuieli'!U19) -> 1700 | Z19: Cheltuieli vacanta | AA19: 0 | AB19: 0 | AC19: 2
A20: ='Setare fisier'!I19 -> Cheltuieli casa | B20: ='Setare fisier'!J19 -> Cablu si internet | C20: =SUMIFS(Tranzactii!$G$10:$G$4852,Tranzactii!$A$10:$A$4852,C$6,Tranzactii!$D$10:$D$4852,'Colectare date cheltuieli'!$A20,Tranzactii!$E$10:$E$4852,'Colectare date cheltuieli'!$B20) -> 0 | D20: =SUMIFS(Tranzactii!$G$10:$G$4852,Tranzactii!$A$10:$A$4852,D$6,Tranzactii!$D$10:$D$4852,'Colectare date cheltuieli'!$A20,Tranzactii!$E$10:$E$4852,'Colectare date cheltuieli'!$B20) -> 0 | E20: =SUMIFS(Tranzactii!$G$10:$G$4852,Tranzactii!$A$10:$A$4852,E$6,Tranzactii!$D$10:$D$4852,'Colectare date cheltuieli'!$A20,Tranzactii!$E$10:$E$4852,'Colectare date cheltuieli'!$B20) -> 0 | F20: =SUMIFS(Tranzactii!$G$10:$G$4852,Tranzactii!$A$10:$A$4852,F$6,Tranzactii!$D$10:$D$4852,'Colectare date cheltuieli'!$A20,Tranzactii!$E$10:$E$4852,'Colectare date cheltuieli'!$B20) -> 0 | G20: =SUMIFS(Tranzactii!$G$10:$G$4852,Tranzactii!$A$10:$A$4852,G$6,Tranzactii!$D$10:$D$4852,'Colectare date cheltuieli'!$A20,Tranzactii!$E$10:$E$4852,'Colectare date cheltuieli'!$B20) -> 0 | H20: =SUMIFS(Tranzactii!$G$10:$G$4852,Tranzactii!$A$10:$A$4852,H$6,Tranzactii!$D$10:$D$4852,'Colectare date cheltuieli'!$A20,Tranzactii!$E$10:$E$4852,'Colectare date cheltuieli'!$B20) -> 0 | I20: =SUMIFS(Tranzactii!$G$10:$G$4852,Tranzactii!$A$10:$A$4852,I$6,Tranzactii!$D$10:$D$4852,'Colectare date cheltuieli'!$A20,Tranzactii!$E$10:$E$4852,'Colectare date cheltuieli'!$B20) -> 0 | J20: =SUMIFS(Tranzactii!$G$10:$G$4852,Tranzactii!$A$10:$A$4852,J$6,Tranzactii!$D$10:$D$4852,'Colectare date cheltuieli'!$A20,Tranzactii!$E$10:$E$4852,'Colectare date cheltuieli'!$B20) -> 0 | K20: =SUMIFS(Tranzactii!$G$10:$G$4852,Tranzactii!$A$10:$A$4852,K$6,Tranzactii!$D$10:$D$4852,'Colectare date cheltuieli'!$A20,Tranzactii!$E$10:$E$4852,'Colectare date cheltuieli'!$B20) -> 0 | L20: =SUMIFS(Tranzactii!$G$10:$G$4852,Tranzactii!$A$10:$A$4852,L$6,Tranzactii!$D$10:$D$4852,'Colectare date cheltuieli'!$A20,Tranzactii!$E$10:$E$4852,'Colectare date cheltuieli'!$B20) -> 0 | M20: =SUMIFS(Tranzactii!$G$10:$G$4852,Tranzactii!$A$10:$A$4852,M$6,Tranzactii!$D$10:$D$4852,'Colectare date cheltuieli'!$A20,Tranzactii!$E$10:$E$4852,'Colectare date cheltuieli'!$B20) -> 0 | N20: =SUMIFS(Tranzactii!$G$10:$G$4852,Tranzactii!$A$10:$A$4852,N$6,Tranzactii!$D$10:$D$4852,'Colectare date cheltuieli'!$A20,Tranzactii!$E$10:$E$4852,'Colectare date cheltuieli'!$B20) -> 0 | O20: 0 | P20: =IF('Raport Lunar'!$D$3="","",HLOOKUP('Raport Lunar'!$D$3,$A$7:$N$55,Q20,0)) -> 0 | Q20: 14 | R20: =HLOOKUP('Raport Lunar'!$D$3,'VC Previziuni'!$A$12:$N$60,ROWS('Colectare date cheltuieli'!$C$7:C20),0) -> 0 | S20: 0 | U20: Achizitii | V20: =SUMIF($A$7:$A$55,U20,$O$7:$O$55) -> 0 | W20: 12 | X20: =SUMIFS(Table2[Total],Table2[Categorie cheltuieli],'Colectare date cheltuieli'!U20) -> 0 | Z20: Achizitii | AA20: 0 | AB20: =SUMIF($A$8:$A$55,Z20,$R$8:$R$55) -> 0 | AC20: 2
A21: ='Setare fisier'!I20 -> Cheltuieli casa | B21: ='Setare fisier'!J20 -> Chirie | C21: =SUMIFS(Tranzactii!$G$10:$G$4852,Tranzactii!$A$10:$A$4852,C$6,Tranzactii!$D$10:$D$4852,'Colectare date cheltuieli'!$A21,Tranzactii!$E$10:$E$4852,'Colectare date cheltuieli'!$B21) -> 0 | D21: =SUMIFS(Tranzactii!$G$10:$G$4852,Tranzactii!$A$10:$A$4852,D$6,Tranzactii!$D$10:$D$4852,'Colectare date cheltuieli'!$A21,Tranzactii!$E$10:$E$4852,'Colectare date cheltuieli'!$B21) -> 1000 | E21: =SUMIFS(Tranzactii!$G$10:$G$4852,Tranzactii!$A$10:$A$4852,E$6,Tranzactii!$D$10:$D$4852,'Colectare date cheltuieli'!$A21,Tranzactii!$E$10:$E$4852,'Colectare date cheltuieli'!$B21) -> 0 | F21: =SUMIFS(Tranzactii!$G$10:$G$4852,Tranzactii!$A$10:$A$4852,F$6,Tranzactii!$D$10:$D$4852,'Colectare date cheltuieli'!$A21,Tranzactii!$E$10:$E$4852,'Colectare date cheltuieli'!$B21) -> 0 | G21: =SUMIFS(Tranzactii!$G$10:$G$4852,Tranzactii!$A$10:$A$4852,G$6,Tranzactii!$D$10:$D$4852,'Colectare date cheltuieli'!$A21,Tranzactii!$E$10:$E$4852,'Colectare date cheltuieli'!$B21) -> 0 | H21: =SUMIFS(Tranzactii!$G$10:$G$4852,Tranzactii!$A$10:$A$4852,H$6,Tranzactii!$D$10:$D$4852,'Colectare date cheltuieli'!$A21,Tranzactii!$E$10:$E$4852,'Colectare date cheltuieli'!$B21) -> 0 | I21: =SUMIFS(Tranzactii!$G$10:$G$4852,Tranzactii!$A$10:$A$4852,I$6,Tranzactii!$D$10:$D$4852,'Colectare date cheltuieli'!$A21,Tranzactii!$E$10:$E$4852,'Colectare date cheltuieli'!$B21) -> 0 | J21: =SUMIFS(Tranzactii!$G$10:$G$4852,Tranzactii!$A$10:$A$4852,J$6,Tranzactii!$D$10:$D$4852,'Colectare date cheltuieli'!$A21,Tranzactii!$E$10:$E$4852,'Colectare date cheltuieli'!$B21) -> 0 | K21: =SUMIFS(Tranzactii!$G$10:$G$4852,Tranzactii!$A$10:$A$4852,K$6,Tranzactii!$D$10:$D$4852,'Colectare date cheltuieli'!$A21,Tranzactii!$E$10:$E$4852,'Colectare date cheltuieli'!$B21) -> 0 | L21: =SUMIFS(Tranzactii!$G$10:$G$4852,Tranzactii!$A$10:$A$4852,L$6,Tranzactii!$D$10:$D$4852,'Colectare date cheltuieli'!$A21,Tranzactii!$E$10:$E$4852,'Colectare date cheltuieli'!$B21) -> 0 | M21: =SUMIFS(Tranzactii!$G$10:$G$4852,Tranzactii!$A$10:$A$4852,M$6,Tranzactii!$D$10:$D$4852,'Colectare date cheltuieli'!$A21,Tranzactii!$E$10:$E$4852,'Colectare date cheltuieli'!$B21) -> 0 | N21: =SUMIFS(Tranzactii!$G$10:$G$4852,Tranzactii!$A$10:$A$4852,N$6,Tranzactii!$D$10:$D$4852,'Colectare date cheltuieli'!$A21,Tranzactii!$E$10:$E$4852,'Colectare date cheltuieli'!$B21) -> 0 | O21: 1000 | P21: =IF('Raport Lunar'!$D$3="","",HLOOKUP('Raport Lunar'!$D$3,$A$7:$N$55,Q21,0)) -> 1000 | Q21: 15 | R21: =HLOOKUP('Raport Lunar'!$D$3,'VC Previziuni'!$A$12:$N$60,ROWS('Colectare date cheltuieli'!$C$7:C21),0) -> 0 | S21: -1000
A22: ='Setare fisier'!I21 -> Cheltuieli casa | B22: ='Setare fisier'!J21 -> Curent | C22: =SUMIFS(Tranzactii!$G$10:$G$4852,Tranzactii!$A$10:$A$4852,C$6,Tranzactii!$D$10:$D$4852,'Colectare date cheltuieli'!$A22,Tranzactii!$E$10:$E$4852,'Colectare date cheltuieli'!$B22) -> 0 | D22: =SUMIFS(Tranzactii!$G$10:$G$4852,Tranzactii!$A$10:$A$4852,D$6,Tranzactii!$D$10:$D$4852,'Colectare date cheltuieli'!$A22,Tranzactii!$E$10:$E$4852,'Colectare date cheltuieli'!$B22) -> 0 | E22: =SUMIFS(Tranzactii!$G$10:$G$4852,Tranzactii!$A$10:$A$4852,E$6,Tranzactii!$D$10:$D$4852,'Colectare date cheltuieli'!$A22,Tranzactii!$E$10:$E$4852,'Colectare date cheltuieli'!$B22) -> 0 | F22: =SUMIFS(Tranzactii!$G$10:$G$4852,Tranzactii!$A$10:$A$4852,F$6,Tranzactii!$D$10:$D$4852,'Colectare date cheltuieli'!$A22,Tranzactii!$E$10:$E$4852,'Colectare date cheltuieli'!$B22) -> 0 | G22: =SUMIFS(Tranzactii!$G$10:$G$4852,Tranzactii!$A$10:$A$4852,G$6,Tranzactii!$D$10:$D$4852,'Colectare date cheltuieli'!$A22,Tranzactii!$E$10:$E$4852,'Colectare date cheltuieli'!$B22) -> 0 | H22: =SUMIFS(Tranzactii!$G$10:$G$4852,Tranzactii!$A$10:$A$4852,H$6,Tranzactii!$D$10:$D$4852,'Colectare date cheltuieli'!$A22,Tranzactii!$E$10:$E$4852,'Colectare date cheltuieli'!$B22) -> 0 | I22: =SUMIFS(Tranzactii!$G$10:$G$4852,Tranzactii!$A$10:$A$4852,I$6,Tranzactii!$D$10:$D$4852,'Colectare date cheltuieli'!$A22,Tranzactii!$E$10:$E$4852,'Colectare date cheltuieli'!$B22) -> 0 | J22: =SUMIFS(Tranzactii!$G$10:$G$4852,Tranzactii!$A$10:$A$4852,J$6,Tranzactii!$D$10:$D$4852,'Colectare date cheltuieli'!$A22,Tranzactii!$E$10:$E$4852,'Colectare date cheltuieli'!$B22) -> 0 | K22: =SUMIFS(Tranzactii!$G$10:$G$4852,Tranzactii!$A$10:$A$4852,K$6,Tranzactii!$D$10:$D$4852,'Colectare date cheltuieli'!$A22,Tranzactii!$E$10:$E$4852,'Colectare date cheltuieli'!$B22) -> 0 | L22: =SUMIFS(Tranzactii!$G$10:$G$4852,Tranzactii!$A$10:$A$4852,L$6,Tranzactii!$D$10:$D$4852,'Colectare date cheltuieli'!$A22,Tranzactii!$E$10:$E$4852,'Colectare date cheltuieli'!$B22) -> 0 | M22: =SUMIFS(Tranzactii!$G$10:$G$4852,Tranzactii!$A$10:$A$4852,M$6,Tranzactii!$D$10:$D$4852,'Colectare date cheltuieli'!$A22,Tranzactii!$E$10:$E$4852,'Colectare date cheltuieli'!$B22) -> 0 | N22: =SUMIFS(Tranzactii!$G$10:$G$4852,Tranzactii!$A$10:$A$4852,N$6,Tranzactii!$D$10:$D$4852,'Colectare date cheltuieli'!$A22,Tranzactii!$E$10:$E$4852,'Colectare date cheltuieli'!$B22) -> 0 | O22: 0 | P22: =IF('Raport Lunar'!$D$3="","",HLOOKUP('Raport Lunar'!$D$3,$A$7:$N$55,Q22,0)) -> 0 | Q22: 16 | R22: =HLOOKUP('Raport Lunar'!$D$3,'VC Previziuni'!$A$12:$N$60,ROWS('Colectare date cheltuieli'!$C$7:C22),0) -> 200 | S22: 200
A23: ='Setare fisier'!I22 -> Cheltuieli casa | B23: ='Setare fisier'!J22 -> Gaz | C23: =SUMIFS(Tranzactii!$G$10:$G$4852,Tranzactii!$A$10:$A$4852,C$6,Tranzactii!$D$10:$D$4852,'Colectare date cheltuieli'!$A23,Tranzactii!$E$10:$E$4852,'Colectare date cheltuieli'!$B23) -> 270 | D23: =SUMIFS(Tranzactii!$G$10:$G$4852,Tranzactii!$A$10:$A$4852,D$6,Tranzactii!$D$10:$D$4852,'Colectare date cheltuieli'!$A23,Tranzactii!$E$10:$E$4852,'Colectare date cheltuieli'!$B23) -> 0 | E23: =SUMIFS(Tranzactii!$G$10:$G$4852,Tranzactii!$A$10:$A$4852,E$6,Tranzactii!$D$10:$D$4852,'Colectare date cheltuieli'!$A23,Tranzactii!$E$10:$E$4852,'Colectare date cheltuieli'!$B23) -> 0 | F23: =SUMIFS(Tranzactii!$G$10:$G$4852,Tranzactii!$A$10:$A$4852,F$6,Tranzactii!$D$10:$D$4852,'Colectare date cheltuieli'!$A23,Tranzactii!$E$10:$E$4852,'Colectare date cheltuieli'!$B23) -> 0 | G23: =SUMIFS(Tranzactii!$G$10:$G$4852,Tranzactii!$A$10:$A$4852,G$6,Tranzactii!$D$10:$D$4852,'Colectare date cheltuieli'!$A23,Tranzactii!$E$10:$E$4852,'Colectare date cheltuieli'!$B23) -> 0 | H23: =SUMIFS(Tranzactii!$G$10:$G$4852,Tranzactii!$A$10:$A$4852,H$6,Tranzactii!$D$10:$D$4852,'Colectare date cheltuieli'!$A23,Tranzactii!$E$10:$E$4852,'Colectare date cheltuieli'!$B23) -> 0 | I23: =SUMIFS(Tranzactii!$G$10:$G$4852,Tranzactii!$A$10:$A$4852,I$6,Tranzactii!$D$10:$D$4852,'Colectare date cheltuieli'!$A23,Tranzactii!$E$10:$E$4852,'Colectare date cheltuieli'!$B23) -> 0 | J23: =SUMIFS(Tranzactii!$G$10:$G$4852,Tranzactii!$A$10:$A$4852,J$6,Tranzactii!$D$10:$D$4852,'Colectare date cheltuieli'!$A23,Tranzactii!$E$10:$E$4852,'Colectare date cheltuieli'!$B23) -> 0 | K23: =SUMIFS(Tranzactii!$G$10:$G$4852,Tranzactii!$A$10:$A$4852,K$6,Tranzactii!$D$10:$D$4852,'Colectare date cheltuieli'!$A23,Tranzactii!$E$10:$E$4852,'Colectare date cheltuieli'!$B23) -> 0 | L23: =SUMIFS(Tranzactii!$G$10:$G$4852,Tranzactii!$A$10:$A$4852,L$6,Tranzactii!$D$10:$D$4852,'Colectare date cheltuieli'!$A23,Tranzactii!$E$10:$E$4852,'Colectare date cheltuieli'!$B23) -> 0 | M23: =SUMIFS(Tranzactii!$G$10:$G$4852,Tranzactii!$A$10:$A$4852,M$6,Tranzactii!$D$10:$D$4852,'Colectare date cheltuieli'!$A23,Tranzactii!$E$10:$E$4852,'Colectare date cheltuieli'!$B23) -> 0 | N23: =SUMIFS(Tranzactii!$G$10:$G$4852,Tranzactii!$A$10:$A$4852,N$6,Tranzactii!$D$10:$D$4852,'Colectare date cheltuieli'!$A23,Tranzactii!$E$10:$E$4852,'Colectare date cheltuieli'!$B23) -> 0 | O23: 270 | P23: =IF('Raport Lunar'!$D$3="","",HLOOKUP('Raport Lunar'!$D$3,$A$7:$N$55,Q23,0)) -> 0 | Q23: 17 | R23: =HLOOKUP('Raport Lunar'!$D$3,'VC Previziuni'!$A$12:$N$60,ROWS('Colectare date cheltuieli'!$C$7:C23),0) -> 0 | S23: 0
A24: ='Setare fisier'!I23 -> Cheltuieli casa | B24: ='Setare fisier'!J23 -> Impozit casa | C24: =SUMIFS(Tranzactii!$G$10:$G$4852,Tranzactii!$A$10:$A$4852,C$6,Tranzactii!$D$10:$D$4852,'Colectare date cheltuieli'!$A24,Tranzactii!$E$10:$E$4852,'Colectare date cheltuieli'!$B24) -> 0 | D24: =SUMIFS(Tranzactii!$G$10:$G$4852,Tranzactii!$A$10:$A$4852,D$6,Tranzactii!$D$10:$D$4852,'Colectare date cheltuieli'!$A24,Tranzactii!$E$10:$E$4852,'Colectare date cheltuieli'!$B24) -> 0 | E24: =SUMIFS(Tranzactii!$G$10:$G$4852,Tranzactii!$A$10:$A$4852,E$6,Tranzactii!$D$10:$D$4852,'Colectare date cheltuieli'!$A24,Tranzactii!$E$10:$E$4852,'Colectare date cheltuieli'!$B24) -> 0 | F24: =SUMIFS(Tranzactii!$G$10:$G$4852,Tranzactii!$A$10:$A$4852,F$6,Tranzactii!$D$10:$D$4852,'Colectare date cheltuieli'!$A24,Tranzactii!$E$10:$E$4852,'Colectare date cheltuieli'!$B24) -> 0 | G24: =SUMIFS(Tranzactii!$G$10:$G$4852,Tranzactii!$A$10:$A$4852,G$6,Tranzactii!$D$10:$D$4852,'Colectare date cheltuieli'!$A24,Tranzactii!$E$10:$E$4852,'Colectare date cheltuieli'!$B24) -> 0 | H24: =SUMIFS(Tranzactii!$G$10:$G$4852,Tranzactii!$A$10:$A$4852,H$6,Tranzactii!$D$10:$D$4852,'Colectare date cheltuieli'!$A24,Tranzactii!$E$10:$E$4852,'Colectare date cheltuieli'!$B24) -> 0 | I24: =SUMIFS(Tranzactii!$G$10:$G$4852,Tranzactii!$A$10:$A$4852,I$6,Tranzactii!$D$10:$D$4852,'Colectare date cheltuieli'!$A24,Tranzactii!$E$10:$E$4852,'Colectare date cheltuieli'!$B24) -> 0 | J24: =SUMIFS(Tranzactii!$G$10:$G$4852,Tranzactii!$A$10:$A$4852,J$6,Tranzactii!$D$10:$D$4852,'Colectare date cheltuieli'!$A24,Tranzactii!$E$10:$E$4852,'Colectare date cheltuieli'!$B24) -> 0 | K24: =SUMIFS(Tranzactii!$G$10:$G$4852,Tranzactii!$A$10:$A$4852,K$6,Tranzactii!$D$10:$D$4852,'Colectare date cheltuieli'!$A24,Tranzactii!$E$10:$E$4852,'Colectare date cheltuieli'!$B24) -> 0 | L24: =SUMIFS(Tranzactii!$G$10:$G$4852,Tranzactii!$A$10:$A$4852,L$6,Tranzactii!$D$10:$D$4852,'Colectare date cheltuieli'!$A24,Tranzactii!$E$10:$E$4852,'Colectare date cheltuieli'!$B24) -> 0 | M24: =SUMIFS(Tranzactii!$G$10:$G$4852,Tranzactii!$A$10:$A$4852,M$6,Tranzactii!$D$10:$D$4852,'Colectare date cheltuieli'!$A24,Tranzactii!$E$10:$E$4852,'Colectare date cheltuieli'!$B24) -> 0 | N24: =SUMIFS(Tranzactii!$G$10:$G$4852,Tranzactii!$A$10:$A$4852,N$6,Tranzactii!$D$10:$D$4852,'Colectare date cheltuieli'!$A24,Tranzactii!$E$10:$E$4852,'Colectare date cheltuieli'!$B24) -> 0 | O24: 0 | P24: =IF('Raport Lunar'!$D$3="","",HLOOKUP('Raport Lunar'!$D$3,$A$7:$N$55,Q24,0)) -> 0 | Q24: 18 | R24: =HLOOKUP('Raport Lunar'!$D$3,'VC Previziuni'!$A$12:$N$60,ROWS('Colectare date cheltuieli'!$C$7:C24),0) -> 0 | S24: 0
A25: ='Setare fisier'!I24 -> Cheltuieli casa | B25: ='Setare fisier'!J24 -> Intretinere | C25: =SUMIFS(Tranzactii!$G$10:$G$4852,Tranzactii!$A$10:$A$4852,C$6,Tranzactii!$D$10:$D$4852,'Colectare date cheltuieli'!$A25,Tranzactii!$E$10:$E$4852,'Colectare date cheltuieli'!$B25) -> 0 | D25: =SUMIFS(Tranzactii!$G$10:$G$4852,Tranzactii!$A$10:$A$4852,D$6,Tranzactii!$D$10:$D$4852,'Colectare date cheltuieli'!$A25,Tranzactii!$E$10:$E$4852,'Colectare date cheltuieli'!$B25) -> 0 | E25: =SUMIFS(Tranzactii!$G$10:$G$4852,Tranzactii!$A$10:$A$4852,E$6,Tranzactii!$D$10:$D$4852,'Colectare date cheltuieli'!$A25,Tranzactii!$E$10:$E$4852,'Colectare date cheltuieli'!$B25) -> 0 | F25: =SUMIFS(Tranzactii!$G$10:$G$4852,Tranzactii!$A$10:$A$4852,F$6,Tranzactii!$D$10:$D$4852,'Colectare date cheltuieli'!$A25,Tranzactii!$E$10:$E$4852,'Colectare date cheltuieli'!$B25) -> 0 | G25: =SUMIFS(Tranzactii!$G$10:$G$4852,Tranzactii!$A$10:$A$4852,G$6,Tranzactii!$D$10:$D$4852,'Colectare date cheltuieli'!$A25,Tranzactii!$E$10:$E$4852,'Colectare date cheltuieli'!$B25) -> 0 | H25: =SUMIFS(Tranzactii!$G$10:$G$4852,Tranzactii!$A$10:$A$4852,H$6,Tranzactii!$D$10:$D$4852,'Colectare date cheltuieli'!$A25,Tranzactii!$E$10:$E$4852,'Colectare date cheltuieli'!$B25) -> 0 | I25: =SUMIFS(Tranzactii!$G$10:$G$4852,Tranzactii!$A$10:$A$4852,I$6,Tranzactii!$D$10:$D$4852,'Colectare date cheltuieli'!$A25,Tranzactii!$E$10:$E$4852,'Colectare date cheltuieli'!$B25) -> 0 | J25: =SUMIFS(Tranzactii!$G$10:$G$4852,Tranzactii!$A$10:$A$4852,J$6,Tranzactii!$D$10:$D$4852,'Colectare date cheltuieli'!$A25,Tranzactii!$E$10:$E$4852,'Colectare date cheltuieli'!$B25) -> 0 | K25: =SUMIFS(Tranzactii!$G$10:$G$4852,Tranzactii!$A$10:$A$4852,K$6,Tranzactii!$D$10:$D$4852,'Colectare date cheltuieli'!$A25,Tranzactii!$E$10:$E$4852,'Colectare date cheltuieli'!$B25) -> 0 | L25: =SUMIFS(Tranzactii!$G$10:$G$4852,Tranzactii!$A$10:$A$4852,L$6,Tranzactii!$D$10:$D$4852,'Colectare date cheltuieli'!$A25,Tranzactii!$E$10:$E$4852,'Colectare date cheltuieli'!$B25) -> 0 | M25: =SUMIFS(Tranzactii!$G$10:$G$4852,Tranzactii!$A$10:$A$4852,M$6,Tranzactii!$D$10:$D$4852,'Colectare date cheltuieli'!$A25,Tranzactii!$E$10:$E$4852,'Colectare date cheltuieli'!$B25) -> 0 | N25: =SUMIFS(Tranzactii!$G$10:$G$4852,Tranzactii!$A$10:$A$4852,N$6,Tranzactii!$D$10:$D$4852,'Colectare date cheltuieli'!$A25,Tranzactii!$E$10:$E$4852,'Colectare date cheltuieli'!$B25) -> 0 | O25: 0 | P25: =IF('Raport Lunar'!$D$3="","",HLOOKUP('Raport Lunar'!$D$3,$A$7:$N$55,Q25,0)) -> 0 | Q25: 19 | R25: =HLOOKUP('Raport Lunar'!$D$3,'VC Previziuni'!$A$12:$N$60,ROWS('Colectare date cheltuieli'!$C$7:C25),0) -> 0 | S25: 0
A26: ='Setare fisier'!I25 -> Cheltuieli casa | B26: ='Setare fisier'!J25 -> Telefon | C26: =SUMIFS(Tranzactii!$G$10:$G$4852,Tranzactii!$A$10:$A$4852,C$6,Tranzactii!$D$10:$D$4852,'Colectare date cheltuieli'!$A26,Tranzactii!$E$10:$E$4852,'Colectare date cheltuieli'!$B26) -> 65 | D26: =SUMIFS(Tranzactii!$G$10:$G$4852,Tranzactii!$A$10:$A$4852,D$6,Tranzactii!$D$10:$D$4852,'Colectare date cheltuieli'!$A26,Tranzactii!$E$10:$E$4852,'Colectare date cheltuieli'!$B26) -> 0 | E26: =SUMIFS(Tranzactii!$G$10:$G$4852,Tranzactii!$A$10:$A$4852,E$6,Tranzactii!$D$10:$D$4852,'Colectare date cheltuieli'!$A26,Tranzactii!$E$10:$E$4852,'Colectare date cheltuieli'!$B26) -> 0 | F26: =SUMIFS(Tranzactii!$G$10:$G$4852,Tranzactii!$A$10:$A$4852,F$6,Tranzactii!$D$10:$D$4852,'Colectare date cheltuieli'!$A26,Tranzactii!$E$10:$E$4852,'Colectare date cheltuieli'!$B26) -> 0 | G26: =SUMIFS(Tranzactii!$G$10:$G$4852,Tranzactii!$A$10:$A$4852,G$6,Tranzactii!$D$10:$D$4852,'Colectare date cheltuieli'!$A26,Tranzactii!$E$10:$E$4852,'Colectare date cheltuieli'!$B26) -> 0 | H26: =SUMIFS(Tranzactii!$G$10:$G$4852,Tranzactii!$A$10:$A$4852,H$6,Tranzactii!$D$10:$D$4852,'Colectare date cheltuieli'!$A26,Tranzactii!$E$10:$E$4852,'Colectare date cheltuieli'!$B26) -> 0 | I26: =SUMIFS(Tranzactii!$G$10:$G$4852,Tranzactii!$A$10:$A$4852,I$6,Tranzactii!$D$10:$D$4852,'Colectare date cheltuieli'!$A26,Tranzactii!$E$10:$E$4852,'Colectare date cheltuieli'!$B26) -> 0 | J26: =SUMIFS(Tranzactii!$G$10:$G$4852,Tranzactii!$A$10:$A$4852,J$6,Tranzactii!$D$10:$D$4852,'Colectare date cheltuieli'!$A26,Tranzactii!$E$10:$E$4852,'Colectare date cheltuieli'!$B26) -> 0 | K26: =SUMIFS(Tranzactii!$G$10:$G$4852,Tranzactii!$A$10:$A$4852,K$6,Tranzactii!$D$10:$D$4852,'Colectare date cheltuieli'!$A26,Tranzactii!$E$10:$E$4852,'Colectare date cheltuieli'!$B26) -> 0 | L26: =SUMIFS(Tranzactii!$G$10:$G$4852,Tranzactii!$A$10:$A$4852,L$6,Tranzactii!$D$10:$D$4852,'Colectare date cheltuieli'!$A26,Tranzactii!$E$10:$E$4852,'Colectare date cheltuieli'!$B26) -> 0 | M26: =SUMIFS(Tranzactii!$G$10:$G$4852,Tranzactii!$A$10:$A$4852,M$6,Tranzactii!$D$10:$D$4852,'Colectare date cheltuieli'!$A26,Tranzactii!$E$10:$E$4852,'Colectare date cheltuieli'!$B26) -> 0 | N26: =SUMIFS(Tranzactii!$G$10:$G$4852,Tranzactii!$A$10:$A$4852,N$6,Tranzactii!$D$10:$D$4852,'Colectare date cheltuieli'!$A26,Tranzactii!$E$10:$E$4852,'Colectare date cheltuieli'!$B26) -> 0 | O26: 65 | P26: =IF('Raport Lunar'!$D$3="","",HLOOKUP('Raport Lunar'!$D$3,$A$7:$N$55,Q26,0)) -> 0 | Q26: 20 | R26: =HLOOKUP('Raport Lunar'!$D$3,'VC Previziuni'!$A$12:$N$60,ROWS('Colectare date cheltuieli'!$C$7:C26),0) -> 75 | S26: 75
A27: ='Setare fisier'!I26 -> Cheltuieli copil | B27: ='Setare fisier'!J26 -> Alte cheltuieli | C27: =SUMIFS(Tranzactii!$G$10:$G$4852,Tranzactii!$A$10:$A$4852,C$6,Tranzactii!$D$10:$D$4852,'Colectare date cheltuieli'!$A27,Tranzactii!$E$10:$E$4852,'Colectare date cheltuieli'!$B27) -> 0 | D27: =SUMIFS(Tranzactii!$G$10:$G$4852,Tranzactii!$A$10:$A$4852,D$6,Tranzactii!$D$10:$D$4852,'Colectare date cheltuieli'!$A27,Tranzactii!$E$10:$E$4852,'Colectare date cheltuieli'!$B27) -> 0 | E27: =SUMIFS(Tranzactii!$G$10:$G$4852,Tranzactii!$A$10:$A$4852,E$6,Tranzactii!$D$10:$D$4852,'Colectare date cheltuieli'!$A27,Tranzactii!$E$10:$E$4852,'Colectare date cheltuieli'!$B27) -> 0 | F27: =SUMIFS(Tranzactii!$G$10:$G$4852,Tranzactii!$A$10:$A$4852,F$6,Tranzactii!$D$10:$D$4852,'Colectare date cheltuieli'!$A27,Tranzactii!$E$10:$E$4852,'Colectare date cheltuieli'!$B27) -> 0 | G27: =SUMIFS(Tranzactii!$G$10:$G$4852,Tranzactii!$A$10:$A$4852,G$6,Tranzactii!$D$10:$D$4852,'Colectare date cheltuieli'!$A27,Tranzactii!$E$10:$E$4852,'Colectare date cheltuieli'!$B27) -> 0 | H27: =SUMIFS(Tranzactii!$G$10:$G$4852,Tranzactii!$A$10:$A$4852,H$6,Tranzactii!$D$10:$D$4852,'Colectare date cheltuieli'!$A27,Tranzactii!$E$10:$E$4852,'Colectare date cheltuieli'!$B27) -> 0 | I27: =SUMIFS(Tranzactii!$G$10:$G$4852,Tranzactii!$A$10:$A$4852,I$6,Tranzactii!$D$10:$D$4852,'Colectare date cheltuieli'!$A27,Tranzactii!$E$10:$E$4852,'Colectare date cheltuieli'!$B27) -> 0 | J27: =SUMIFS(Tranzactii!$G$10:$G$4852,Tranzactii!$A$10:$A$4852,J$6,Tranzactii!$D$10:$D$4852,'Colectare date cheltuieli'!$A27,Tranzactii!$E$10:$E$4852,'Colectare date cheltuieli'!$B27) -> 0 | K27: =SUMIFS(Tranzactii!$G$10:$G$4852,Tranzactii!$A$10:$A$4852,K$6,Tranzactii!$D$10:$D$4852,'Colectare date cheltuieli'!$A27,Tranzactii!$E$10:$E$4852,'Colectare date cheltuieli'!$B27) -> 0 | L27: =SUMIFS(Tranzactii!$G$10:$G$4852,Tranzactii!$A$10:$A$4852,L$6,Tranzactii!$D$10:$D$4852,'Colectare date cheltuieli'!$A27,Tranzactii!$E$10:$E$4852,'Colectare date cheltuieli'!$B27) -> 0 | M27: =SUMIFS(Tranzactii!$G$10:$G$4852,Tranzactii!$A$10:$A$4852,M$6,Tranzactii!$D$10:$D$4852,'Colectare date cheltuieli'!$A27,Tranzactii!$E$10:$E$4852,'Colectare date cheltuieli'!$B27) -> 0 | N27: =SUMIFS(Tranzactii!$G$10:$G$4852,Tranzactii!$A$10:$A$4852,N$6,Tranzactii!$D$10:$D$4852,'Colectare date cheltuieli'!$A27,Tranzactii!$E$10:$E$4852,'Colectare date cheltuieli'!$B27) -> 0 | O27: 0 | P27: =IF('Raport Lunar'!$D$3="","",HLOOKUP('Raport Lunar'!$D$3,$A$7:$N$55,Q27,0)) -> 0 | Q27: 21 | R27: =HLOOKUP('Raport Lunar'!$D$3,'VC Previziuni'!$A$12:$N$60,ROWS('Colectare date cheltuieli'!$C$7:C27),0) -> 0 | S27: 0
A28: ='Setare fisier'!I27 -> Cheltuieli copil | B28: ='Setare fisier'!J27 -> Bona | C28: =SUMIFS(Tranzactii!$G$10:$G$4852,Tranzactii!$A$10:$A$4852,C$6,Tranzactii!$D$10:$D$4852,'Colectare date cheltuieli'!$A28,Tranzactii!$E$10:$E$4852,'Colectare date cheltuieli'!$B28) -> 0 | D28: =SUMIFS(Tranzactii!$G$10:$G$4852,Tranzactii!$A$10:$A$4852,D$6,Tranzactii!$D$10:$D$4852,'Colectare date cheltuieli'!$A28,Tranzactii!$E$10:$E$4852,'Colectare date cheltuieli'!$B28) -> 0 | E28: =SUMIFS(Tranzactii!$G$10:$G$4852,Tranzactii!$A$10:$A$4852,E$6,Tranzactii!$D$10:$D$4852,'Colectare date cheltuieli'!$A28,Tranzactii!$E$10:$E$4852,'Colectare date cheltuieli'!$B28) -> 0 | F28: =SUMIFS(Tranzactii!$G$10:$G$4852,Tranzactii!$A$10:$A$4852,F$6,Tranzactii!$D$10:$D$4852,'Colectare date cheltuieli'!$A28,Tranzactii!$E$10:$E$4852,'Colectare date cheltuieli'!$B28) -> 0 | G28: =SUMIFS(Tranzactii!$G$10:$G$4852,Tranzactii!$A$10:$A$4852,G$6,Tranzactii!$D$10:$D$4852,'Colectare date cheltuieli'!$A28,Tranzactii!$E$10:$E$4852,'Colectare date cheltuieli'!$B28) -> 0 | H28: =SUMIFS(Tranzactii!$G$10:$G$4852,Tranzactii!$A$10:$A$4852,H$6,Tranzactii!$D$10:$D$4852,'Colectare date cheltuieli'!$A28,Tranzactii!$E$10:$E$4852,'Colectare date cheltuieli'!$B28) -> 0 | I28: =SUMIFS(Tranzactii!$G$10:$G$4852,Tranzactii!$A$10:$A$4852,I$6,Tranzactii!$D$10:$D$4852,'Colectare date cheltuieli'!$A28,Tranzactii!$E$10:$E$4852,'Colectare date cheltuieli'!$B28) -> 0 | J28: =SUMIFS(Tranzactii!$G$10:$G$4852,Tranzactii!$A$10:$A$4852,J$6,Tranzactii!$D$10:$D$4852,'Colectare date cheltuieli'!$A28,Tranzactii!$E$10:$E$4852,'Colectare date cheltuieli'!$B28) -> 0 | K28: =SUMIFS(Tranzactii!$G$10:$G$4852,Tranzactii!$A$10:$A$4852,K$6,Tranzactii!$D$10:$D$4852,'Colectare date cheltuieli'!$A28,Tranzactii!$E$10:$E$4852,'Colectare date cheltuieli'!$B28) -> 0 | L28: =SUMIFS(Tranzactii!$G$10:$G$4852,Tranzactii!$A$10:$A$4852,L$6,Tranzactii!$D$10:$D$4852,'Colectare date cheltuieli'!$A28,Tranzactii!$E$10:$E$4852,'Colectare date cheltuieli'!$B28) -> 0 | M28: =SUMIFS(Tranzactii!$G$10:$G$4852,Tranzactii!$A$10:$A$4852,M$6,Tranzactii!$D$10:$D$4852,'Colectare date cheltuieli'!$A28,Tranzactii!$E$10:$E$4852,'Colectare date cheltuieli'!$B28) -> 0 | N28: =SUMIFS(Tranzactii!$G$10:$G$4852,Tranzactii!$A$10:$A$4852,N$6,Tranzactii!$D$10:$D$4852,'Colectare date cheltuieli'!$A28,Tranzactii!$E$10:$E$4852,'Colectare date cheltuieli'!$B28) -> 0 | O28: 0 | P28: =IF('Raport Lunar'!$D$3="","",HLOOKUP('Raport Lunar'!$D$3,$A$7:$N$55,Q28,0)) -> 0 | Q28: 22 | R28: =HLOOKUP('Raport Lunar'!$D$3,'VC Previziuni'!$A$12:$N$60,ROWS('Colectare date cheltuieli'!$C$7:C28),0) -> 0 | S28: =R28-P28 -> 0
A29: ='Setare fisier'!I28 -> Cheltuieli copil | B29: ='Setare fisier'!J28 -> Gradinita | C29: =SUMIFS(Tranzactii!$G$10:$G$4852,Tranzactii!$A$10:$A$4852,C$6,Tranzactii!$D$10:$D$4852,'Colectare date cheltuieli'!$A29,Tranzactii!$E$10:$E$4852,'Colectare date cheltuieli'!$B29) -> 0 | D29: =SUMIFS(Tranzactii!$G$10:$G$4852,Tranzactii!$A$10:$A$4852,D$6,Tranzactii!$D$10:$D$4852,'Colectare date cheltuieli'!$A29,Tranzactii!$E$10:$E$4852,'Colectare date cheltuieli'!$B29) -> 0 | E29: =SUMIFS(Tranzactii!$G$10:$G$4852,Tranzactii!$A$10:$A$4852,E$6,Tranzactii!$D$10:$D$4852,'Colectare date cheltuieli'!$A29,Tranzactii!$E$10:$E$4852,'Colectare date cheltuieli'!$B29) -> 0 | F29: =SUMIFS(Tranzactii!$G$10:$G$4852,Tranzactii!$A$10:$A$4852,F$6,Tranzactii!$D$10:$D$4852,'Colectare date cheltuieli'!$A29,Tranzactii!$E$10:$E$4852,'Colectare date cheltuieli'!$B29) -> 0 | G29: =SUMIFS(Tranzactii!$G$10:$G$4852,Tranzactii!$A$10:$A$4852,G$6,Tranzactii!$D$10:$D$4852,'Colectare date cheltuieli'!$A29,Tranzactii!$E$10:$E$4852,'Colectare date cheltuieli'!$B29) -> 0 | H29: =SUMIFS(Tranzactii!$G$10:$G$4852,Tranzactii!$A$10:$A$4852,H$6,Tranzactii!$D$10:$D$4852,'Colectare date cheltuieli'!$A29,Tranzactii!$E$10:$E$4852,'Colectare date cheltuieli'!$B29) -> 0 | I29: =SUMIFS(Tranzactii!$G$10:$G$4852,Tranzactii!$A$10:$A$4852,I$6,Tranzactii!$D$10:$D$4852,'Colectare date cheltuieli'!$A29,Tranzactii!$E$10:$E$4852,'Colectare date cheltuieli'!$B29) -> 0 | J29: =SUMIFS(Tranzactii!$G$10:$G$4852,Tranzactii!$A$10:$A$4852,J$6,Tranzactii!$D$10:$D$4852,'Colectare date cheltuieli'!$A29,Tranzactii!$E$10:$E$4852,'Colectare date cheltuieli'!$B29) -> 0 | K29: =SUMIFS(Tranzactii!$G$10:$G$4852,Tranzactii!$A$10:$A$4852,K$6,Tranzactii!$D$10:$D$4852,'Colectare date cheltuieli'!$A29,Tranzactii!$E$10:$E$4852,'Colectare date cheltuieli'!$B29) -> 0 | L29: =SUMIFS(Tranzactii!$G$10:$G$4852,Tranzactii!$A$10:$A$4852,L$6,Tranzactii!$D$10:$D$4852,'Colectare date cheltuieli'!$A29,Tranzactii!$E$10:$E$4852,'Colectare date cheltuieli'!$B29) -> 0 | M29: =SUMIFS(Tranzactii!$G$10:$G$4852,Tranzactii!$A$10:$A$4852,M$6,Tranzactii!$D$10:$D$4852,'Colectare date cheltuieli'!$A29,Tranzactii!$E$10:$E$4852,'Colectare date cheltuieli'!$B29) -> 0 | N29: =SUMIFS(Tranzactii!$G$10:$G$4852,Tranzactii!$A$10:$A$4852,N$6,Tranzactii!$D$10:$D$4852,'Colectare date cheltuieli'!$A29,Tranzactii!$E$10:$E$4852,'Colectare date cheltuieli'!$B29) -> 0 | O29: 0 | P29: =IF('Raport Lunar'!$D$3="","",HLOOKUP('Raport Lunar'!$D$3,$A$7:$N$55,Q29,0)) -> 0 | Q29: 23 | R29: =HLOOKUP('Raport Lunar'!$D$3,'VC Previziuni'!$A$12:$N$60,ROWS('Colectare date cheltuieli'!$C$7:C29),0) -> 0 | S29: 0
A30: ='Setare fisier'!I29 -> Cheltuieli copil | B30: ='Setare fisier'!J29 -> Imbracaminte | C30: =SUMIFS(Tranzactii!$G$10:$G$4852,Tranzactii!$A$10:$A$4852,C$6,Tranzactii!$D$10:$D$4852,'Colectare date cheltuieli'!$A30,Tranzactii!$E$10:$E$4852,'Colectare date cheltuieli'!$B30) -> 170 | D30: =SUMIFS(Tranzactii!$G$10:$G$4852,Tranzactii!$A$10:$A$4852,D$6,Tranzactii!$D$10:$D$4852,'Colectare date cheltuieli'!$A30,Tranzactii!$E$10:$E$4852,'Colectare date cheltuieli'!$B30) -> 0 | E30: =SUMIFS(Tranzactii!$G$10:$G$4852,Tranzactii!$A$10:$A$4852,E$6,Tranzactii!$D$10:$D$4852,'Colectare date cheltuieli'!$A30,Tranzactii!$E$10:$E$4852,'Colectare date cheltuieli'!$B30) -> 0 | F30: =SUMIFS(Tranzactii!$G$10:$G$4852,Tranzactii!$A$10:$A$4852,F$6,Tranzactii!$D$10:$D$4852,'Colectare date cheltuieli'!$A30,Tranzactii!$E$10:$E$4852,'Colectare date cheltuieli'!$B30) -> 0 | G30: =SUMIFS(Tranzactii!$G$10:$G$4852,Tranzactii!$A$10:$A$4852,G$6,Tranzactii!$D$10:$D$4852,'Colectare date cheltuieli'!$A30,Tranzactii!$E$10:$E$4852,'Colectare date cheltuieli'!$B30) -> 0 | H30: =SUMIFS(Tranzactii!$G$10:$G$4852,Tranzactii!$A$10:$A$4852,H$6,Tranzactii!$D$10:$D$4852,'Colectare date cheltuieli'!$A30,Tranzactii!$E$10:$E$4852,'Colectare date cheltuieli'!$B30) -> 0 | I30: =SUMIFS(Tranzactii!$G$10:$G$4852,Tranzactii!$A$10:$A$4852,I$6,Tranzactii!$D$10:$D$4852,'Colectare date cheltuieli'!$A30,Tranzactii!$E$10:$E$4852,'Colectare date cheltuieli'!$B30) -> 0 | J30: =SUMIFS(Tranzactii!$G$10:$G$4852,Tranzactii!$A$10:$A$4852,J$6,Tranzactii!$D$10:$D$4852,'Colectare date cheltuieli'!$A30,Tranzactii!$E$10:$E$4852,'Colectare date cheltuieli'!$B30) -> 0 | K30: =SUMIFS(Tranzactii!$G$10:$G$4852,Tranzactii!$A$10:$A$4852,K$6,Tranzactii!$D$10:$D$4852,'Colectare date cheltuieli'!$A30,Tranzactii!$E$10:$E$4852,'Colectare date cheltuieli'!$B30) -> 0 | L30: =SUMIFS(Tranzactii!$G$10:$G$4852,Tranzactii!$A$10:$A$4852,L$6,Tranzactii!$D$10:$D$4852,'Colectare date cheltuieli'!$A30,Tranzactii!$E$10:$E$4852,'Colectare date cheltuieli'!$B30) -> 0 | M30: =SUMIFS(Tranzactii!$G$10:$G$4852,Tranzactii!$A$10:$A$4852,M$6,Tranzactii!$D$10:$D$4852,'Colectare date cheltuieli'!$A30,Tranzactii!$E$10:$E$4852,'Colectare date cheltuieli'!$B30) -> 0 | N30: =SUMIFS(Tranzactii!$G$10:$G$4852,Tranzactii!$A$10:$A$4852,N$6,Tranzactii!$D$10:$D$4852,'Colectare date cheltuieli'!$A30,Tranzactii!$E$10:$E$4852,'Colectare date cheltuieli'!$B30) -> 0 | O30: 170 | P30: =IF('Raport Lunar'!$D$3="","",HLOOKUP('Raport Lunar'!$D$3,$A$7:$N$55,Q30,0)) -> 0 | Q30: 24 | R30: =HLOOKUP('Raport Lunar'!$D$3,'VC Previziuni'!$A$12:$N$60,ROWS('Colectare date cheltuieli'!$C$7:C30),0) -> 0 | S30: 0
A31: ='Setare fisier'!I30 -> Cheltuieli copil | B31: ='Setare fisier'!J30 -> Jucarii | C31: =SUMIFS(Tranzactii!$G$10:$G$4852,Tranzactii!$A$10:$A$4852,C$6,Tranzactii!$D$10:$D$4852,'Colectare date cheltuieli'!$A31,Tranzactii!$E$10:$E$4852,'Colectare date cheltuieli'!$B31) -> 0 | D31: =SUMIFS(Tranzactii!$G$10:$G$4852,Tranzactii!$A$10:$A$4852,D$6,Tranzactii!$D$10:$D$4852,'Colectare date cheltuieli'!$A31,Tranzactii!$E$10:$E$4852,'Colectare date cheltuieli'!$B31) -> 0 | E31: =SUMIFS(Tranzactii!$G$10:$G$4852,Tranzactii!$A$10:$A$4852,E$6,Tranzactii!$D$10:$D$4852,'Colectare date cheltuieli'!$A31,Tranzactii!$E$10:$E$4852,'Colectare date cheltuieli'!$B31) -> 0 | F31: =SUMIFS(Tranzactii!$G$10:$G$4852,Tranzactii!$A$10:$A$4852,F$6,Tranzactii!$D$10:$D$4852,'Colectare date cheltuieli'!$A31,Tranzactii!$E$10:$E$4852,'Colectare date cheltuieli'!$B31) -> 0 | G31: =SUMIFS(Tranzactii!$G$10:$G$4852,Tranzactii!$A$10:$A$4852,G$6,Tranzactii!$D$10:$D$4852,'Colectare date cheltuieli'!$A31,Tranzactii!$E$10:$E$4852,'Colectare date cheltuieli'!$B31) -> 0 | H31: =SUMIFS(Tranzactii!$G$10:$G$4852,Tranzactii!$A$10:$A$4852,H$6,Tranzactii!$D$10:$D$4852,'Colectare date cheltuieli'!$A31,Tranzactii!$E$10:$E$4852,'Colectare date cheltuieli'!$B31) -> 0 | I31: =SUMIFS(Tranzactii!$G$10:$G$4852,Tranzactii!$A$10:$A$4852,I$6,Tranzactii!$D$10:$D$4852,'Colectare date cheltuieli'!$A31,Tranzactii!$E$10:$E$4852,'Colectare date cheltuieli'!$B31) -> 0 | J31: =SUMIFS(Tranzactii!$G$10:$G$4852,Tranzactii!$A$10:$A$4852,J$6,Tranzactii!$D$10:$D$4852,'Colectare date cheltuieli'!$A31,Tranzactii!$E$10:$E$4852,'Colectare date cheltuieli'!$B31) -> 0 | K31: =SUMIFS(Tranzactii!$G$10:$G$4852,Tranzactii!$A$10:$A$4852,K$6,Tranzactii!$D$10:$D$4852,'Colectare date cheltuieli'!$A31,Tranzactii!$E$10:$E$4852,'Colectare date cheltuieli'!$B31) -> 0 | L31: =SUMIFS(Tranzactii!$G$10:$G$4852,Tranzactii!$A$10:$A$4852,L$6,Tranzactii!$D$10:$D$4852,'Colectare date cheltuieli'!$A31,Tranzactii!$E$10:$E$4852,'Colectare date cheltuieli'!$B31) -> 0 | M31: =SUMIFS(Tranzactii!$G$10:$G$4852,Tranzactii!$A$10:$A$4852,M$6,Tranzactii!$D$10:$D$4852,'Colectare date cheltuieli'!$A31,Tranzactii!$E$10:$E$4852,'Colectare date cheltuieli'!$B31) -> 0 | N31: =SUMIFS(Tranzactii!$G$10:$G$4852,Tranzactii!$A$10:$A$4852,N$6,Tranzactii!$D$10:$D$4852,'Colectare date cheltuieli'!$A31,Tranzactii!$E$10:$E$4852,'Colectare date cheltuieli'!$B31) -> 0 | O31: 0 | P31: =IF('Raport Lunar'!$D$3="","",HLOOKUP('Raport Lunar'!$D$3,$A$7:$N$55,Q31,0)) -> 0 | Q31: 25 | R31: =HLOOKUP('Raport Lunar'!$D$3,'VC Previziuni'!$A$12:$N$60,ROWS('Colectare date cheltuieli'!$C$7:C31),0) -> 0 | S31: 0
A32: ='Setare fisier'!I31 -> Cheltuieli copil | B32: ='Setare fisier'!J31 -> Medical | C32: =SUMIFS(Tranzactii!$G$10:$G$4852,Tranzactii!$A$10:$A$4852,C$6,Tranzactii!$D$10:$D$4852,'Colectare date cheltuieli'!$A32,Tranzactii!$E$10:$E$4852,'Colectare date cheltuieli'!$B32) -> 0 | D32: =SUMIFS(Tranzactii!$G$10:$G$4852,Tranzactii!$A$10:$A$4852,D$6,Tranzactii!$D$10:$D$4852,'Colectare date cheltuieli'!$A32,Tranzactii!$E$10:$E$4852,'Colectare date cheltuieli'!$B32) -> 0 | E32: =SUMIFS(Tranzactii!$G$10:$G$4852,Tranzactii!$A$10:$A$4852,E$6,Tranzactii!$D$10:$D$4852,'Colectare date cheltuieli'!$A32,Tranzactii!$E$10:$E$4852,'Colectare date cheltuieli'!$B32) -> 0 | F32: =SUMIFS(Tranzactii!$G$10:$G$4852,Tranzactii!$A$10:$A$4852,F$6,Tranzactii!$D$10:$D$4852,'Colectare date cheltuieli'!$A32,Tranzactii!$E$10:$E$4852,'Colectare date cheltuieli'!$B32) -> 0 | G32: =SUMIFS(Tranzactii!$G$10:$G$4852,Tranzactii!$A$10:$A$4852,G$6,Tranzactii!$D$10:$D$4852,'Colectare date cheltuieli'!$A32,Tranzactii!$E$10:$E$4852,'Colectare date cheltuieli'!$B32) -> 0 | H32: =SUMIFS(Tranzactii!$G$10:$G$4852,Tranzactii!$A$10:$A$4852,H$6,Tranzactii!$D$10:$D$4852,'Colectare date cheltuieli'!$A32,Tranzactii!$E$10:$E$4852,'Colectare date cheltuieli'!$B32) -> 0 | I32: =SUMIFS(Tranzactii!$G$10:$G$4852,Tranzactii!$A$10:$A$4852,I$6,Tranzactii!$D$10:$D$4852,'Colectare date cheltuieli'!$A32,Tranzactii!$E$10:$E$4852,'Colectare date cheltuieli'!$B32) -> 0 | J32: =SUMIFS(Tranzactii!$G$10:$G$4852,Tranzactii!$A$10:$A$4852,J$6,Tranzactii!$D$10:$D$4852,'Colectare date cheltuieli'!$A32,Tranzactii!$E$10:$E$4852,'Colectare date cheltuieli'!$B32) -> 0 | K32: =SUMIFS(Tranzactii!$G$10:$G$4852,Tranzactii!$A$10:$A$4852,K$6,Tranzactii!$D$10:$D$4852,'Colectare date cheltuieli'!$A32,Tranzactii!$E$10:$E$4852,'Colectare date cheltuieli'!$B32) -> 0 | L32: =SUMIFS(Tranzactii!$G$10:$G$4852,Tranzactii!$A$10:$A$4852,L$6,Tranzactii!$D$10:$D$4852,'Colectare date cheltuieli'!$A32,Tranzactii!$E$10:$E$4852,'Colectare date cheltuieli'!$B32) -> 0 | M32: =SUMIFS(Tranzactii!$G$10:$G$4852,Tranzactii!$A$10:$A$4852,M$6,Tranzactii!$D$10:$D$4852,'Colectare date cheltuieli'!$A32,Tranzactii!$E$10:$E$4852,'Colectare date cheltuieli'!$B32) -> 0 | N32: =SUMIFS(Tranzactii!$G$10:$G$4852,Tranzactii!$A$10:$A$4852,N$6,Tranzactii!$D$10:$D$4852,'Colectare date cheltuieli'!$A32,Tranzactii!$E$10:$E$4852,'Colectare date cheltuieli'!$B32) -> 0 | O32: 0 | P32: =IF('Raport Lunar'!$D$3="","",HLOOKUP('Raport Lunar'!$D$3,$A$7:$N$55,Q32,0)) -> 0 | Q32: 26 | R32: =HLOOKUP('Raport Lunar'!$D$3,'VC Previziuni'!$A$12:$N$60,ROWS('Colectare date cheltuieli'!$C$7:C32),0) -> 0 | S32: 0
A33: ='Setare fisier'!I32 -> Cheltuieli exceptionale | B33: ='Setare fisier'!J32 -> Alte cheltuieli exceptionale | C33: =SUMIFS(Tranzactii!$G$10:$G$4852,Tranzactii!$A$10:$A$4852,C$6,Tranzactii!$D$10:$D$4852,'Colectare date cheltuieli'!$A33,Tranzactii!$E$10:$E$4852,'Colectare date cheltuieli'!$B33) -> 0 | D33: =SUMIFS(Tranzactii!$G$10:$G$4852,Tranzactii!$A$10:$A$4852,D$6,Tranzactii!$D$10:$D$4852,'Colectare date cheltuieli'!$A33,Tranzactii!$E$10:$E$4852,'Colectare date cheltuieli'!$B33) -> 0 | E33: =SUMIFS(Tranzactii!$G$10:$G$4852,Tranzactii!$A$10:$A$4852,E$6,Tranzactii!$D$10:$D$4852,'Colectare date cheltuieli'!$A33,Tranzactii!$E$10:$E$4852,'Colectare date cheltuieli'!$B33) -> 0 | F33: =SUMIFS(Tranzactii!$G$10:$G$4852,Tranzactii!$A$10:$A$4852,F$6,Tranzactii!$D$10:$D$4852,'Colectare date cheltuieli'!$A33,Tranzactii!$E$10:$E$4852,'Colectare date cheltuieli'!$B33) -> 0 | G33: =SUMIFS(Tranzactii!$G$10:$G$4852,Tranzactii!$A$10:$A$4852,G$6,Tranzactii!$D$10:$D$4852,'Colectare date cheltuieli'!$A33,Tranzactii!$E$10:$E$4852,'Colectare date cheltuieli'!$B33) -> 0 | H33: =SUMIFS(Tranzactii!$G$10:$G$4852,Tranzactii!$A$10:$A$4852,H$6,Tranzactii!$D$10:$D$4852,'Colectare date cheltuieli'!$A33,Tranzactii!$E$10:$E$4852,'Colectare date cheltuieli'!$B33) -> 0 | I33: =SUMIFS(Tranzactii!$G$10:$G$4852,Tranzactii!$A$10:$A$4852,I$6,Tranzactii!$D$10:$D$4852,'Colectare date cheltuieli'!$A33,Tranzactii!$E$10:$E$4852,'Colectare date cheltuieli'!$B33) -> 0 | J33: =SUMIFS(Tranzactii!$G$10:$G$4852,Tranzactii!$A$10:$A$4852,J$6,Tranzactii!$D$10:$D$4852,'Colectare date cheltuieli'!$A33,Tranzactii!$E$10:$E$4852,'Colectare date cheltuieli'!$B33) -> 0 | K33: =SUMIFS(Tranzactii!$G$10:$G$4852,Tranzactii!$A$10:$A$4852,K$6,Tranzactii!$D$10:$D$4852,'Colectare date cheltuieli'!$A33,Tranzactii!$E$10:$E$4852,'Colectare date cheltuieli'!$B33) -> 0 | L33: =SUMIFS(Tranzactii!$G$10:$G$4852,Tranzactii!$A$10:$A$4852,L$6,Tranzactii!$D$10:$D$4852,'Colectare date cheltuieli'!$A33,Tranzactii!$E$10:$E$4852,'Colectare date cheltuieli'!$B33) -> 0 | M33: =SUMIFS(Tranzactii!$G$10:$G$4852,Tranzactii!$A$10:$A$4852,M$6,Tranzactii!$D$10:$D$4852,'Colectare date cheltuieli'!$A33,Tranzactii!$E$10:$E$4852,'Colectare date cheltuieli'!$B33) -> 0 | N33: =SUMIFS(Tranzactii!$G$10:$G$4852,Tranzactii!$A$10:$A$4852,N$6,Tranzactii!$D$10:$D$4852,'Colectare date cheltuieli'!$A33,Tranzactii!$E$10:$E$4852,'Colectare date cheltuieli'!$B33) -> 0 | O33: 0 | P33: =IF('Raport Lunar'!$D$3="","",HLOOKUP('Raport Lunar'!$D$3,$A$7:$N$55,Q33,0)) -> 0 | Q33: 27 | R33: =HLOOKUP('Raport Lunar'!$D$3,'VC Previziuni'!$A$12:$N$60,ROWS('Colectare date cheltuieli'!$C$7:C33),0) -> 0 | S33: 0
A34: ='Setare fisier'!I33 -> Cheltuieli exceptionale | B34: ='Setare fisier'!J33 -> Cadou | C34: =SUMIFS(Tranzactii!$G$10:$G$4852,Tranzactii!$A$10:$A$4852,C$6,Tranzactii!$D$10:$D$4852,'Colectare date cheltuieli'!$A34,Tranzactii!$E$10:$E$4852,'Colectare date cheltuieli'!$B34) -> 220 | D34: =SUMIFS(Tranzactii!$G$10:$G$4852,Tranzactii!$A$10:$A$4852,D$6,Tranzactii!$D$10:$D$4852,'Colectare date cheltuieli'!$A34,Tranzactii!$E$10:$E$4852,'Colectare date cheltuieli'!$B34) -> 0 | E34: =SUMIFS(Tranzactii!$G$10:$G$4852,Tranzactii!$A$10:$A$4852,E$6,Tranzactii!$D$10:$D$4852,'Colectare date cheltuieli'!$A34,Tranzactii!$E$10:$E$4852,'Colectare date cheltuieli'!$B34) -> 0 | F34: =SUMIFS(Tranzactii!$G$10:$G$4852,Tranzactii!$A$10:$A$4852,F$6,Tranzactii!$D$10:$D$4852,'Colectare date cheltuieli'!$A34,Tranzactii!$E$10:$E$4852,'Colectare date cheltuieli'!$B34) -> 0 | G34: =SUMIFS(Tranzactii!$G$10:$G$4852,Tranzactii!$A$10:$A$4852,G$6,Tranzactii!$D$10:$D$4852,'Colectare date cheltuieli'!$A34,Tranzactii!$E$10:$E$4852,'Colectare date cheltuieli'!$B34) -> 0 | H34: =SUMIFS(Tranzactii!$G$10:$G$4852,Tranzactii!$A$10:$A$4852,H$6,Tranzactii!$D$10:$D$4852,'Colectare date cheltuieli'!$A34,Tranzactii!$E$10:$E$4852,'Colectare date cheltuieli'!$B34) -> 0 | I34: =SUMIFS(Tranzactii!$G$10:$G$4852,Tranzactii!$A$10:$A$4852,I$6,Tranzactii!$D$10:$D$4852,'Colectare date cheltuieli'!$A34,Tranzactii!$E$10:$E$4852,'Colectare date cheltuieli'!$B34) -> 0 | J34: =SUMIFS(Tranzactii!$G$10:$G$4852,Tranzactii!$A$10:$A$4852,J$6,Tranzactii!$D$10:$D$4852,'Colectare date cheltuieli'!$A34,Tranzactii!$E$10:$E$4852,'Colectare date cheltuieli'!$B34) -> 0 | K34: =SUMIFS(Tranzactii!$G$10:$G$4852,Tranzactii!$A$10:$A$4852,K$6,Tranzactii!$D$10:$D$4852,'Colectare date cheltuieli'!$A34,Tranzactii!$E$10:$E$4852,'Colectare date cheltuieli'!$B34) -> 0 | L34: =SUMIFS(Tranzactii!$G$10:$G$4852,Tranzactii!$A$10:$A$4852,L$6,Tranzactii!$D$10:$D$4852,'Colectare date cheltuieli'!$A34,Tranzactii!$E$10:$E$4852,'Colectare date cheltuieli'!$B34) -> 0 | M34: =SUMIFS(Tranzactii!$G$10:$G$4852,Tranzactii!$A$10:$A$4852,M$6,Tranzactii!$D$10:$D$4852,'Colectare date cheltuieli'!$A34,Tranzactii!$E$10:$E$4852,'Colectare date cheltuieli'!$B34) -> 0 | N34: =SUMIFS(Tranzactii!$G$10:$G$4852,Tranzactii!$A$10:$A$4852,N$6,Tranzactii!$D$10:$D$4852,'Colectare date cheltuieli'!$A34,Tranzactii!$E$10:$E$4852,'Colectare date cheltuieli'!$B34) -> 0 | O34: 220 | P34: =IF('Raport Lunar'!$D$3="","",HLOOKUP('Raport Lunar'!$D$3,$A$7:$N$55,Q34,0)) -> 0 | Q34: 28 | R34: =HLOOKUP('Raport Lunar'!$D$3,'VC Previziuni'!$A$12:$N$60,ROWS('Colectare date cheltuieli'!$C$7:C34),0) -> 150 | S34: 150
A35: ='Setare fisier'!I34 -> Cheltuieli vacanta | B35: ='Setare fisier'!J34 -> Cazare | C35: =SUMIFS(Tranzactii!$G$10:$G$4852,Tranzactii!$A$10:$A$4852,C$6,Tranzactii!$D$10:$D$4852,'Colectare date cheltuieli'!$A35,Tranzactii!$E$10:$E$4852,'Colectare date cheltuieli'!$B35) -> 1000 | D35: =SUMIFS(Tranzactii!$G$10:$G$4852,Tranzactii!$A$10:$A$4852,D$6,Tranzactii!$D$10:$D$4852,'Colectare date cheltuieli'!$A35,Tranzactii!$E$10:$E$4852,'Colectare date cheltuieli'!$B35) -> 0 | E35: =SUMIFS(Tranzactii!$G$10:$G$4852,Tranzactii!$A$10:$A$4852,E$6,Tranzactii!$D$10:$D$4852,'Colectare date cheltuieli'!$A35,Tranzactii!$E$10:$E$4852,'Colectare date cheltuieli'!$B35) -> 0 | F35: =SUMIFS(Tranzactii!$G$10:$G$4852,Tranzactii!$A$10:$A$4852,F$6,Tranzactii!$D$10:$D$4852,'Colectare date cheltuieli'!$A35,Tranzactii!$E$10:$E$4852,'Colectare date cheltuieli'!$B35) -> 0 | G35: =SUMIFS(Tranzactii!$G$10:$G$4852,Tranzactii!$A$10:$A$4852,G$6,Tranzactii!$D$10:$D$4852,'Colectare date cheltuieli'!$A35,Tranzactii!$E$10:$E$4852,'Colectare date cheltuieli'!$B35) -> 0 | H35: =SUMIFS(Tranzactii!$G$10:$G$4852,Tranzactii!$A$10:$A$4852,H$6,Tranzactii!$D$10:$D$4852,'Colectare date cheltuieli'!$A35,Tranzactii!$E$10:$E$4852,'Colectare date cheltuieli'!$B35) -> 0 | I35: =SUMIFS(Tranzactii!$G$10:$G$4852,Tranzactii!$A$10:$A$4852,I$6,Tranzactii!$D$10:$D$4852,'Colectare date cheltuieli'!$A35,Tranzactii!$E$10:$E$4852,'Colectare date cheltuieli'!$B35) -> 0 | J35: =SUMIFS(Tranzactii!$G$10:$G$4852,Tranzactii!$A$10:$A$4852,J$6,Tranzactii!$D$10:$D$4852,'Colectare date cheltuieli'!$A35,Tranzactii!$E$10:$E$4852,'Colectare date cheltuieli'!$B35) -> 0 | K35: =SUMIFS(Tranzactii!$G$10:$G$4852,Tranzactii!$A$10:$A$4852,K$6,Tranzactii!$D$10:$D$4852,'Colectare date cheltuieli'!$A35,Tranzactii!$E$10:$E$4852,'Colectare date cheltuieli'!$B35) -> 0 | L35: =SUMIFS(Tranzactii!$G$10:$G$4852,Tranzactii!$A$10:$A$4852,L$6,Tranzactii!$D$10:$D$4852,'Colectare date cheltuieli'!$A35,Tranzactii!$E$10:$E$4852,'Colectare date cheltuieli'!$B35) -> 0 | M35: =SUMIFS(Tranzactii!$G$10:$G$4852,Tranzactii!$A$10:$A$4852,M$6,Tranzactii!$D$10:$D$4852,'Colectare date cheltuieli'!$A35,Tranzactii!$E$10:$E$4852,'Colectare date cheltuieli'!$B35) -> 0 | N35: =SUMIFS(Tranzactii!$G$10:$G$4852,Tranzactii!$A$10:$A$4852,N$6,Tranzactii!$D$10:$D$4852,'Colectare date cheltuieli'!$A35,Tranzactii!$E$10:$E$4852,'Colectare date cheltuieli'!$B35) -> 0 | O35: 1000 | P35: =IF('Raport Lunar'!$D$3="","",HLOOKUP('Raport Lunar'!$D$3,$A$7:$N$55,Q35,0)) -> 0 | Q35: 29 | R35: =HLOOKUP('Raport Lunar'!$D$3,'VC Previziuni'!$A$12:$N$60,ROWS('Colectare date cheltuieli'!$C$7:C35),0) -> 0 | S35: 0
A36: ='Setare fisier'!I35 -> Cheltuieli vacanta | B36: ='Setare fisier'!J35 -> Cheltuieli diverse | C36: =SUMIFS(Tranzactii!$G$10:$G$4852,Tranzactii!$A$10:$A$4852,C$6,Tranzactii!$D$10:$D$4852,'Colectare date cheltuieli'!$A36,Tranzactii!$E$10:$E$4852,'Colectare date cheltuieli'!$B36) -> 150 | D36: =SUMIFS(Tranzactii!$G$10:$G$4852,Tranzactii!$A$10:$A$4852,D$6,Tranzactii!$D$10:$D$4852,'Colectare date cheltuieli'!$A36,Tranzactii!$E$10:$E$4852,'Colectare date cheltuieli'!$B36) -> 0 | E36: =SUMIFS(Tranzactii!$G$10:$G$4852,Tranzactii!$A$10:$A$4852,E$6,Tranzactii!$D$10:$D$4852,'Colectare date cheltuieli'!$A36,Tranzactii!$E$10:$E$4852,'Colectare date cheltuieli'!$B36) -> 0 | F36: =SUMIFS(Tranzactii!$G$10:$G$4852,Tranzactii!$A$10:$A$4852,F$6,Tranzactii!$D$10:$D$4852,'Colectare date cheltuieli'!$A36,Tranzactii!$E$10:$E$4852,'Colectare date cheltuieli'!$B36) -> 0 | G36: =SUMIFS(Tranzactii!$G$10:$G$4852,Tranzactii!$A$10:$A$4852,G$6,Tranzactii!$D$10:$D$4852,'Colectare date cheltuieli'!$A36,Tranzactii!$E$10:$E$4852,'Colectare date cheltuieli'!$B36) -> 0 | H36: =SUMIFS(Tranzactii!$G$10:$G$4852,Tranzactii!$A$10:$A$4852,H$6,Tranzactii!$D$10:$D$4852,'Colectare date cheltuieli'!$A36,Tranzactii!$E$10:$E$4852,'Colectare date cheltuieli'!$B36) -> 0 | I36: =SUMIFS(Tranzactii!$G$10:$G$4852,Tranzactii!$A$10:$A$4852,I$6,Tranzactii!$D$10:$D$4852,'Colectare date cheltuieli'!$A36,Tranzactii!$E$10:$E$4852,'Colectare date cheltuieli'!$B36) -> 0 | J36: =SUMIFS(Tranzactii!$G$10:$G$4852,Tranzactii!$A$10:$A$4852,J$6,Tranzactii!$D$10:$D$4852,'Colectare date cheltuieli'!$A36,Tranzactii!$E$10:$E$4852,'Colectare date cheltuieli'!$B36) -> 0 | K36: =SUMIFS(Tranzactii!$G$10:$G$4852,Tranzactii!$A$10:$A$4852,K$6,Tranzactii!$D$10:$D$4852,'Colectare date cheltuieli'!$A36,Tranzactii!$E$10:$E$4852,'Colectare date cheltuieli'!$B36) -> 0 | L36: =SUMIFS(Tranzactii!$G$10:$G$4852,Tranzactii!$A$10:$A$4852,L$6,Tranzactii!$D$10:$D$4852,'Colectare date cheltuieli'!$A36,Tranzactii!$E$10:$E$4852,'Colectare date cheltuieli'!$B36) -> 0 | M36: =SUMIFS(Tranzactii!$G$10:$G$4852,Tranzactii!$A$10:$A$4852,M$6,Tranzactii!$D$10:$D$4852,'Colectare date cheltuieli'!$A36,Tranzactii!$E$10:$E$4852,'Colectare date cheltuieli'!$B36) -> 0 | N36: =SUMIFS(Tranzactii!$G$10:$G$4852,Tranzactii!$A$10:$A$4852,N$6,Tranzactii!$D$10:$D$4852,'Colectare date cheltuieli'!$A36,Tranzactii!$E$10:$E$4852,'Colectare date cheltuieli'!$B36) -> 0 | O36: 150 | P36: =IF('Raport Lunar'!$D$3="","",HLOOKUP('Raport Lunar'!$D$3,$A$7:$N$55,Q36,0)) -> 0 | Q36: 30 | R36: =HLOOKUP('Raport Lunar'!$D$3,'VC Previziuni'!$A$12:$N$60,ROWS('Colectare date cheltuieli'!$C$7:C36),0) -> 0 | S36: 0
A37: ='Setare fisier'!I36 -> Cheltuieli vacanta | B37: ='Setare fisier'!J36 -> Transport | C37: =SUMIFS(Tranzactii!$G$10:$G$4852,Tranzactii!$A$10:$A$4852,C$6,Tranzactii!$D$10:$D$4852,'Colectare date cheltuieli'!$A37,Tranzactii!$E$10:$E$4852,'Colectare date cheltuieli'!$B37) -> 300 | D37: =SUMIFS(Tranzactii!$G$10:$G$4852,Tranzactii!$A$10:$A$4852,D$6,Tranzactii!$D$10:$D$4852,'Colectare date cheltuieli'!$A37,Tranzactii!$E$10:$E$4852,'Colectare date cheltuieli'!$B37) -> 0 | E37: =SUMIFS(Tranzactii!$G$10:$G$4852,Tranzactii!$A$10:$A$4852,E$6,Tranzactii!$D$10:$D$4852,'Colectare date cheltuieli'!$A37,Tranzactii!$E$10:$E$4852,'Colectare date cheltuieli'!$B37) -> 0 | F37: =SUMIFS(Tranzactii!$G$10:$G$4852,Tranzactii!$A$10:$A$4852,F$6,Tranzactii!$D$10:$D$4852,'Colectare date cheltuieli'!$A37,Tranzactii!$E$10:$E$4852,'Colectare date cheltuieli'!$B37) -> 0 | G37: =SUMIFS(Tranzactii!$G$10:$G$4852,Tranzactii!$A$10:$A$4852,G$6,Tranzactii!$D$10:$D$4852,'Colectare date cheltuieli'!$A37,Tranzactii!$E$10:$E$4852,'Colectare date cheltuieli'!$B37) -> 0 | H37: =SUMIFS(Tranzactii!$G$10:$G$4852,Tranzactii!$A$10:$A$4852,H$6,Tranzactii!$D$10:$D$4852,'Colectare date cheltuieli'!$A37,Tranzactii!$E$10:$E$4852,'Colectare date cheltuieli'!$B37) -> 0 | I37: =SUMIFS(Tranzactii!$G$10:$G$4852,Tranzactii!$A$10:$A$4852,I$6,Tranzactii!$D$10:$D$4852,'Colectare date cheltuieli'!$A37,Tranzactii!$E$10:$E$4852,'Colectare date cheltuieli'!$B37) -> 0 | J37: =SUMIFS(Tranzactii!$G$10:$G$4852,Tranzactii!$A$10:$A$4852,J$6,Tranzactii!$D$10:$D$4852,'Colectare date cheltuieli'!$A37,Tranzactii!$E$10:$E$4852,'Colectare date cheltuieli'!$B37) -> 0 | K37: =SUMIFS(Tranzactii!$G$10:$G$4852,Tranzactii!$A$10:$A$4852,K$6,Tranzactii!$D$10:$D$4852,'Colectare date cheltuieli'!$A37,Tranzactii!$E$10:$E$4852,'Colectare date cheltuieli'!$B37) -> 0 | L37: =SUMIFS(Tranzactii!$G$10:$G$4852,Tranzactii!$A$10:$A$4852,L$6,Tranzactii!$D$10:$D$4852,'Colectare date cheltuieli'!$A37,Tranzactii!$E$10:$E$4852,'Colectare date cheltuieli'!$B37) -> 0 | M37: =SUMIFS(Tranzactii!$G$10:$G$4852,Tranzactii!$A$10:$A$4852,M$6,Tranzactii!$D$10:$D$4852,'Colectare date cheltuieli'!$A37,Tranzactii!$E$10:$E$4852,'Colectare date cheltuieli'!$B37) -> 0 | N37: =SUMIFS(Tranzactii!$G$10:$G$4852,Tranzactii!$A$10:$A$4852,N$6,Tranzactii!$D$10:$D$4852,'Colectare date cheltuieli'!$A37,Tranzactii!$E$10:$E$4852,'Colectare date cheltuieli'!$B37) -> 0 | O37: 300 | P37: =IF('Raport Lunar'!$D$3="","",HLOOKUP('Raport Lunar'!$D$3,$A$7:$N$55,Q37,0)) -> 0 | Q37: 31 | R37: =HLOOKUP('Raport Lunar'!$D$3,'VC Previziuni'!$A$12:$N$60,ROWS('Colectare date cheltuieli'!$C$7:C37),0) -> 0 | S37: 0
A38: ='Setare fisier'!I37 -> Divertisment | B38: ='Setare fisier'!J37 -> Alte cheltuieli | C38: =SUMIFS(Tranzactii!$G$10:$G$4852,Tranzactii!$A$10:$A$4852,C$6,Tranzactii!$D$10:$D$4852,'Colectare date cheltuieli'!$A38,Tranzactii!$E$10:$E$4852,'Colectare date cheltuieli'!$B38) -> 0 | D38: =SUMIFS(Tranzactii!$G$10:$G$4852,Tranzactii!$A$10:$A$4852,D$6,Tranzactii!$D$10:$D$4852,'Colectare date cheltuieli'!$A38,Tranzactii!$E$10:$E$4852,'Colectare date cheltuieli'!$B38) -> 0 | E38: =SUMIFS(Tranzactii!$G$10:$G$4852,Tranzactii!$A$10:$A$4852,E$6,Tranzactii!$D$10:$D$4852,'Colectare date cheltuieli'!$A38,Tranzactii!$E$10:$E$4852,'Colectare date cheltuieli'!$B38) -> 0 | F38: =SUMIFS(Tranzactii!$G$10:$G$4852,Tranzactii!$A$10:$A$4852,F$6,Tranzactii!$D$10:$D$4852,'Colectare date cheltuieli'!$A38,Tranzactii!$E$10:$E$4852,'Colectare date cheltuieli'!$B38) -> 0 | G38: =SUMIFS(Tranzactii!$G$10:$G$4852,Tranzactii!$A$10:$A$4852,G$6,Tranzactii!$D$10:$D$4852,'Colectare date cheltuieli'!$A38,Tranzactii!$E$10:$E$4852,'Colectare date cheltuieli'!$B38) -> 0 | H38: =SUMIFS(Tranzactii!$G$10:$G$4852,Tranzactii!$A$10:$A$4852,H$6,Tranzactii!$D$10:$D$4852,'Colectare date cheltuieli'!$A38,Tranzactii!$E$10:$E$4852,'Colectare date cheltuieli'!$B38) -> 0 | I38: =SUMIFS(Tranzactii!$G$10:$G$4852,Tranzactii!$A$10:$A$4852,I$6,Tranzactii!$D$10:$D$4852,'Colectare date cheltuieli'!$A38,Tranzactii!$E$10:$E$4852,'Colectare date cheltuieli'!$B38) -> 0 | J38: =SUMIFS(Tranzactii!$G$10:$G$4852,Tranzactii!$A$10:$A$4852,J$6,Tranzactii!$D$10:$D$4852,'Colectare date cheltuieli'!$A38,Tranzactii!$E$10:$E$4852,'Colectare date cheltuieli'!$B38) -> 0 | K38: =SUMIFS(Tranzactii!$G$10:$G$4852,Tranzactii!$A$10:$A$4852,K$6,Tranzactii!$D$10:$D$4852,'Colectare date cheltuieli'!$A38,Tranzactii!$E$10:$E$4852,'Colectare date cheltuieli'!$B38) -> 0 | L38: =SUMIFS(Tranzactii!$G$10:$G$4852,Tranzactii!$A$10:$A$4852,L$6,Tranzactii!$D$10:$D$4852,'Colectare date cheltuieli'!$A38,Tranzactii!$E$10:$E$4852,'Colectare date cheltuieli'!$B38) -> 0 | M38: =SUMIFS(Tranzactii!$G$10:$G$4852,Tranzactii!$A$10:$A$4852,M$6,Tranzactii!$D$10:$D$4852,'Colectare date cheltuieli'!$A38,Tranzactii!$E$10:$E$4852,'Colectare date cheltuieli'!$B38) -> 0 | N38: =SUMIFS(Tranzactii!$G$10:$G$4852,Tranzactii!$A$10:$A$4852,N$6,Tranzactii!$D$10:$D$4852,'Colectare date cheltuieli'!$A38,Tranzactii!$E$10:$E$4852,'Colectare date cheltuieli'!$B38) -> 0 | O38: 0 | P38: =IF('Raport Lunar'!$D$3="","",HLOOKUP('Raport Lunar'!$D$3,$A$7:$N$55,Q38,0)) -> 0 | Q38: 32 | R38: =HLOOKUP('Raport Lunar'!$D$3,'VC Previziuni'!$A$12:$N$60,ROWS('Colectare date cheltuieli'!$C$7:C38),0) -> 0 | S38: 0
A39: ='Setare fisier'!I38 -> Divertisment | B39: ='Setare fisier'!J38 -> Cinema | C39: =SUMIFS(Tranzactii!$G$10:$G$4852,Tranzactii!$A$10:$A$4852,C$6,Tranzactii!$D$10:$D$4852,'Colectare date cheltuieli'!$A39,Tranzactii!$E$10:$E$4852,'Colectare date cheltuieli'!$B39) -> 76 | D39: =SUMIFS(Tranzactii!$G$10:$G$4852,Tranzactii!$A$10:$A$4852,D$6,Tranzactii!$D$10:$D$4852,'Colectare date cheltuieli'!$A39,Tranzactii!$E$10:$E$4852,'Colectare date cheltuieli'!$B39) -> 0 | E39: =SUMIFS(Tranzactii!$G$10:$G$4852,Tranzactii!$A$10:$A$4852,E$6,Tranzactii!$D$10:$D$4852,'Colectare date cheltuieli'!$A39,Tranzactii!$E$10:$E$4852,'Colectare date cheltuieli'!$B39) -> 0 | F39: =SUMIFS(Tranzactii!$G$10:$G$4852,Tranzactii!$A$10:$A$4852,F$6,Tranzactii!$D$10:$D$4852,'Colectare date cheltuieli'!$A39,Tranzactii!$E$10:$E$4852,'Colectare date cheltuieli'!$B39) -> 0 | G39: =SUMIFS(Tranzactii!$G$10:$G$4852,Tranzactii!$A$10:$A$4852,G$6,Tranzactii!$D$10:$D$4852,'Colectare date cheltuieli'!$A39,Tranzactii!$E$10:$E$4852,'Colectare date cheltuieli'!$B39) -> 0 | H39: =SUMIFS(Tranzactii!$G$10:$G$4852,Tranzactii!$A$10:$A$4852,H$6,Tranzactii!$D$10:$D$4852,'Colectare date cheltuieli'!$A39,Tranzactii!$E$10:$E$4852,'Colectare date cheltuieli'!$B39) -> 0 | I39: =SUMIFS(Tranzactii!$G$10:$G$4852,Tranzactii!$A$10:$A$4852,I$6,Tranzactii!$D$10:$D$4852,'Colectare date cheltuieli'!$A39,Tranzactii!$E$10:$E$4852,'Colectare date cheltuieli'!$B39) -> 0 | J39: =SUMIFS(Tranzactii!$G$10:$G$4852,Tranzactii!$A$10:$A$4852,J$6,Tranzactii!$D$10:$D$4852,'Colectare date cheltuieli'!$A39,Tranzactii!$E$10:$E$4852,'Colectare date cheltuieli'!$B39) -> 0 | K39: =SUMIFS(Tranzactii!$G$10:$G$4852,Tranzactii!$A$10:$A$4852,K$6,Tranzactii!$D$10:$D$4852,'Colectare date cheltuieli'!$A39,Tranzactii!$E$10:$E$4852,'Colectare date cheltuieli'!$B39) -> 0 | L39: =SUMIFS(Tranzactii!$G$10:$G$4852,Tranzactii!$A$10:$A$4852,L$6,Tranzactii!$D$10:$D$4852,'Colectare date cheltuieli'!$A39,Tranzactii!$E$10:$E$4852,'Colectare date cheltuieli'!$B39) -> 0 | M39: =SUMIFS(Tranzactii!$G$10:$G$4852,Tranzactii!$A$10:$A$4852,M$6,Tranzactii!$D$10:$D$4852,'Colectare date cheltuieli'!$A39,Tranzactii!$E$10:$E$4852,'Colectare date cheltuieli'!$B39) -> 0 | N39: =SUMIFS(Tranzactii!$G$10:$G$4852,Tranzactii!$A$10:$A$4852,N$6,Tranzactii!$D$10:$D$4852,'Colectare date cheltuieli'!$A39,Tranzactii!$E$10:$E$4852,'Colectare date cheltuieli'!$B39) -> 0 | O39: 76 | P39: =IF('Raport Lunar'!$D$3="","",HLOOKUP('Raport Lunar'!$D$3,$A$7:$N$55,Q39,0)) -> 0 | Q39: 33 | R39: =HLOOKUP('Raport Lunar'!$D$3,'VC Previziuni'!$A$12:$N$60,ROWS('Colectare date cheltuieli'!$C$7:C39),0) -> 100 | S39: 100
A40: ='Setare fisier'!I39 -> Divertisment | B40: ='Setare fisier'!J39 -> Iesiri in oras | C40: =SUMIFS(Tranzactii!$G$10:$G$4852,Tranzactii!$A$10:$A$4852,C$6,Tranzactii!$D$10:$D$4852,'Colectare date cheltuieli'!$A40,Tranzactii!$E$10:$E$4852,'Colectare date cheltuieli'!$B40) -> 40 | D40: =SUMIFS(Tranzactii!$G$10:$G$4852,Tranzactii!$A$10:$A$4852,D$6,Tranzactii!$D$10:$D$4852,'Colectare date cheltuieli'!$A40,Tranzactii!$E$10:$E$4852,'Colectare date cheltuieli'!$B40) -> 0 | E40: =SUMIFS(Tranzactii!$G$10:$G$4852,Tranzactii!$A$10:$A$4852,E$6,Tranzactii!$D$10:$D$4852,'Colectare date cheltuieli'!$A40,Tranzactii!$E$10:$E$4852,'Colectare date cheltuieli'!$B40) -> 0 | F40: =SUMIFS(Tranzactii!$G$10:$G$4852,Tranzactii!$A$10:$A$4852,F$6,Tranzactii!$D$10:$D$4852,'Colectare date cheltuieli'!$A40,Tranzactii!$E$10:$E$4852,'Colectare date cheltuieli'!$B40) -> 0 | G40: =SUMIFS(Tranzactii!$G$10:$G$4852,Tranzactii!$A$10:$A$4852,G$6,Tranzactii!$D$10:$D$4852,'Colectare date cheltuieli'!$A40,Tranzactii!$E$10:$E$4852,'Colectare date cheltuieli'!$B40) -> 0 | H40: =SUMIFS(Tranzactii!$G$10:$G$4852,Tranzactii!$A$10:$A$4852,H$6,Tranzactii!$D$10:$D$4852,'Colectare date cheltuieli'!$A40,Tranzactii!$E$10:$E$4852,'Colectare date cheltuieli'!$B40) -> 0 | I40: =SUMIFS(Tranzactii!$G$10:$G$4852,Tranzactii!$A$10:$A$4852,I$6,Tranzactii!$D$10:$D$4852,'Colectare date cheltuieli'!$A40,Tranzactii!$E$10:$E$4852,'Colectare date cheltuieli'!$B40) -> 0 | J40: =SUMIFS(Tranzactii!$G$10:$G$4852,Tranzactii!$A$10:$A$4852,J$6,Tranzactii!$D$10:$D$4852,'Colectare date cheltuieli'!$A40,Tranzactii!$E$10:$E$4852,'Colectare date cheltuieli'!$B40) -> 0 | K40: =SUMIFS(Tranzactii!$G$10:$G$4852,Tranzactii!$A$10:$A$4852,K$6,Tranzactii!$D$10:$D$4852,'Colectare date cheltuieli'!$A40,Tranzactii!$E$10:$E$4852,'Colectare date cheltuieli'!$B40) -> 0 | L40: =SUMIFS(Tranzactii!$G$10:$G$4852,Tranzactii!$A$10:$A$4852,L$6,Tranzactii!$D$10:$D$4852,'Colectare date cheltuieli'!$A40,Tranzactii!$E$10:$E$4852,'Colectare date cheltuieli'!$B40) -> 0 | M40: =SUMIFS(Tranzactii!$G$10:$G$4852,Tranzactii!$A$10:$A$4852,M$6,Tranzactii!$D$10:$D$4852,'Colectare date cheltuieli'!$A40,Tranzactii!$E$10:$E$4852,'Colectare date cheltuieli'!$B40) -> 0 | N40: =SUMIFS(Tranzactii!$G$10:$G$4852,Tranzactii!$A$10:$A$4852,N$6,Tranzactii!$D$10:$D$4852,'Colectare date cheltuieli'!$A40,Tranzactii!$E$10:$E$4852,'Colectare date cheltuieli'!$B40) -> 0 | O40: 40 | P40: =IF('Raport Lunar'!$D$3="","",HLOOKUP('Raport Lunar'!$D$3,$A$7:$N$55,Q40,0)) -> 0 | Q40: 34 | R40: =HLOOKUP('Raport Lunar'!$D$3,'VC Previziuni'!$A$12:$N$60,ROWS('Colectare date cheltuieli'!$C$7:C40),0) -> 0 | S40: 0
A41: ='Setare fisier'!I40 -> Divertisment | B41: ='Setare fisier'!J40 -> Teatru | C41: =SUMIFS(Tranzactii!$G$10:$G$4852,Tranzactii!$A$10:$A$4852,C$6,Tranzactii!$D$10:$D$4852,'Colectare date cheltuieli'!$A41,Tranzactii!$E$10:$E$4852,'Colectare date cheltuieli'!$B41) -> 0 | D41: =SUMIFS(Tranzactii!$G$10:$G$4852,Tranzactii!$A$10:$A$4852,D$6,Tranzactii!$D$10:$D$4852,'Colectare date cheltuieli'!$A41,Tranzactii!$E$10:$E$4852,'Colectare date cheltuieli'!$B41) -> 0 | E41: =SUMIFS(Tranzactii!$G$10:$G$4852,Tranzactii!$A$10:$A$4852,E$6,Tranzactii!$D$10:$D$4852,'Colectare date cheltuieli'!$A41,Tranzactii!$E$10:$E$4852,'Colectare date cheltuieli'!$B41) -> 0 | F41: =SUMIFS(Tranzactii!$G$10:$G$4852,Tranzactii!$A$10:$A$4852,F$6,Tranzactii!$D$10:$D$4852,'Colectare date cheltuieli'!$A41,Tranzactii!$E$10:$E$4852,'Colectare date cheltuieli'!$B41) -> 0 | G41: =SUMIFS(Tranzactii!$G$10:$G$4852,Tranzactii!$A$10:$A$4852,G$6,Tranzactii!$D$10:$D$4852,'Colectare date cheltuieli'!$A41,Tranzactii!$E$10:$E$4852,'Colectare date cheltuieli'!$B41) -> 0 | H41: =SUMIFS(Tranzactii!$G$10:$G$4852,Tranzactii!$A$10:$A$4852,H$6,Tranzactii!$D$10:$D$4852,'Colectare date cheltuieli'!$A41,Tranzactii!$E$10:$E$4852,'Colectare date cheltuieli'!$B41) -> 0 | I41: =SUMIFS(Tranzactii!$G$10:$G$4852,Tranzactii!$A$10:$A$4852,I$6,Tranzactii!$D$10:$D$4852,'Colectare date cheltuieli'!$A41,Tranzactii!$E$10:$E$4852,'Colectare date cheltuieli'!$B41) -> 0 | J41: =SUMIFS(Tranzactii!$G$10:$G$4852,Tranzactii!$A$10:$A$4852,J$6,Tranzactii!$D$10:$D$4852,'Colectare date cheltuieli'!$A41,Tranzactii!$E$10:$E$4852,'Colectare date cheltuieli'!$B41) -> 0 | K41: =SUMIFS(Tranzactii!$G$10:$G$4852,Tranzactii!$A$10:$A$4852,K$6,Tranzactii!$D$10:$D$4852,'Colectare date cheltuieli'!$A41,Tranzactii!$E$10:$E$4852,'Colectare date cheltuieli'!$B41) -> 0 | L41: =SUMIFS(Tranzactii!$G$10:$G$4852,Tranzactii!$A$10:$A$4852,L$6,Tranzactii!$D$10:$D$4852,'Colectare date cheltuieli'!$A41,Tranzactii!$E$10:$E$4852,'Colectare date cheltuieli'!$B41) -> 0 | M41: =SUMIFS(Tranzactii!$G$10:$G$4852,Tranzactii!$A$10:$A$4852,M$6,Tranzactii!$D$10:$D$4852,'Colectare date cheltuieli'!$A41,Tranzactii!$E$10:$E$4852,'Colectare date cheltuieli'!$B41) -> 0 | N41: =SUMIFS(Tranzactii!$G$10:$G$4852,Tranzactii!$A$10:$A$4852,N$6,Tranzactii!$D$10:$D$4852,'Colectare date cheltuieli'!$A41,Tranzactii!$E$10:$E$4852,'Colectare date cheltuieli'!$B41) -> 0 | O41: 0 | P41: =IF('Raport Lunar'!$D$3="","",HLOOKUP('Raport Lunar'!$D$3,$A$7:$N$55,Q41,0)) -> 0 | Q41: 35 | R41: =HLOOKUP('Raport Lunar'!$D$3,'VC Previziuni'!$A$12:$N$60,ROWS('Colectare date cheltuieli'!$C$7:C41),0) -> 0 | S41: 0
A42: ='Setare fisier'!I41 -> Imprumuturi si economii | B42: ='Setare fisier'!J41 -> Economisire | C42: =SUMIFS(Tranzactii!$G$10:$G$4852,Tranzactii!$A$10:$A$4852,C$6,Tranzactii!$D$10:$D$4852,'Colectare date cheltuieli'!$A42,Tranzactii!$E$10:$E$4852,'Colectare date cheltuieli'!$B42) -> 500 | D42: =SUMIFS(Tranzactii!$G$10:$G$4852,Tranzactii!$A$10:$A$4852,D$6,Tranzactii!$D$10:$D$4852,'Colectare date cheltuieli'!$A42,Tranzactii!$E$10:$E$4852,'Colectare date cheltuieli'!$B42) -> 0 | E42: =SUMIFS(Tranzactii!$G$10:$G$4852,Tranzactii!$A$10:$A$4852,E$6,Tranzactii!$D$10:$D$4852,'Colectare date cheltuieli'!$A42,Tranzactii!$E$10:$E$4852,'Colectare date cheltuieli'!$B42) -> 0 | F42: =SUMIFS(Tranzactii!$G$10:$G$4852,Tranzactii!$A$10:$A$4852,F$6,Tranzactii!$D$10:$D$4852,'Colectare date cheltuieli'!$A42,Tranzactii!$E$10:$E$4852,'Colectare date cheltuieli'!$B42) -> 0 | G42: =SUMIFS(Tranzactii!$G$10:$G$4852,Tranzactii!$A$10:$A$4852,G$6,Tranzactii!$D$10:$D$4852,'Colectare date cheltuieli'!$A42,Tranzactii!$E$10:$E$4852,'Colectare date cheltuieli'!$B42) -> 0 | H42: =SUMIFS(Tranzactii!$G$10:$G$4852,Tranzactii!$A$10:$A$4852,H$6,Tranzactii!$D$10:$D$4852,'Colectare date cheltuieli'!$A42,Tranzactii!$E$10:$E$4852,'Colectare date cheltuieli'!$B42) -> 0 | I42: =SUMIFS(Tranzactii!$G$10:$G$4852,Tranzactii!$A$10:$A$4852,I$6,Tranzactii!$D$10:$D$4852,'Colectare date cheltuieli'!$A42,Tranzactii!$E$10:$E$4852,'Colectare date cheltuieli'!$B42) -> 0 | J42: =SUMIFS(Tranzactii!$G$10:$G$4852,Tranzactii!$A$10:$A$4852,J$6,Tranzactii!$D$10:$D$4852,'Colectare date cheltuieli'!$A42,Tranzactii!$E$10:$E$4852,'Colectare date cheltuieli'!$B42) -> 0 | K42: =SUMIFS(Tranzactii!$G$10:$G$4852,Tranzactii!$A$10:$A$4852,K$6,Tranzactii!$D$10:$D$4852,'Colectare date cheltuieli'!$A42,Tranzactii!$E$10:$E$4852,'Colectare date cheltuieli'!$B42) -> 0 | L42: =SUMIFS(Tranzactii!$G$10:$G$4852,Tranzactii!$A$10:$A$4852,L$6,Tranzactii!$D$10:$D$4852,'Colectare date cheltuieli'!$A42,Tranzactii!$E$10:$E$4852,'Colectare date cheltuieli'!$B42) -> 0 | M42: =SUMIFS(Tranzactii!$G$10:$G$4852,Tranzactii!$A$10:$A$4852,M$6,Tranzactii!$D$10:$D$4852,'Colectare date cheltuieli'!$A42,Tranzactii!$E$10:$E$4852,'Colectare date cheltuieli'!$B42) -> 0 | N42: =SUMIFS(Tranzactii!$G$10:$G$4852,Tranzactii!$A$10:$A$4852,N$6,Tranzactii!$D$10:$D$4852,'Colectare date cheltuieli'!$A42,Tranzactii!$E$10:$E$4852,'Colectare date cheltuieli'!$B42) -> 0 | O42: 500 | P42: =IF('Raport Lunar'!$D$3="","",HLOOKUP('Raport Lunar'!$D$3,$A$7:$N$55,Q42,0)) -> 0 | Q42: 36 | R42: =HLOOKUP('Raport Lunar'!$D$3,'VC Previziuni'!$A$12:$N$60,ROWS('Colectare date cheltuieli'!$C$7:C42),0) -> 500 | S42: 500
A43: ='Setare fisier'!I42 -> Imprumuturi si economii | B43: ='Setare fisier'!J42 -> Imprumuturi date | C43: =SUMIFS(Tranzactii!$G$10:$G$4852,Tranzactii!$A$10:$A$4852,C$6,Tranzactii!$D$10:$D$4852,'Colectare date cheltuieli'!$A43,Tranzactii!$E$10:$E$4852,'Colectare date cheltuieli'!$B43) -> 0 | D43: =SUMIFS(Tranzactii!$G$10:$G$4852,Tranzactii!$A$10:$A$4852,D$6,Tranzactii!$D$10:$D$4852,'Colectare date cheltuieli'!$A43,Tranzactii!$E$10:$E$4852,'Colectare date cheltuieli'!$B43) -> 0 | E43: =SUMIFS(Tranzactii!$G$10:$G$4852,Tranzactii!$A$10:$A$4852,E$6,Tranzactii!$D$10:$D$4852,'Colectare date cheltuieli'!$A43,Tranzactii!$E$10:$E$4852,'Colectare date cheltuieli'!$B43) -> 0 | F43: =SUMIFS(Tranzactii!$G$10:$G$4852,Tranzactii!$A$10:$A$4852,F$6,Tranzactii!$D$10:$D$4852,'Colectare date cheltuieli'!$A43,Tranzactii!$E$10:$E$4852,'Colectare date cheltuieli'!$B43) -> 0 | G43: =SUMIFS(Tranzactii!$G$10:$G$4852,Tranzactii!$A$10:$A$4852,G$6,Tranzactii!$D$10:$D$4852,'Colectare date cheltuieli'!$A43,Tranzactii!$E$10:$E$4852,'Colectare date cheltuieli'!$B43) -> 0 | H43: =SUMIFS(Tranzactii!$G$10:$G$4852,Tranzactii!$A$10:$A$4852,H$6,Tranzactii!$D$10:$D$4852,'Colectare date cheltuieli'!$A43,Tranzactii!$E$10:$E$4852,'Colectare date cheltuieli'!$B43) -> 0 | I43: =SUMIFS(Tranzactii!$G$10:$G$4852,Tranzactii!$A$10:$A$4852,I$6,Tranzactii!$D$10:$D$4852,'Colectare date cheltuieli'!$A43,Tranzactii!$E$10:$E$4852,'Colectare date cheltuieli'!$B43) -> 0 | J43: =SUMIFS(Tranzactii!$G$10:$G$4852,Tranzactii!$A$10:$A$4852,J$6,Tranzactii!$D$10:$D$4852,'Colectare date cheltuieli'!$A43,Tranzactii!$E$10:$E$4852,'Colectare date cheltuieli'!$B43) -> 0 | K43: =SUMIFS(Tranzactii!$G$10:$G$4852,Tranzactii!$A$10:$A$4852,K$6,Tranzactii!$D$10:$D$4852,'Colectare date cheltuieli'!$A43,Tranzactii!$E$10:$E$4852,'Colectare date cheltuieli'!$B43) -> 0 | L43: =SUMIFS(Tranzactii!$G$10:$G$4852,Tranzactii!$A$10:$A$4852,L$6,Tranzactii!$D$10:$D$4852,'Colectare date cheltuieli'!$A43,Tranzactii!$E$10:$E$4852,'Colectare date cheltuieli'!$B43) -> 0 | M43: =SUMIFS(Tranzactii!$G$10:$G$4852,Tranzactii!$A$10:$A$4852,M$6,Tranzactii!$D$10:$D$4852,'Colectare date cheltuieli'!$A43,Tranzactii!$E$10:$E$4852,'Colectare date cheltuieli'!$B43) -> 0 | N43: =SUMIFS(Tranzactii!$G$10:$G$4852,Tranzactii!$A$10:$A$4852,N$6,Tranzactii!$D$10:$D$4852,'Colectare date cheltuieli'!$A43,Tranzactii!$E$10:$E$4852,'Colectare date cheltuieli'!$B43) -> 0 | O43: 0 | P43: =IF('Raport Lunar'!$D$3="","",HLOOKUP('Raport Lunar'!$D$3,$A$7:$N$55,Q43,0)) -> 0 | Q43: 37 | R43: =HLOOKUP('Raport Lunar'!$D$3,'VC Previziuni'!$A$12:$N$60,ROWS('Colectare date cheltuieli'!$C$7:C43),0) -> 0 | S43: 0
A44: ='Setare fisier'!I43 -> Imprumuturi si economii | B44: ='Setare fisier'!J43 -> Rate imprumuturi | C44: =SUMIFS(Tranzactii!$G$10:$G$4852,Tranzactii!$A$10:$A$4852,C$6,Tranzactii!$D$10:$D$4852,'Colectare date cheltuieli'!$A44,Tranzactii!$E$10:$E$4852,'Colectare date cheltuieli'!$B44) -> 1000 | D44: =SUMIFS(Tranzactii!$G$10:$G$4852,Tranzactii!$A$10:$A$4852,D$6,Tranzactii!$D$10:$D$4852,'Colectare date cheltuieli'!$A44,Tranzactii!$E$10:$E$4852,'Colectare date cheltuieli'!$B44) -> 0 | E44: =SUMIFS(Tranzactii!$G$10:$G$4852,Tranzactii!$A$10:$A$4852,E$6,Tranzactii!$D$10:$D$4852,'Colectare date cheltuieli'!$A44,Tranzactii!$E$10:$E$4852,'Colectare date cheltuieli'!$B44) -> 0 | F44: =SUMIFS(Tranzactii!$G$10:$G$4852,Tranzactii!$A$10:$A$4852,F$6,Tranzactii!$D$10:$D$4852,'Colectare date cheltuieli'!$A44,Tranzactii!$E$10:$E$4852,'Colectare date cheltuieli'!$B44) -> 0 | G44: =SUMIFS(Tranzactii!$G$10:$G$4852,Tranzactii!$A$10:$A$4852,G$6,Tranzactii!$D$10:$D$4852,'Colectare date cheltuieli'!$A44,Tranzactii!$E$10:$E$4852,'Colectare date cheltuieli'!$B44) -> 0 | H44: =SUMIFS(Tranzactii!$G$10:$G$4852,Tranzactii!$A$10:$A$4852,H$6,Tranzactii!$D$10:$D$4852,'Colectare date cheltuieli'!$A44,Tranzactii!$E$10:$E$4852,'Colectare date cheltuieli'!$B44) -> 0 | I44: =SUMIFS(Tranzactii!$G$10:$G$4852,Tranzactii!$A$10:$A$4852,I$6,Tranzactii!$D$10:$D$4852,'Colectare date cheltuieli'!$A44,Tranzactii!$E$10:$E$4852,'Colectare date cheltuieli'!$B44) -> 0 | J44: =SUMIFS(Tranzactii!$G$10:$G$4852,Tranzactii!$A$10:$A$4852,J$6,Tranzactii!$D$10:$D$4852,'Colectare date cheltuieli'!$A44,Tranzactii!$E$10:$E$4852,'Colectare date cheltuieli'!$B44) -> 0 | K44: =SUMIFS(Tranzactii!$G$10:$G$4852,Tranzactii!$A$10:$A$4852,K$6,Tranzactii!$D$10:$D$4852,'Colectare date cheltuieli'!$A44,Tranzactii!$E$10:$E$4852,'Colectare date cheltuieli'!$B44) -> 0 | L44: =SUMIFS(Tranzactii!$G$10:$G$4852,Tranzactii!$A$10:$A$4852,L$6,Tranzactii!$D$10:$D$4852,'Colectare date cheltuieli'!$A44,Tranzactii!$E$10:$E$4852,'Colectare date cheltuieli'!$B44) -> 0 | M44: =SUMIFS(Tranzactii!$G$10:$G$4852,Tranzactii!$A$10:$A$4852,M$6,Tranzactii!$D$10:$D$4852,'Colectare date cheltuieli'!$A44,Tranzactii!$E$10:$E$4852,'Colectare date cheltuieli'!$B44) -> 0 | N44: =SUMIFS(Tranzactii!$G$10:$G$4852,Tranzactii!$A$10:$A$4852,N$6,Tranzactii!$D$10:$D$4852,'Colectare date cheltuieli'!$A44,Tranzactii!$E$10:$E$4852,'Colectare date cheltuieli'!$B44) -> 0 | O44: 1000 | P44: =IF('Raport Lunar'!$D$3="","",HLOOKUP('Raport Lunar'!$D$3,$A$7:$N$55,Q44,0)) -> 0 | Q44: 38 | R44: =HLOOKUP('Raport Lunar'!$D$3,'VC Previziuni'!$A$12:$N$60,ROWS('Colectare date cheltuieli'!$C$7:C44),0) -> 1000 | S44: 1000
A45: ='Setare fisier'!I44 -> Ingrijire personala | B45: ='Setare fisier'!J44 -> Alte cheltuieli | C45: =SUMIFS(Tranzactii!$G$10:$G$4852,Tranzactii!$A$10:$A$4852,C$6,Tranzactii!$D$10:$D$4852,'Colectare date cheltuieli'!$A45,Tranzactii!$E$10:$E$4852,'Colectare date cheltuieli'!$B45) -> 0 | D45: =SUMIFS(Tranzactii!$G$10:$G$4852,Tranzactii!$A$10:$A$4852,D$6,Tranzactii!$D$10:$D$4852,'Colectare date cheltuieli'!$A45,Tranzactii!$E$10:$E$4852,'Colectare date cheltuieli'!$B45) -> 0 | E45: =SUMIFS(Tranzactii!$G$10:$G$4852,Tranzactii!$A$10:$A$4852,E$6,Tranzactii!$D$10:$D$4852,'Colectare date cheltuieli'!$A45,Tranzactii!$E$10:$E$4852,'Colectare date cheltuieli'!$B45) -> 0 | F45: =SUMIFS(Tranzactii!$G$10:$G$4852,Tranzactii!$A$10:$A$4852,F$6,Tranzactii!$D$10:$D$4852,'Colectare date cheltuieli'!$A45,Tranzactii!$E$10:$E$4852,'Colectare date cheltuieli'!$B45) -> 0 | G45: =SUMIFS(Tranzactii!$G$10:$G$4852,Tranzactii!$A$10:$A$4852,G$6,Tranzactii!$D$10:$D$4852,'Colectare date cheltuieli'!$A45,Tranzactii!$E$10:$E$4852,'Colectare date cheltuieli'!$B45) -> 0 | H45: =SUMIFS(Tranzactii!$G$10:$G$4852,Tranzactii!$A$10:$A$4852,H$6,Tranzactii!$D$10:$D$4852,'Colectare date cheltuieli'!$A45,Tranzactii!$E$10:$E$4852,'Colectare date cheltuieli'!$B45) -> 0 | I45: =SUMIFS(Tranzactii!$G$10:$G$4852,Tranzactii!$A$10:$A$4852,I$6,Tranzactii!$D$10:$D$4852,'Colectare date cheltuieli'!$A45,Tranzactii!$E$10:$E$4852,'Colectare date cheltuieli'!$B45) -> 0 | J45: =SUMIFS(Tranzactii!$G$10:$G$4852,Tranzactii!$A$10:$A$4852,J$6,Tranzactii!$D$10:$D$4852,'Colectare date cheltuieli'!$A45,Tranzactii!$E$10:$E$4852,'Colectare date cheltuieli'!$B45) -> 0 | K45: =SUMIFS(Tranzactii!$G$10:$G$4852,Tranzactii!$A$10:$A$4852,K$6,Tranzactii!$D$10:$D$4852,'Colectare date cheltuieli'!$A45,Tranzactii!$E$10:$E$4852,'Colectare date cheltuieli'!$B45) -> 0 | L45: =SUMIFS(Tranzactii!$G$10:$G$4852,Tranzactii!$A$10:$A$4852,L$6,Tranzactii!$D$10:$D$4852,'Colectare date cheltuieli'!$A45,Tranzactii!$E$10:$E$4852,'Colectare date cheltuieli'!$B45) -> 0 | M45: =SUMIFS(Tranzactii!$G$10:$G$4852,Tranzactii!$A$10:$A$4852,M$6,Tranzactii!$D$10:$D$4852,'Colectare date cheltuieli'!$A45,Tranzactii!$E$10:$E$4852,'Colectare date cheltuieli'!$B45) -> 0 | N45: =SUMIFS(Tranzactii!$G$10:$G$4852,Tranzactii!$A$10:$A$4852,N$6,Tranzactii!$D$10:$D$4852,'Colectare date cheltuieli'!$A45,Tranzactii!$E$10:$E$4852,'Colectare date cheltuieli'!$B45) -> 0 | O45: 0 | P45: =IF('Raport Lunar'!$D$3="","",HLOOKUP('Raport Lunar'!$D$3,$A$7:$N$55,Q45,0)) -> 0 | Q45: 39 | R45: =HLOOKUP('Raport Lunar'!$D$3,'VC Previziuni'!$A$12:$N$60,ROWS('Colectare date cheltuieli'!$C$7:C45),0) -> 0 | S45: 0
A46: ='Setare fisier'!I45 -> Ingrijire personala | B46: ='Setare fisier'!J45 -> Cosmetica | C46: =SUMIFS(Tranzactii!$G$10:$G$4852,Tranzactii!$A$10:$A$4852,C$6,Tranzactii!$D$10:$D$4852,'Colectare date cheltuieli'!$A46,Tranzactii!$E$10:$E$4852,'Colectare date cheltuieli'!$B46) -> 40 | D46: =SUMIFS(Tranzactii!$G$10:$G$4852,Tranzactii!$A$10:$A$4852,D$6,Tranzactii!$D$10:$D$4852,'Colectare date cheltuieli'!$A46,Tranzactii!$E$10:$E$4852,'Colectare date cheltuieli'!$B46) -> 0 | E46: =SUMIFS(Tranzactii!$G$10:$G$4852,Tranzactii!$A$10:$A$4852,E$6,Tranzactii!$D$10:$D$4852,'Colectare date cheltuieli'!$A46,Tranzactii!$E$10:$E$4852,'Colectare date cheltuieli'!$B46) -> 0 | F46: =SUMIFS(Tranzactii!$G$10:$G$4852,Tranzactii!$A$10:$A$4852,F$6,Tranzactii!$D$10:$D$4852,'Colectare date cheltuieli'!$A46,Tranzactii!$E$10:$E$4852,'Colectare date cheltuieli'!$B46) -> 0 | G46: =SUMIFS(Tranzactii!$G$10:$G$4852,Tranzactii!$A$10:$A$4852,G$6,Tranzactii!$D$10:$D$4852,'Colectare date cheltuieli'!$A46,Tranzactii!$E$10:$E$4852,'Colectare date cheltuieli'!$B46) -> 0 | H46: =SUMIFS(Tranzactii!$G$10:$G$4852,Tranzactii!$A$10:$A$4852,H$6,Tranzactii!$D$10:$D$4852,'Colectare date cheltuieli'!$A46,Tranzactii!$E$10:$E$4852,'Colectare date cheltuieli'!$B46) -> 0 | I46: =SUMIFS(Tranzactii!$G$10:$G$4852,Tranzactii!$A$10:$A$4852,I$6,Tranzactii!$D$10:$D$4852,'Colectare date cheltuieli'!$A46,Tranzactii!$E$10:$E$4852,'Colectare date cheltuieli'!$B46) -> 0 | J46: =SUMIFS(Tranzactii!$G$10:$G$4852,Tranzactii!$A$10:$A$4852,J$6,Tranzactii!$D$10:$D$4852,'Colectare date cheltuieli'!$A46,Tranzactii!$E$10:$E$4852,'Colectare date cheltuieli'!$B46) -> 0 | K46: =SUMIFS(Tranzactii!$G$10:$G$4852,Tranzactii!$A$10:$A$4852,K$6,Tranzactii!$D$10:$D$4852,'Colectare date cheltuieli'!$A46,Tranzactii!$E$10:$E$4852,'Colectare date cheltuieli'!$B46) -> 0 | L46: =SUMIFS(Tranzactii!$G$10:$G$4852,Tranzactii!$A$10:$A$4852,L$6,Tranzactii!$D$10:$D$4852,'Colectare date cheltuieli'!$A46,Tranzactii!$E$10:$E$4852,'Colectare date cheltuieli'!$B46) -> 0 | M46: =SUMIFS(Tranzactii!$G$10:$G$4852,Tranzactii!$A$10:$A$4852,M$6,Tranzactii!$D$10:$D$4852,'Colectare date cheltuieli'!$A46,Tranzactii!$E$10:$E$4852,'Colectare date cheltuieli'!$B46) -> 0 | N46: =SUMIFS(Tranzactii!$G$10:$G$4852,Tranzactii!$A$10:$A$4852,N$6,Tranzactii!$D$10:$D$4852,'Colectare date cheltuieli'!$A46,Tranzactii!$E$10:$E$4852,'Colectare date cheltuieli'!$B46) -> 0 | O46: 40 | P46: =IF('Raport Lunar'!$D$3="","",HLOOKUP('Raport Lunar'!$D$3,$A$7:$N$55,Q46,0)) -> 0 | Q46: 40 | R46: =HLOOKUP('Raport Lunar'!$D$3,'VC Previziuni'!$A$12:$N$60,ROWS('Colectare date cheltuieli'!$C$7:C46),0) -> 100 | S46: 100
A47: ='Setare fisier'!I46 -> Ingrijire personala | B47: ='Setare fisier'!J46 -> Imbracaminte | C47: =SUMIFS(Tranzactii!$G$10:$G$4852,Tranzactii!$A$10:$A$4852,C$6,Tranzactii!$D$10:$D$4852,'Colectare date cheltuieli'!$A47,Tranzactii!$E$10:$E$4852,'Colectare date cheltuieli'!$B47) -> 100 | D47: =SUMIFS(Tranzactii!$G$10:$G$4852,Tranzactii!$A$10:$A$4852,D$6,Tranzactii!$D$10:$D$4852,'Colectare date cheltuieli'!$A47,Tranzactii!$E$10:$E$4852,'Colectare date cheltuieli'!$B47) -> 0 | E47: =SUMIFS(Tranzactii!$G$10:$G$4852,Tranzactii!$A$10:$A$4852,E$6,Tranzactii!$D$10:$D$4852,'Colectare date cheltuieli'!$A47,Tranzactii!$E$10:$E$4852,'Colectare date cheltuieli'!$B47) -> 0 | F47: =SUMIFS(Tranzactii!$G$10:$G$4852,Tranzactii!$A$10:$A$4852,F$6,Tranzactii!$D$10:$D$4852,'Colectare date cheltuieli'!$A47,Tranzactii!$E$10:$E$4852,'Colectare date cheltuieli'!$B47) -> 0 | G47: =SUMIFS(Tranzactii!$G$10:$G$4852,Tranzactii!$A$10:$A$4852,G$6,Tranzactii!$D$10:$D$4852,'Colectare date cheltuieli'!$A47,Tranzactii!$E$10:$E$4852,'Colectare date cheltuieli'!$B47) -> 0 | H47: =SUMIFS(Tranzactii!$G$10:$G$4852,Tranzactii!$A$10:$A$4852,H$6,Tranzactii!$D$10:$D$4852,'Colectare date cheltuieli'!$A47,Tranzactii!$E$10:$E$4852,'Colectare date cheltuieli'!$B47) -> 0 | I47: =SUMIFS(Tranzactii!$G$10:$G$4852,Tranzactii!$A$10:$A$4852,I$6,Tranzactii!$D$10:$D$4852,'Colectare date cheltuieli'!$A47,Tranzactii!$E$10:$E$4852,'Colectare date cheltuieli'!$B47) -> 0 | J47: =SUMIFS(Tranzactii!$G$10:$G$4852,Tranzactii!$A$10:$A$4852,J$6,Tranzactii!$D$10:$D$4852,'Colectare date cheltuieli'!$A47,Tranzactii!$E$10:$E$4852,'Colectare date cheltuieli'!$B47) -> 0 | K47: =SUMIFS(Tranzactii!$G$10:$G$4852,Tranzactii!$A$10:$A$4852,K$6,Tranzactii!$D$10:$D$4852,'Colectare date cheltuieli'!$A47,Tranzactii!$E$10:$E$4852,'Colectare date cheltuieli'!$B47) -> 0 | L47: =SUMIFS(Tranzactii!$G$10:$G$4852,Tranzactii!$A$10:$A$4852,L$6,Tranzactii!$D$10:$D$4852,'Colectare date cheltuieli'!$A47,Tranzactii!$E$10:$E$4852,'Colectare date cheltuieli'!$B47) -> 0 | M47: =SUMIFS(Tranzactii!$G$10:$G$4852,Tranzactii!$A$10:$A$4852,M$6,Tranzactii!$D$10:$D$4852,'Colectare date cheltuieli'!$A47,Tranzactii!$E$10:$E$4852,'Colectare date cheltuieli'!$B47) -> 0 | N47: =SUMIFS(Tranzactii!$G$10:$G$4852,Tranzactii!$A$10:$A$4852,N$6,Tranzactii!$D$10:$D$4852,'Colectare date cheltuieli'!$A47,Tranzactii!$E$10:$E$4852,'Colectare date cheltuieli'!$B47) -> 0 | O47: 100 | P47: =IF('Raport Lunar'!$D$3="","",HLOOKUP('Raport Lunar'!$D$3,$A$7:$N$55,Q47,0)) -> 0 | Q47: 41 | R47: =HLOOKUP('Raport Lunar'!$D$3,'VC Previziuni'!$A$12:$N$60,ROWS('Colectare date cheltuieli'!$C$7:C47),0) -> 250 | S47: 250
A48: ='Setare fisier'!I47 -> Ingrijire personala | B48: ='Setare fisier'!J47 -> Medical | C48: =SUMIFS(Tranzactii!$G$10:$G$4852,Tranzactii!$A$10:$A$4852,C$6,Tranzactii!$D$10:$D$4852,'Colectare date cheltuieli'!$A48,Tranzactii!$E$10:$E$4852,'Colectare date cheltuieli'!$B48) -> 40 | D48: =SUMIFS(Tranzactii!$G$10:$G$4852,Tranzactii!$A$10:$A$4852,D$6,Tranzactii!$D$10:$D$4852,'Colectare date cheltuieli'!$A48,Tranzactii!$E$10:$E$4852,'Colectare date cheltuieli'!$B48) -> 0 | E48: =SUMIFS(Tranzactii!$G$10:$G$4852,Tranzactii!$A$10:$A$4852,E$6,Tranzactii!$D$10:$D$4852,'Colectare date cheltuieli'!$A48,Tranzactii!$E$10:$E$4852,'Colectare date cheltuieli'!$B48) -> 0 | F48: =SUMIFS(Tranzactii!$G$10:$G$4852,Tranzactii!$A$10:$A$4852,F$6,Tranzactii!$D$10:$D$4852,'Colectare date cheltuieli'!$A48,Tranzactii!$E$10:$E$4852,'Colectare date cheltuieli'!$B48) -> 0 | G48: =SUMIFS(Tranzactii!$G$10:$G$4852,Tranzactii!$A$10:$A$4852,G$6,Tranzactii!$D$10:$D$4852,'Colectare date cheltuieli'!$A48,Tranzactii!$E$10:$E$4852,'Colectare date cheltuieli'!$B48) -> 0 | H48: =SUMIFS(Tranzactii!$G$10:$G$4852,Tranzactii!$A$10:$A$4852,H$6,Tranzactii!$D$10:$D$4852,'Colectare date cheltuieli'!$A48,Tranzactii!$E$10:$E$4852,'Colectare date cheltuieli'!$B48) -> 0 | I48: =SUMIFS(Tranzactii!$G$10:$G$4852,Tranzactii!$A$10:$A$4852,I$6,Tranzactii!$D$10:$D$4852,'Colectare date cheltuieli'!$A48,Tranzactii!$E$10:$E$4852,'Colectare date cheltuieli'!$B48) -> 0 | J48: =SUMIFS(Tranzactii!$G$10:$G$4852,Tranzactii!$A$10:$A$4852,J$6,Tranzactii!$D$10:$D$4852,'Colectare date cheltuieli'!$A48,Tranzactii!$E$10:$E$4852,'Colectare date cheltuieli'!$B48) -> 0 | K48: =SUMIFS(Tranzactii!$G$10:$G$4852,Tranzactii!$A$10:$A$4852,K$6,Tranzactii!$D$10:$D$4852,'Colectare date cheltuieli'!$A48,Tranzactii!$E$10:$E$4852,'Colectare date cheltuieli'!$B48) -> 0 | L48: =SUMIFS(Tranzactii!$G$10:$G$4852,Tranzactii!$A$10:$A$4852,L$6,Tranzactii!$D$10:$D$4852,'Colectare date cheltuieli'!$A48,Tranzactii!$E$10:$E$4852,'Colectare date cheltuieli'!$B48) -> 0 | M48: =SUMIFS(Tranzactii!$G$10:$G$4852,Tranzactii!$A$10:$A$4852,M$6,Tranzactii!$D$10:$D$4852,'Colectare date cheltuieli'!$A48,Tranzactii!$E$10:$E$4852,'Colectare date cheltuieli'!$B48) -> 0 | N48: =SUMIFS(Tranzactii!$G$10:$G$4852,Tranzactii!$A$10:$A$4852,N$6,Tranzactii!$D$10:$D$4852,'Colectare date cheltuieli'!$A48,Tranzactii!$E$10:$E$4852,'Colectare date cheltuieli'!$B48) -> 0 | O48: 40 | P48: =IF('Raport Lunar'!$D$3="","",HLOOKUP('Raport Lunar'!$D$3,$A$7:$N$55,Q48,0)) -> 0 | Q48: 42 | R48: =HLOOKUP('Raport Lunar'!$D$3,'VC Previziuni'!$A$12:$N$60,ROWS('Colectare date cheltuieli'!$C$7:C48),0) -> 0 | S48: 0
A49: ='Setare fisier'!I48 -> Ingrijire personala | B49: ='Setare fisier'!J48 -> Sala | C49: =SUMIFS(Tranzactii!$G$10:$G$4852,Tranzactii!$A$10:$A$4852,C$6,Tranzactii!$D$10:$D$4852,'Colectare date cheltuieli'!$A49,Tranzactii!$E$10:$E$4852,'Colectare date cheltuieli'!$B49) -> 0 | D49: =SUMIFS(Tranzactii!$G$10:$G$4852,Tranzactii!$A$10:$A$4852,D$6,Tranzactii!$D$10:$D$4852,'Colectare date cheltuieli'!$A49,Tranzactii!$E$10:$E$4852,'Colectare date cheltuieli'!$B49) -> 0 | E49: =SUMIFS(Tranzactii!$G$10:$G$4852,Tranzactii!$A$10:$A$4852,E$6,Tranzactii!$D$10:$D$4852,'Colectare date cheltuieli'!$A49,Tranzactii!$E$10:$E$4852,'Colectare date cheltuieli'!$B49) -> 0 | F49: =SUMIFS(Tranzactii!$G$10:$G$4852,Tranzactii!$A$10:$A$4852,F$6,Tranzactii!$D$10:$D$4852,'Colectare date cheltuieli'!$A49,Tranzactii!$E$10:$E$4852,'Colectare date cheltuieli'!$B49) -> 0 | G49: =SUMIFS(Tranzactii!$G$10:$G$4852,Tranzactii!$A$10:$A$4852,G$6,Tranzactii!$D$10:$D$4852,'Colectare date cheltuieli'!$A49,Tranzactii!$E$10:$E$4852,'Colectare date cheltuieli'!$B49) -> 0 | H49: =SUMIFS(Tranzactii!$G$10:$G$4852,Tranzactii!$A$10:$A$4852,H$6,Tranzactii!$D$10:$D$4852,'Colectare date cheltuieli'!$A49,Tranzactii!$E$10:$E$4852,'Colectare date cheltuieli'!$B49) -> 0 | I49: =SUMIFS(Tranzactii!$G$10:$G$4852,Tranzactii!$A$10:$A$4852,I$6,Tranzactii!$D$10:$D$4852,'Colectare date cheltuieli'!$A49,Tranzactii!$E$10:$E$4852,'Colectare date cheltuieli'!$B49) -> 0 | J49: =SUMIFS(Tranzactii!$G$10:$G$4852,Tranzactii!$A$10:$A$4852,J$6,Tranzactii!$D$10:$D$4852,'Colectare date cheltuieli'!$A49,Tranzactii!$E$10:$E$4852,'Colectare date cheltuieli'!$B49) -> 0 | K49: =SUMIFS(Tranzactii!$G$10:$G$4852,Tranzactii!$A$10:$A$4852,K$6,Tranzactii!$D$10:$D$4852,'Colectare date cheltuieli'!$A49,Tranzactii!$E$10:$E$4852,'Colectare date cheltuieli'!$B49) -> 0 | L49: =SUMIFS(Tranzactii!$G$10:$G$4852,Tranzactii!$A$10:$A$4852,L$6,Tranzactii!$D$10:$D$4852,'Colectare date cheltuieli'!$A49,Tranzactii!$E$10:$E$4852,'Colectare date cheltuieli'!$B49) -> 0 | M49: =SUMIFS(Tranzactii!$G$10:$G$4852,Tranzactii!$A$10:$A$4852,M$6,Tranzactii!$D$10:$D$4852,'Colectare date cheltuieli'!$A49,Tranzactii!$E$10:$E$4852,'Colectare date cheltuieli'!$B49) -> 0 | N49: =SUMIFS(Tranzactii!$G$10:$G$4852,Tranzactii!$A$10:$A$4852,N$6,Tranzactii!$D$10:$D$4852,'Colectare date cheltuieli'!$A49,Tranzactii!$E$10:$E$4852,'Colectare date cheltuieli'!$B49) -> 0 | O49: 0 | P49: =IF('Raport Lunar'!$D$3="","",HLOOKUP('Raport Lunar'!$D$3,$A$7:$N$55,Q49,0)) -> 0 | Q49: 43 | R49: =HLOOKUP('Raport Lunar'!$D$3,'VC Previziuni'!$A$12:$N$60,ROWS('Colectare date cheltuieli'!$C$7:C49),0) -> 0 | S49: 0
A50: ='Setare fisier'!I49 -> Mancare si alte necesitati | B50: ='Setare fisier'!J49 -> Alte cumparaturi | C50: =SUMIFS(Tranzactii!$G$10:$G$4852,Tranzactii!$A$10:$A$4852,C$6,Tranzactii!$D$10:$D$4852,'Colectare date cheltuieli'!$A50,Tranzactii!$E$10:$E$4852,'Colectare date cheltuieli'!$B50) -> 0 | D50: =SUMIFS(Tranzactii!$G$10:$G$4852,Tranzactii!$A$10:$A$4852,D$6,Tranzactii!$D$10:$D$4852,'Colectare date cheltuieli'!$A50,Tranzactii!$E$10:$E$4852,'Colectare date cheltuieli'!$B50) -> 0 | E50: =SUMIFS(Tranzactii!$G$10:$G$4852,Tranzactii!$A$10:$A$4852,E$6,Tranzactii!$D$10:$D$4852,'Colectare date cheltuieli'!$A50,Tranzactii!$E$10:$E$4852,'Colectare date cheltuieli'!$B50) -> 0 | F50: =SUMIFS(Tranzactii!$G$10:$G$4852,Tranzactii!$A$10:$A$4852,F$6,Tranzactii!$D$10:$D$4852,'Colectare date cheltuieli'!$A50,Tranzactii!$E$10:$E$4852,'Colectare date cheltuieli'!$B50) -> 0 | G50: =SUMIFS(Tranzactii!$G$10:$G$4852,Tranzactii!$A$10:$A$4852,G$6,Tranzactii!$D$10:$D$4852,'Colectare date cheltuieli'!$A50,Tranzactii!$E$10:$E$4852,'Colectare date cheltuieli'!$B50) -> 0 | H50: =SUMIFS(Tranzactii!$G$10:$G$4852,Tranzactii!$A$10:$A$4852,H$6,Tranzactii!$D$10:$D$4852,'Colectare date cheltuieli'!$A50,Tranzactii!$E$10:$E$4852,'Colectare date cheltuieli'!$B50) -> 0 | I50: =SUMIFS(Tranzactii!$G$10:$G$4852,Tranzactii!$A$10:$A$4852,I$6,Tranzactii!$D$10:$D$4852,'Colectare date cheltuieli'!$A50,Tranzactii!$E$10:$E$4852,'Colectare date cheltuieli'!$B50) -> 0 | J50: =SUMIFS(Tranzactii!$G$10:$G$4852,Tranzactii!$A$10:$A$4852,J$6,Tranzactii!$D$10:$D$4852,'Colectare date cheltuieli'!$A50,Tranzactii!$E$10:$E$4852,'Colectare date cheltuieli'!$B50) -> 0 | K50: =SUMIFS(Tranzactii!$G$10:$G$4852,Tranzactii!$A$10:$A$4852,K$6,Tranzactii!$D$10:$D$4852,'Colectare date cheltuieli'!$A50,Tranzactii!$E$10:$E$4852,'Colectare date cheltuieli'!$B50) -> 0 | L50: =SUMIFS(Tranzactii!$G$10:$G$4852,Tranzactii!$A$10:$A$4852,L$6,Tranzactii!$D$10:$D$4852,'Colectare date cheltuieli'!$A50,Tranzactii!$E$10:$E$4852,'Colectare date cheltuieli'!$B50) -> 0 | M50: =SUMIFS(Tranzactii!$G$10:$G$4852,Tranzactii!$A$10:$A$4852,M$6,Tranzactii!$D$10:$D$4852,'Colectare date cheltuieli'!$A50,Tranzactii!$E$10:$E$4852,'Colectare date cheltuieli'!$B50) -> 0 | N50: =SUMIFS(Tranzactii!$G$10:$G$4852,Tranzactii!$A$10:$A$4852,N$6,Tranzactii!$D$10:$D$4852,'Colectare date cheltuieli'!$A50,Tranzactii!$E$10:$E$4852,'Colectare date cheltuieli'!$B50) -> 0 | O50: 0 | P50: =IF('Raport Lunar'!$D$3="","",HLOOKUP('Raport Lunar'!$D$3,$A$7:$N$55,Q50,0)) -> 0 | Q50: 44 | R50: =HLOOKUP('Raport Lunar'!$D$3,'VC Previziuni'!$A$12:$N$60,ROWS('Colectare date cheltuieli'!$C$7:C50),0) -> 0 | S50: 0
A51: ='Setare fisier'!I50 -> Mancare si alte necesitati | B51: ='Setare fisier'!J50 -> Cumparaturi | C51: =SUMIFS(Tranzactii!$G$10:$G$4852,Tranzactii!$A$10:$A$4852,C$6,Tranzactii!$D$10:$D$4852,'Colectare date cheltuieli'!$A51,Tranzactii!$E$10:$E$4852,'Colectare date cheltuieli'!$B51) -> 728 | D51: =SUMIFS(Tranzactii!$G$10:$G$4852,Tranzactii!$A$10:$A$4852,D$6,Tranzactii!$D$10:$D$4852,'Colectare date cheltuieli'!$A51,Tranzactii!$E$10:$E$4852,'Colectare date cheltuieli'!$B51) -> 0 | E51: =SUMIFS(Tranzactii!$G$10:$G$4852,Tranzactii!$A$10:$A$4852,E$6,Tranzactii!$D$10:$D$4852,'Colectare date cheltuieli'!$A51,Tranzactii!$E$10:$E$4852,'Colectare date cheltuieli'!$B51) -> 0 | F51: =SUMIFS(Tranzactii!$G$10:$G$4852,Tranzactii!$A$10:$A$4852,F$6,Tranzactii!$D$10:$D$4852,'Colectare date cheltuieli'!$A51,Tranzactii!$E$10:$E$4852,'Colectare date cheltuieli'!$B51) -> 0 | G51: =SUMIFS(Tranzactii!$G$10:$G$4852,Tranzactii!$A$10:$A$4852,G$6,Tranzactii!$D$10:$D$4852,'Colectare date cheltuieli'!$A51,Tranzactii!$E$10:$E$4852,'Colectare date cheltuieli'!$B51) -> 0 | H51: =SUMIFS(Tranzactii!$G$10:$G$4852,Tranzactii!$A$10:$A$4852,H$6,Tranzactii!$D$10:$D$4852,'Colectare date cheltuieli'!$A51,Tranzactii!$E$10:$E$4852,'Colectare date cheltuieli'!$B51) -> 0 | I51: =SUMIFS(Tranzactii!$G$10:$G$4852,Tranzactii!$A$10:$A$4852,I$6,Tranzactii!$D$10:$D$4852,'Colectare date cheltuieli'!$A51,Tranzactii!$E$10:$E$4852,'Colectare date cheltuieli'!$B51) -> 0 | J51: =SUMIFS(Tranzactii!$G$10:$G$4852,Tranzactii!$A$10:$A$4852,J$6,Tranzactii!$D$10:$D$4852,'Colectare date cheltuieli'!$A51,Tranzactii!$E$10:$E$4852,'Colectare date cheltuieli'!$B51) -> 0 | K51: =SUMIFS(Tranzactii!$G$10:$G$4852,Tranzactii!$A$10:$A$4852,K$6,Tranzactii!$D$10:$D$4852,'Colectare date cheltuieli'!$A51,Tranzactii!$E$10:$E$4852,'Colectare date cheltuieli'!$B51) -> 0 | L51: =SUMIFS(Tranzactii!$G$10:$G$4852,Tranzactii!$A$10:$A$4852,L$6,Tranzactii!$D$10:$D$4852,'Colectare date cheltuieli'!$A51,Tranzactii!$E$10:$E$4852,'Colectare date cheltuieli'!$B51) -> 0 | M51: =SUMIFS(Tranzactii!$G$10:$G$4852,Tranzactii!$A$10:$A$4852,M$6,Tranzactii!$D$10:$D$4852,'Colectare date cheltuieli'!$A51,Tranzactii!$E$10:$E$4852,'Colectare date cheltuieli'!$B51) -> 0 | N51: =SUMIFS(Tranzactii!$G$10:$G$4852,Tranzactii!$A$10:$A$4852,N$6,Tranzactii!$D$10:$D$4852,'Colectare date cheltuieli'!$A51,Tranzactii!$E$10:$E$4852,'Colectare date cheltuieli'!$B51) -> 0 | O51: 728 | P51: =IF('Raport Lunar'!$D$3="","",HLOOKUP('Raport Lunar'!$D$3,$A$7:$N$55,Q51,0)) -> 0 | Q51: 45 | R51: =HLOOKUP('Raport Lunar'!$D$3,'VC Previziuni'!$A$12:$N$60,ROWS('Colectare date cheltuieli'!$C$7:C51),0) -> 1000 | S51: 1000
A52: ='Setare fisier'!I51 -> Transport | B52: ='Setare fisier'!J51 -> Abonament RATB/Metrorex | C52: =SUMIFS(Tranzactii!$G$10:$G$4852,Tranzactii!$A$10:$A$4852,C$6,Tranzactii!$D$10:$D$4852,'Colectare date cheltuieli'!$A52,Tranzactii!$E$10:$E$4852,'Colectare date cheltuieli'!$B52) -> 0 | D52: =SUMIFS(Tranzactii!$G$10:$G$4852,Tranzactii!$A$10:$A$4852,D$6,Tranzactii!$D$10:$D$4852,'Colectare date cheltuieli'!$A52,Tranzactii!$E$10:$E$4852,'Colectare date cheltuieli'!$B52) -> 0 | E52: =SUMIFS(Tranzactii!$G$10:$G$4852,Tranzactii!$A$10:$A$4852,E$6,Tranzactii!$D$10:$D$4852,'Colectare date cheltuieli'!$A52,Tranzactii!$E$10:$E$4852,'Colectare date cheltuieli'!$B52) -> 0 | F52: =SUMIFS(Tranzactii!$G$10:$G$4852,Tranzactii!$A$10:$A$4852,F$6,Tranzactii!$D$10:$D$4852,'Colectare date cheltuieli'!$A52,Tranzactii!$E$10:$E$4852,'Colectare date cheltuieli'!$B52) -> 0 | G52: =SUMIFS(Tranzactii!$G$10:$G$4852,Tranzactii!$A$10:$A$4852,G$6,Tranzactii!$D$10:$D$4852,'Colectare date cheltuieli'!$A52,Tranzactii!$E$10:$E$4852,'Colectare date cheltuieli'!$B52) -> 0 | H52: =SUMIFS(Tranzactii!$G$10:$G$4852,Tranzactii!$A$10:$A$4852,H$6,Tranzactii!$D$10:$D$4852,'Colectare date cheltuieli'!$A52,Tranzactii!$E$10:$E$4852,'Colectare date cheltuieli'!$B52) -> 0 | I52: =SUMIFS(Tranzactii!$G$10:$G$4852,Tranzactii!$A$10:$A$4852,I$6,Tranzactii!$D$10:$D$4852,'Colectare date cheltuieli'!$A52,Tranzactii!$E$10:$E$4852,'Colectare date cheltuieli'!$B52) -> 0 | J52: =SUMIFS(Tranzactii!$G$10:$G$4852,Tranzactii!$A$10:$A$4852,J$6,Tranzactii!$D$10:$D$4852,'Colectare date cheltuieli'!$A52,Tranzactii!$E$10:$E$4852,'Colectare date cheltuieli'!$B52) -> 0 | K52: =SUMIFS(Tranzactii!$G$10:$G$4852,Tranzactii!$A$10:$A$4852,K$6,Tranzactii!$D$10:$D$4852,'Colectare date cheltuieli'!$A52,Tranzactii!$E$10:$E$4852,'Colectare date cheltuieli'!$B52) -> 0 | L52: =SUMIFS(Tranzactii!$G$10:$G$4852,Tranzactii!$A$10:$A$4852,L$6,Tranzactii!$D$10:$D$4852,'Colectare date cheltuieli'!$A52,Tranzactii!$E$10:$E$4852,'Colectare date cheltuieli'!$B52) -> 0 | M52: =SUMIFS(Tranzactii!$G$10:$G$4852,Tranzactii!$A$10:$A$4852,M$6,Tranzactii!$D$10:$D$4852,'Colectare date cheltuieli'!$A52,Tranzactii!$E$10:$E$4852,'Colectare date cheltuieli'!$B52) -> 0 | N52: =SUMIFS(Tranzactii!$G$10:$G$4852,Tranzactii!$A$10:$A$4852,N$6,Tranzactii!$D$10:$D$4852,'Colectare date cheltuieli'!$A52,Tranzactii!$E$10:$E$4852,'Colectare date cheltuieli'!$B52) -> 0 | O52: 0 | P52: =IF('Raport Lunar'!$D$3="","",HLOOKUP('Raport Lunar'!$D$3,$A$7:$N$55,Q52,0)) -> 0 | Q52: 46 | R52: =HLOOKUP('Raport Lunar'!$D$3,'VC Previziuni'!$A$12:$N$60,ROWS('Colectare date cheltuieli'!$C$7:C52),0) -> 0 | S52: 0
A53: ='Setare fisier'!I52 -> Transport | B53: ='Setare fisier'!J52 -> Alte cheltuieli | C53: =SUMIFS(Tranzactii!$G$10:$G$4852,Tranzactii!$A$10:$A$4852,C$6,Tranzactii!$D$10:$D$4852,'Colectare date cheltuieli'!$A53,Tranzactii!$E$10:$E$4852,'Colectare date cheltuieli'!$B53) -> 25 | D53: =SUMIFS(Tranzactii!$G$10:$G$4852,Tranzactii!$A$10:$A$4852,D$6,Tranzactii!$D$10:$D$4852,'Colectare date cheltuieli'!$A53,Tranzactii!$E$10:$E$4852,'Colectare date cheltuieli'!$B53) -> 0 | E53: =SUMIFS(Tranzactii!$G$10:$G$4852,Tranzactii!$A$10:$A$4852,E$6,Tranzactii!$D$10:$D$4852,'Colectare date cheltuieli'!$A53,Tranzactii!$E$10:$E$4852,'Colectare date cheltuieli'!$B53) -> 0 | F53: =SUMIFS(Tranzactii!$G$10:$G$4852,Tranzactii!$A$10:$A$4852,F$6,Tranzactii!$D$10:$D$4852,'Colectare date cheltuieli'!$A53,Tranzactii!$E$10:$E$4852,'Colectare date cheltuieli'!$B53) -> 0 | G53: =SUMIFS(Tranzactii!$G$10:$G$4852,Tranzactii!$A$10:$A$4852,G$6,Tranzactii!$D$10:$D$4852,'Colectare date cheltuieli'!$A53,Tranzactii!$E$10:$E$4852,'Colectare date cheltuieli'!$B53) -> 0 | H53: =SUMIFS(Tranzactii!$G$10:$G$4852,Tranzactii!$A$10:$A$4852,H$6,Tranzactii!$D$10:$D$4852,'Colectare date cheltuieli'!$A53,Tranzactii!$E$10:$E$4852,'Colectare date cheltuieli'!$B53) -> 0 | I53: =SUMIFS(Tranzactii!$G$10:$G$4852,Tranzactii!$A$10:$A$4852,I$6,Tranzactii!$D$10:$D$4852,'Colectare date cheltuieli'!$A53,Tranzactii!$E$10:$E$4852,'Colectare date cheltuieli'!$B53) -> 0 | J53: =SUMIFS(Tranzactii!$G$10:$G$4852,Tranzactii!$A$10:$A$4852,J$6,Tranzactii!$D$10:$D$4852,'Colectare date cheltuieli'!$A53,Tranzactii!$E$10:$E$4852,'Colectare date cheltuieli'!$B53) -> 0 | K53: =SUMIFS(Tranzactii!$G$10:$G$4852,Tranzactii!$A$10:$A$4852,K$6,Tranzactii!$D$10:$D$4852,'Colectare date cheltuieli'!$A53,Tranzactii!$E$10:$E$4852,'Colectare date cheltuieli'!$B53) -> 0 | L53: =SUMIFS(Tranzactii!$G$10:$G$4852,Tranzactii!$A$10:$A$4852,L$6,Tranzactii!$D$10:$D$4852,'Colectare date cheltuieli'!$A53,Tranzactii!$E$10:$E$4852,'Colectare date cheltuieli'!$B53) -> 0 | M53: =SUMIFS(Tranzactii!$G$10:$G$4852,Tranzactii!$A$10:$A$4852,M$6,Tranzactii!$D$10:$D$4852,'Colectare date cheltuieli'!$A53,Tranzactii!$E$10:$E$4852,'Colectare date cheltuieli'!$B53) -> 0 | N53: =SUMIFS(Tranzactii!$G$10:$G$4852,Tranzactii!$A$10:$A$4852,N$6,Tranzactii!$D$10:$D$4852,'Colectare date cheltuieli'!$A53,Tranzactii!$E$10:$E$4852,'Colectare date cheltuieli'!$B53) -> 0 | O53: 25 | P53: =IF('Raport Lunar'!$D$3="","",HLOOKUP('Raport Lunar'!$D$3,$A$7:$N$55,Q53,0)) -> 0 | Q53: 47 | R53: =HLOOKUP('Raport Lunar'!$D$3,'VC Previziuni'!$A$12:$N$60,ROWS('Colectare date cheltuieli'!$C$7:C53),0) -> 0 | S53: =R53-P53 -> 0
A54: ='Setare fisier'!I53 -> Transport | B54: ='Setare fisier'!J53 -> Combustibil | C54: =SUMIFS(Tranzactii!$G$10:$G$4852,Tranzactii!$A$10:$A$4852,C$6,Tranzactii!$D$10:$D$4852,'Colectare date cheltuieli'!$A54,Tranzactii!$E$10:$E$4852,'Colectare date cheltuieli'!$B54) -> 295 | D54: =SUMIFS(Tranzactii!$G$10:$G$4852,Tranzactii!$A$10:$A$4852,D$6,Tranzactii!$D$10:$D$4852,'Colectare date cheltuieli'!$A54,Tranzactii!$E$10:$E$4852,'Colectare date cheltuieli'!$B54) -> 0 | E54: =SUMIFS(Tranzactii!$G$10:$G$4852,Tranzactii!$A$10:$A$4852,E$6,Tranzactii!$D$10:$D$4852,'Colectare date cheltuieli'!$A54,Tranzactii!$E$10:$E$4852,'Colectare date cheltuieli'!$B54) -> 0 | F54: =SUMIFS(Tranzactii!$G$10:$G$4852,Tranzactii!$A$10:$A$4852,F$6,Tranzactii!$D$10:$D$4852,'Colectare date cheltuieli'!$A54,Tranzactii!$E$10:$E$4852,'Colectare date cheltuieli'!$B54) -> 0 | G54: =SUMIFS(Tranzactii!$G$10:$G$4852,Tranzactii!$A$10:$A$4852,G$6,Tranzactii!$D$10:$D$4852,'Colectare date cheltuieli'!$A54,Tranzactii!$E$10:$E$4852,'Colectare date cheltuieli'!$B54) -> 0 | H54: =SUMIFS(Tranzactii!$G$10:$G$4852,Tranzactii!$A$10:$A$4852,H$6,Tranzactii!$D$10:$D$4852,'Colectare date cheltuieli'!$A54,Tranzactii!$E$10:$E$4852,'Colectare date cheltuieli'!$B54) -> 0 | I54: =SUMIFS(Tranzactii!$G$10:$G$4852,Tranzactii!$A$10:$A$4852,I$6,Tranzactii!$D$10:$D$4852,'Colectare date cheltuieli'!$A54,Tranzactii!$E$10:$E$4852,'Colectare date cheltuieli'!$B54) -> 0 | J54: =SUMIFS(Tranzactii!$G$10:$G$4852,Tranzactii!$A$10:$A$4852,J$6,Tranzactii!$D$10:$D$4852,'Colectare date cheltuieli'!$A54,Tranzactii!$E$10:$E$4852,'Colectare date cheltuieli'!$B54) -> 0 | K54: =SUMIFS(Tranzactii!$G$10:$G$4852,Tranzactii!$A$10:$A$4852,K$6,Tranzactii!$D$10:$D$4852,'Colectare date cheltuieli'!$A54,Tranzactii!$E$10:$E$4852,'Colectare date cheltuieli'!$B54) -> 0 | L54: =SUMIFS(Tranzactii!$G$10:$G$4852,Tranzactii!$A$10:$A$4852,L$6,Tranzactii!$D$10:$D$4852,'Colectare date cheltuieli'!$A54,Tranzactii!$E$10:$E$4852,'Colectare date cheltuieli'!$B54) -> 0 | M54: =SUMIFS(Tranzactii!$G$10:$G$4852,Tranzactii!$A$10:$A$4852,M$6,Tranzactii!$D$10:$D$4852,'Colectare date cheltuieli'!$A54,Tranzactii!$E$10:$E$4852,'Colectare date cheltuieli'!$B54) -> 0 | N54: =SUMIFS(Tranzactii!$G$10:$G$4852,Tranzactii!$A$10:$A$4852,N$6,Tranzactii!$D$10:$D$4852,'Colectare date cheltuieli'!$A54,Tranzactii!$E$10:$E$4852,'Colectare date cheltuieli'!$B54) -> 0 | O54: 295 | P54: =IF('Raport Lunar'!$D$3="","",HLOOKUP('Raport Lunar'!$D$3,$A$7:$N$55,Q54,0)) -> 0 | Q54: 48 | R54: =HLOOKUP('Raport Lunar'!$D$3,'VC Previziuni'!$A$12:$N$60,ROWS('Colectare date cheltuieli'!$C$7:C54),0) -> 250 | S54: 250
A55: ='Setare fisier'!I54 -> Transport | B55: ='Setare fisier'!J54 -> Impozit masina | C55: =SUMIFS(Tranzactii!$G$10:$G$4852,Tranzactii!$A$10:$A$4852,C$6,Tranzactii!$D$10:$D$4852,'Colectare date cheltuieli'!$A55,Tranzactii!$E$10:$E$4852,'Colectare date cheltuieli'!$B55) -> 0 | D55: =SUMIFS(Tranzactii!$G$10:$G$4852,Tranzactii!$A$10:$A$4852,D$6,Tranzactii!$D$10:$D$4852,'Colectare date cheltuieli'!$A55,Tranzactii!$E$10:$E$4852,'Colectare date cheltuieli'!$B55) -> 0 | E55: =SUMIFS(Tranzactii!$G$10:$G$4852,Tranzactii!$A$10:$A$4852,E$6,Tranzactii!$D$10:$D$4852,'Colectare date cheltuieli'!$A55,Tranzactii!$E$10:$E$4852,'Colectare date cheltuieli'!$B55) -> 0 | F55: =SUMIFS(Tranzactii!$G$10:$G$4852,Tranzactii!$A$10:$A$4852,F$6,Tranzactii!$D$10:$D$4852,'Colectare date cheltuieli'!$A55,Tranzactii!$E$10:$E$4852,'Colectare date cheltuieli'!$B55) -> 0 | G55: =SUMIFS(Tranzactii!$G$10:$G$4852,Tranzactii!$A$10:$A$4852,G$6,Tranzactii!$D$10:$D$4852,'Colectare date cheltuieli'!$A55,Tranzactii!$E$10:$E$4852,'Colectare date cheltuieli'!$B55) -> 0 | H55: =SUMIFS(Tranzactii!$G$10:$G$4852,Tranzactii!$A$10:$A$4852,H$6,Tranzactii!$D$10:$D$4852,'Colectare date cheltuieli'!$A55,Tranzactii!$E$10:$E$4852,'Colectare date cheltuieli'!$B55) -> 0 | I55: =SUMIFS(Tranzactii!$G$10:$G$4852,Tranzactii!$A$10:$A$4852,I$6,Tranzactii!$D$10:$D$4852,'Colectare date cheltuieli'!$A55,Tranzactii!$E$10:$E$4852,'Colectare date cheltuieli'!$B55) -> 0 | J55: =SUMIFS(Tranzactii!$G$10:$G$4852,Tranzactii!$A$10:$A$4852,J$6,Tranzactii!$D$10:$D$4852,'Colectare date cheltuieli'!$A55,Tranzactii!$E$10:$E$4852,'Colectare date cheltuieli'!$B55) -> 0 | K55: =SUMIFS(Tranzactii!$G$10:$G$4852,Tranzactii!$A$10:$A$4852,K$6,Tranzactii!$D$10:$D$4852,'Colectare date cheltuieli'!$A55,Tranzactii!$E$10:$E$4852,'Colectare date cheltuieli'!$B55) -> 0 | L55: =SUMIFS(Tranzactii!$G$10:$G$4852,Tranzactii!$A$10:$A$4852,L$6,Tranzactii!$D$10:$D$4852,'Colectare date cheltuieli'!$A55,Tranzactii!$E$10:$E$4852,'Colectare date cheltuieli'!$B55) -> 0 | M55: =SUMIFS(Tranzactii!$G$10:$G$4852,Tranzactii!$A$10:$A$4852,M$6,Tranzactii!$D$10:$D$4852,'Colectare date cheltuieli'!$A55,Tranzactii!$E$10:$E$4852,'Colectare date cheltuieli'!$B55) -> 0 | N55: =SUMIFS(Tranzactii!$G$10:$G$4852,Tranzactii!$A$10:$A$4852,N$6,Tranzactii!$D$10:$D$4852,'Colectare date cheltuieli'!$A55,Tranzactii!$E$10:$E$4852,'Colectare date cheltuieli'!$B55) -> 0 | O55: 0 | P55: =IF('Raport Lunar'!$D$3="","",HLOOKUP('Raport Lunar'!$D$3,$A$7:$N$55,Q55,0)) -> 0 | Q55: 49 | R55: =HLOOKUP('Raport Lunar'!$D$3,'VC Previziuni'!$A$12:$N$60,ROWS('Colectare date cheltuieli'!$C$7:C55),0) -> 0 | S55: 0
A56: Total | C56: =SUM(C8:C49) -> 4151.83 | D56: 1000 | E56: =SUM(E8:E49) -> 0 | F56: =SUM(F8:F49) -> 0 | G56: =SUM(G8:G49) -> 0 | H56: =SUM(H8:H49) -> 0 | I56: =SUM(I8:I49) -> 0 | J56: =SUM(J8:J49) -> 0 | K56: =SUM(K8:K49) -> 0 | L56: =SUM(L8:L49) -> 0 | M56: =SUM(M8:M49) -> 0 | N56: =SUM(N8:N49) -> 0 | O56: 5151.83 | P56: =SUM(P8:P49) -> 1000 | Q56: =SUM(Q8:Q49) -> 945 | R56: 2458 | S56: =SUM(S8:S49) -> 1458

Sheet Colectare date 2012
C2: 1 | D2: 2 | E2: 3 | F2: 4 | G2: 5 | H2: 6 | I2: 7 | J2: 8 | K2: 9 | L2: 10 | M2: 11 | N2: 12
A3: VENITURI REALIZATE | B3: - | C3: Ianuarie | D3: Februarie | E3: Martie | F3: Aprilie | G3: Mai | H3: Iunie | I3: Iulie | J3: August | K3: Septembrie | L3: Octombrie | M3: Noiembrie | N3: Decembrie | O3: Total
A4: Salariu | C4: 3200 | D4: 3105 | E4: 3105 | F4: 3105 | G4: 3105 | H4: 3500 | I4: 3105 | J4: 3105 | K4: 3300 | L4: 3105 | M4: 3105 | N4: 4000 | O4: =SUM(C4:N4) -> 38840
A5: Alte venituri | O5: =SUM(C5:N5) -> 0
A6: Total | C6: =SUM(C4:C5) -> 3200 | D6: =SUM(D4:D5) -> 3105 | E6: 3105 | F6: 3105 | G6: 3105 | H6: 3500 | I6: 3105 | J6: 3105 | K6: 3300 | L6: 3105 | M6: 3105 | N6: 4000 | O6: =SUM(C6:N6) -> 38840
A7: YTD Realizat | C7: =SUM($C6:C6) -> 3200 | D7: =SUM($C6:D6) -> 6305 | E7: =SUM($C6:E6) -> 9410 | F7: =SUM($C6:F6) -> 12515 | G7: =SUM($C6:G6) -> 15620 | H7: =SUM($C6:H6) -> 19120 | I7: =SUM($C6:I6) -> 22225 | J7: =SUM($C6:J6) -> 25330 | K7: =SUM($C6:K6) -> 28630 | L7: =SUM($C6:L6) -> 31735 | M7: =SUM($C6:M6) -> 34840 | N7: =SUM($C6:N6) -> 38840
A9: CHELTUIELI REALIZATE | B9: -
A10: Categorie | B10: Descriere | C10: Ianuarie | D10: Februarie | E10: Martie | F10: Aprilie | G10: Mai | H10: Iunie | I10: Iulie | J10: August | K10: Septembrie | L10: Octombrie | M10: Noiembrie | N10: Decembrie | O10: Total | Q10: SUMAR CHELTUIELI
A11: Cheltuieli casa | B11: Telefon | C11: 135 | D11: 128 | E11: 140 | F11: 300 | G11: 164 | H11: 150 | I11: 170 | O11: =SUM(C11:N11) -> 1187 | Q11: Categorie | R11: Total an
A12: Cheltuieli casa | B12: Curent | C12: 98 | D12: 86 | E12: 85 | F12: 87 | G12: 85 | H12: 63 | I12: 62 | O12: =SUM(C12:N12) -> 566 | Q12: Cheltuieli casa | R12: =SUMIF($A$10:$A$49,Q12,$O$10:$O$49) -> 4577
A13: Cheltuieli casa | B13: Gaz | C13: 170 | D13: 190 | E13: 200 | F13: 196 | G13: 100 | H13: 25 | I13: 16 | O13: 897 | Q13: Cheltuieli bancare | R13: 103
A14: Cheltuieli casa | B14: Intretinere | C14: 350 | D14: 0 | E14: 210 | F14: 210 | G14: 0 | H14: 0 | I14: 0 | O14: 770 | Q14: Transport | R14: 2340
A15: Cheltuieli casa | B15: Cablu si internet | C15: 138 | D15: 69 | E15: 0 | F15: 138 | G15: 69 | H15: 69 | I15: 69 | O15: 552 | Q15: Asigurari | R15: 2644
A16: Cheltuieli casa | B16: Reparatii | C16: 0 | D16: 0 | E16: 0 | F16: 0 | G16: 0 | H16: 0 | I16: 0 | O16: 0 | Q16: Mancare si alte necesitati | R16: 9575
A17: Cheltuieli casa | B17: Impozit casa | C17: 145 | D17: 0 | E17: 0 | F17: 0 | G17: 0 | H17: 0 | I17: 0 | O17: 145 | Q17: Ingrijire personala | R17: 1634
A18: Cheltuieli casa | B18: Alte cheltuieli | C18: 0 | D18: 210 | E18: 0 | F18: 0 | G18: 0 | H18: 250 | I18: 0 | O18: 460 | Q18: Cheltuieli copil | R18: 330
A19: Cheltuieli bancare | B19: Comisioane retrageri/OP | C19: 3.5 | D19: 5 | E19: 8 | F19: 10 | G19: 10 | H19: 15 | I19: 9 | O19: 60.5 | Q19: Divertisment | R19: 135.3
A20: Cheltuieli bancare | B20: Taxe lunare | C20: 5 | D20: 5 | E20: 5.5 | F20: 2.5 | G20: 6.5 | H20: 6.5 | I20: 11.5 | O20: 42.5 | Q20: Imprumuturi si economii | R20: 1400
A21: Transport | B21: Abonament RATB/Metrorex | C21: 100 | D21: 45 | E21: 0 | F21: 70 | G21: 10 | H21: 145 | I21: 70 | O21: 440 | Q21: Cheltuieli exceptionale | R21: 381.63
A22: Transport | B22: Combustibil | C22: 205 | D22: 245 | E22: 150 | F22: 300 | G22: 150 | H22: 550 | I22: 250 | O22: 1850
A23: Transport | B23: Impozit masina | C23: 50 | D23: 0 | E23: 0 | F23: 0 | G23: 0 | H23: 0 | I23: 0 | O23: 50
A24: Transport | B24: Alte cheltuieli | C24: 0 | D24: 0 | E24: 0 | F24: 0 | G24: 0 | H24: 0 | I24: 0 | O24: 0
A25: Asigurari | B25: Casa | C25: 0 | D25: 0 | E25: 0 | F25: 0 | G25: 0 | H25: 0 | I25: 470 | O25: 470
A26: Asigurari | B26: Masina | C26: 250 | D26: 0 | E26: 250 | F26: 0 | G26: 250 | H26: 0 | I26: 250 | O26: 1000
A27: Asigurari | B27: Sanatate | C27: 300 | D27: 0 | E27: 0 | F27: 0 | G27: 0 | H27: 0 | I27: 0 | O27: 300
A28: Asigurari | B28: Viata | C28: 0 | D28: 0 | E28: 0 | F28: 0 | G28: 310 | H28: 0 | I28: 0 | O28: 310
A29: Asigurari | B29: Alte asigurari | C29: 65 | D29: 65 | E29: 65 | F29: 65 | G29: 65 | H29: 174 | I29: 65 | O29: 564
A30: Mancare si alte necesitati | B30: Cumparaturi | C30: 1300 | D30: 1500 | E30: 1250 | F30: 1300 | G30: 1300 | H30: 1450 | I30: 700 | O30: 8800
A31: Mancare si alte necesitati | B31: Iesiri in oras | C31: 350 | D31: 250 | E31: 0 | F31: 100 | G31: 0 | H31: 0 | I31: 75 | O31: 775
A32: Mancare si alte necesitati | B32: Alte cumparaturi | C32: 0 | D32: 0 | E32: 0 | F32: 0 | G32: 0 | H32: 0 | I32: 0 | O32: 0
A33: Ingrijire personala | B33: Medical | C33: 222.5 | D33: 45.5 | E33: 0 | F33: 26 | G33: 45 | H33: 178 | I33: 0 | O33: 517
A34: Ingrijire personala | B34: Cosmetica | C34: 120 | D34: 0 | E34: 140 | F34: 170 | G34: 0 | H34: 60 | I34: 0 | O34: 490
A35: Ingrijire personala | B35: Imbracaminte | C35: 70 | D35: 0 | E35: 0 | F35: 0 | G35: 60 | H35: 52 | I35: 80 | O35: 262
A36: Ingrijire personala | B36: Sala | C36: 0 | D36: 0 | E36: 0 | F36: 0 | G36: 0 | H36: 0 | I36: 0 | O36: 0
A37: Ingrijire personala | B37: Alte cheltuieli | C37: 155 | D37: 0 | E37: 0 | F37: 0 | G37: 0 | H37: 110 | I37: 100 | O37: 365
A38: Cheltuieli copil | B38: Medical | C38: 0 | D38: 0 | E38: 0 | F38: 0 | G38: 30 | H38: 0 | I38: 0 | O38: 30
A39: Cheltuieli copil | B39: Imbracaminte | C39: 0 | D39: 300 | E39: 0 | F39: 0 | G39: 0 | H39: 0 | I39: 0 | O39: 300
A40: Cheltuieli copil | B40: Jucarii | C40: 0 | D40: 0 | E40: 0 | F40: 0 | G40: 0 | H40: 0 | I40: 0 | O40: 0
A41: Cheltuieli copil | B41: Alte cheltuieli | C41: 0 | D41: 0 | E41: 0 | F41: 0 | G41: 0 | H41: 0 | I41: 0 | O41: 0
A42: Divertisment | B42: Cinema | C42: 35 | D42: 0 | E42: 0 | F42: 29.3 | G42: 0 | H42: 0 | I42: 0 | O42: 64.3
A43: Divertisment | B43: Teatru | C43: 0 | D43: 0 | E43: 0 | F43: 0 | G43: 0 | H43: 0 | I43: 0 | O43: 0
A44: Divertisment | B44: Alte cheltuieli | C44: 50 | D44: 21 | E44: 0 | F44: 0 | G44: 0 | H44: 0 | I44: 0 | O44: 71
A45: Imprumuturi si economii | B45: Rate imprumuturi | C45: 0 | D45: 0 | E45: 0 | F45: 0 | G45: 0 | H45: 0 | I45: 0 | O45: 0
A46: Imprumuturi si economii | B46: Imprumuturi date | C46: 0 | D46: 0 | E46: 0 | F46: 0 | G46: 0 | H46: 0 | I46: 0 | O46: 0
A47: Imprumuturi si economii | B47: Economisire | C47: 0 | D47: 0 | E47: 500 | F47: 0 | G47: 0 | H47: 500 | I47: 400 | O47: 1400
A48: Cheltuieli exceptionale | B48: Cadou | C48: 0 | D48: 0 | E48: 41.63 | F48: 200 | G48: 0 | H48: 40 | I48: 100 | O48: 381.63
A49: Cheltuieli exceptionale | B49: Alte cheltuieli exceptionale | C49: 0 | D49: 0 | E49: 0 | F49: 0 | G49: 0 | H49: 0 | I49: 0 | O49: 0
A50: Total | C50: =SUM(C11:C49) -> 4317 | D50: =SUM(D11:D49) -> 3164.5 | E50: 3045.13 | F50: 3203.8 | G50: 2654.5 | H50: 3837.5 | I50: 2897.5 | J50: 0 | K50: 0 | L50: 0 | M50: 0 | N50: 0 | O50: 23119.93
A51: YTD Realizat Cheltuieli | C51: =SUM($C50:C50) -> 4317 | D51: =SUM($C50:D50) -> 7481.5 | E51: =SUM($C50:E50) -> 10526.63 | F51: =SUM($C50:F50) -> 13730.43 | G51: =SUM($C50:G50) -> 16384.93 | H51: =SUM($C50:H50) -> 20222.43 | I51: =SUM($C50:I50) -> 23119.93 | J51: =SUM($C50:J50) -> 23119.93 | K51: =SUM($C50:K50) -> 23119.93 | L51: =SUM($C50:L50) -> 23119.93 | M51: =SUM($C50:M50) -> 23119.93 | N51: =SUM($C50:N50) -> 23119.93 | O51: 211382.5
A52: YTD Realizat Economii | C52: =SUM($C47:C47) -> 0 | D52: =SUM($C47:D47) -> 0 | E52: =SUM($C47:E47) -> 500 | F52: =SUM($C47:F47) -> 500 | G52: =SUM($C47:G47) -> 500 | H52: =SUM($C47:H47) -> 1000 | I52: =SUM($C47:I47) -> 1400 | J52: =SUM($C47:J47) -> 1400 | K52: =SUM($C47:K47) -> 1400 | L52: =SUM($C47:L47) -> 1400 | M52: =SUM($C47:M47) -> 1400 | N52: =SUM($C47:N47) -> 1400

Sheet Colectare date 2013
C1: 1 | D1: 2 | E1: 3 | F1: 4 | G1: 5 | H1: 6 | I1: 7 | J1: 8 | K1: 9 | L1: 10 | M1: 11 | N1: 12
A2: Categorie venituri | B2: Realizat | C2: Ianuarie | D2: Februarie | E2: Martie | F2: Aprilie | G2: Mai | H2: Iunie | I2: Iulie | J2: August | K2: Septembrie | L2: Octombrie | M2: Noiembrie | N2: Decembrie | O2: Total
A3: Salariu | C3: 3500 | D3: 3450 | E3: 3450 | O3: =SUM(C3:N3) -> 10400
A4: Alte venituri | O4: =SUM(C4:N4) -> 0
A5: Total | C5: =SUM(C3:C4) -> 3500 | D5: =SUM(D3:D4) -> 3450 | E5: 3450 | F5: 0 | G5: 0 | H5: 0 | I5: 0 | J5: 0 | K5: 0 | L5: 0 | M5: 0 | N5: 0 | O5: =SUM(O3:O4) -> 10400
A6: YTD Realizat Venituri | C6: =SUM($C5:C5) -> 3500 | D6: =SUM($C5:D5) -> 6950 | E6: =SUM($C5:E5) -> 10400 | F6: =SUM($C5:F5) -> 10400 | G6: =SUM($C5:G5) -> 10400 | H6: =SUM($C5:H5) -> 10400 | I6: =SUM($C5:I5) -> 10400 | J6: =SUM($C5:J5) -> 10400 | K6: =SUM($C5:K5) -> 10400 | L6: =SUM($C5:L5) -> 10400 | M6: =SUM($C5:M5) -> 10400 | N6: =SUM($C5:N5) -> 10400
A8: CHELTUIELI REALIZATE | C8: 1 | D8: 2 | E8: 3 | F8: 4 | G8: 5 | H8: 6 | I8: 7 | J8: 8 | K8: 9 | L8: 10 | M8: 11 | N8: 12
A9: Categorie | B9: Descriere | C9: Ianuarie | D9: Februarie | E9: Martie | F9: Aprilie | G9: Mai | H9: Iunie | I9: Iulie | J9: August | K9: Septembrie | L9: Octombrie | M9: Noiembrie | N9: Decembrie | O9: Total | Q9: SUMAR CHELTUIELI
A10: Asigurari | B10: Alte asigurari | C10: 225 | D10: 132 | E10: 135 | O10: =SUM(C10:N10) -> 492 | Q10: Categorie | R10: Total an
A11: Asigurari | B11: Casa | C11: 43 | D11: 93 | E11: 61 | O11: =SUM(C11:N11) -> 197 | Q11: Cheltuieli casa | R11: =SUMIF($A$9:$A$49,Q11,$O$9:$O$49) -> 1460.5
A12: Asigurari | B12: Masina | C12: 3 | D12: 4 | E12: 6 | O12: 13 | Q12: Cheltuieli bancare | R12: =SUMIF($A$9:$A$49,Q12,$O$9:$O$49) -> 15
A13: Asigurari | B13: Pensie privata | C13: 370 | D13: 150 | E13: 0 | O13: 520 | Q13: Transport | R13: 0
A14: Asigurari | B14: Sanatate | C14: 69 | D14: 0 | E14: 138 | O14: 207 | Q14: Asigurari | R14: 1429
A15: Asigurari | B15: Viata | C15: 0 | D15: 0 | E15: 0 | O15: 0 | Q15: Mancare si alte necesitati | R15: 3100
A16: Cheltuieli bancare | B16: Comisioane retrageri/OP | C16: 0 | D16: 0 | E16: 0 | O16: 0 | Q16: Ingrijire personala | R16: 671
A17: Cheltuieli bancare | B17: Taxe lunare | C17: 15 | D17: 0 | E17: 0 | O17: 15 | Q17: Cheltuieli copil | R17: 505
A18: Cheltuieli casa | B18: Alte cheltuieli | C18: 7 | D18: 17 | E18: 25 | O18: 49 | Q18: Divertisment | R18: 464.9
A19: Cheltuieli casa | B19: Cablu si internet | C19: 8.5 | D19: 6.5 | E19: 6.5 | O19: 21.5 | Q19: Imprumuturi si economii | R19: 1322
A20: Cheltuieli casa | B20: Curent | C20: 0 | D20: 50 | E20: 100 | O20: 150 | Q20: Cheltuieli exceptionale | R20: 678
A21: Cheltuieli casa | B21: Gaz | C21: 150 | D21: 410 | E21: 180 | O21: 740
A22: Cheltuieli casa | B22: Impozit casa | C22: 0 | D22: 0 | E22: 0 | O22: 0
A23: Cheltuieli casa | B23: Intretinere | C23: 0 | D23: 0 | E23: 0 | O23: 0
A24: Cheltuieli casa | B24: Reparatii | C24: 0 | D24: 0 | E24: 0 | O24: 0
A25: Cheltuieli casa | B25: Telefon | C25: 0 | D25: 250 | E25: 250 | O25: 500
A26: Cheltuieli copil | B26: Alte cheltuieli | C26: 0 | D26: 0 | E26: 0 | O26: 0
A27: Cheltuieli copil | B27: Imbracaminte | C27: 0 | D27: 0 | E27: 0 | O27: 0
A28: Cheltuieli copil | B28: Jucarii | C28: 65 | D28: 65 | E28: 65 | O28: 195
A29: Cheltuieli copil | B29: Medical | C29: 85 | D29: 100 | E29: 125 | O29: 310
A30: Cheltuieli exceptionale | B30: Alte cheltuieli exceptionale | C30: 190 | D30: 348 | E30: 140 | O30: 678
A31: Cheltuieli exceptionale | B31: Cadou | C31: 0 | D31: 0 | E31: 0 | O31: 0
A32: Cheltuieli vacanta | B32: Cazare | C32: 0 | D32: 0 | E32: 0 | O32: 0
A33: Cheltuieli vacanta | B33: Cheltuieli diverse | C33: 0 | D33: 0 | E33: 0 | O33: 0
A34: Cheltuieli vacanta | B34: Transport | C34: 0 | D34: 0 | E34: 0 | O34: 0
A35: Divertisment | B35: Alte cheltuieli | C35: 0 | D35: 0 | E35: 0 | O35: 0
A36: Divertisment | B36: Cinema | C36: 0 | D36: 0 | E36: 0 | O36: 0
A37: Divertisment | B37: Iesiri in oras | C37: 405.9 | D37: 32.9 | E37: 26.1 | O37: 464.9
A38: Divertisment | B38: Teatru | C38: 0 | D38: 0 | E38: 0 | O38: 0
A39: Imprumuturi si economii | B39: Economisire | C39: 400 | D39: 300 | E39: 600 | O39: 1300
A40: Imprumuturi si economii | B40: Imprumuturi date | C40: 0 | D40: 0 | E40: 0 | O40: 0
A41: Imprumuturi si economii | B41: Rate imprumuturi | C41: 22 | D41: 0 | E41: 0 | O41: 22
A42: Ingrijire personala | B42: Alte cheltuieli | C42: 120 | D42: 0 | E42: 45 | O42: 165
A43: Ingrijire personala | B43: Cosmetica | C43: 168 | D43: 50 | E43: 25 | O43: 243
A44: Ingrijire personala | B44: Imbracaminte | C44: 0 | D44: 203 | E44: 60 | O44: 263
A45: Ingrijire personala | B45: Medical | C45: 0 | D45: 0 | E45: 0 | O45: 0
A46: Ingrijire personala | B46: Sala | C46: 0 | D46: 0 | E46: 0 | O46: 0
A47: Mancare si alte necesitati | B47: Alte cumparaturi | C47: 0 | D47: 0 | E47: 0 | O47: 0
A48: Mancare si alte necesitati | B48: Cumparaturi | C48: 850 | D48: 1000 | E48: 1250 | O48: 3100
A49: Transport | B49: Abonament RATB/Metrorex | C49: 0 | D49: 0 | E49: 0 | O49: 0
A50: Transport | B50: Alte cheltuieli | C50: 0 | D50: 0 | E50: 0 | O50: 0
A51: Transport | B51: Combustibil | C51: 300 | D51: 300 | E51: 110 | O51: 710
A52: Transport | B52: Impozit masina | C52: 0 | D52: 0 | E52: 0 | O52: 0
A53: Total | C53: =SUM(C10:C52) -> 3496.4 | D53: =SUM(D10:D52) -> 3511.4 | E53: 3347.6 | F53: 0 | G53: 0 | H53: 0 | I53: 0 | J53: 0 | K53: 0 | L53: 0 | M53: 0 | N53: 0 | O53: 10355.4
A54: YTD Realizat Cheltuieli | C54: =SUM($C53:C53) -> 3496.4 | D54: =SUM($C53:D53) -> 7007.8 | E54: =SUM($C53:E53) -> 10355.4 | F54: =SUM($C53:F53) -> 10355.4 | G54: =SUM($C53:G53) -> 10355.4 | H54: =SUM($C53:H53) -> 10355.4 | I54: =SUM($C53:I53) -> 10355.4 | J54: =SUM($C53:J53) -> 10355.4 | K54: =SUM($C53:K53) -> 10355.4 | L54: =SUM($C53:L53) -> 10355.4 | M54: =SUM($C53:M53) -> 10355.4 | N54: =SUM($C53:N53) -> 10355.4 | O54: 114058.2
A55: YTD Realizat Economii | C55: =SUM($C39:C39) -> 400 | D55: =SUM($C39:D39) -> 700 | E55: =SUM($C39:E39) -> 1300 | F55: =SUM($C39:F39) -> 1300 | G55: =SUM($C39:G39) -> 1300 | H55: =SUM($C39:H39) -> 1300 | I55: =SUM($C39:I39) -> 1300 | J55: =SUM($C39:J39) -> 1300 | K55: =SUM($C39:K39) -> 1300 | L55: =SUM($C39:L39) -> 1300 | M55: =SUM($C39:M39) -> 1300 | N55: =SUM($C39:N39) -> 1300

Sheet Colectare date 2014
C3: 1 | D3: 2 | E3: 3 | F3: 4 | G3: 5 | H3: 6 | I3: 7 | J3: 8 | K3: 9 | L3: 10 | M3: 11 | N3: 12
A4: Categorie venituri | B4: n | C4: Ianuarie | D4: Februarie | E4: Martie | F4: Aprilie | G4: Mai | H4: Iunie | I4: Iulie | J4: August | K4: Septembrie | L4: Octombrie | M4: Noiembrie | N4: Decembrie | O4: Total
A5: Salariu | C5: 3800 | D5: 3800 | O5: =SUM(C5:N5) -> 7600
A6: Alte venituri | O6: =SUM(C6:N6) -> 0
A7: Total | C7: =SUM(C5:C6) -> 3800 | D7: =SUM(D5:D6) -> 3800 | E7: 0 | F7: 0 | G7: 0 | H7: 0 | I7: 0 | J7: 0 | K7: 0 | L7: 0 | M7: 0 | N7: 0 | O7: =SUM(C7:N7) -> 7600
A8: YTD Realizat Venituri | C8: =SUM($C7:C7) -> 3800 | D8: =SUM($C7:D7) -> 7600 | E8: =SUM($C7:E7) -> 7600 | F8: =SUM($C7:F7) -> 7600 | G8: =SUM($C7:G7) -> 7600 | H8: =SUM($C7:H7) -> 7600 | I8: =SUM($C7:I7) -> 7600 | J8: =SUM($C7:J7) -> 7600 | K8: =SUM($C7:K7) -> 7600 | L8: =SUM($C7:L7) -> 7600 | M8: =SUM($C7:M7) -> 7600 | N8: =SUM($C7:N7) -> 7600
A11: CHELTUIELI REALIZATE | C11: 1 | D11: 2 | E11: 3 | F11: 4 | G11: 5 | H11: 6 | I11: 7 | J11: 8 | K11: 9 | L11: 10 | M11: 11 | N11: 12
A12: Categorie | B12: Descriere | C12: Ianuarie | D12: Februarie | E12: Martie | F12: Aprilie | G12: Mai | H12: Iunie | I12: Iulie | J12: August | K12: Septembrie | L12: Octombrie | M12: Noiembrie | N12: Decembrie | O12: Total | Q12: SUMAR CHELTUIELI
A13: Asigurari | B13: Alte asigurari | C13: 0 | D13: 0 | O13: =SUM(C13:N13) -> 0 | Q13: Categorie | R13: Total an
A14: Asigurari | B14: Casa | C14: 0 | D14: 0 | O14: =SUM(C14:N14) -> 0 | Q14: Cheltuieli casa | R14: 10440.25
A15: Asigurari | B15: Masina | C15: 0 | D15: 150 | O15: 150 | Q15: Cheltuieli bancare | R15: 582.52
A16: Asigurari | B16: Pensie privata | C16: 0 | D16: 0 | O16: 0 | Q16: Transport | R16: 9017.42
A17: Asigurari | B17: Sanatate | C17: 0 | D17: 0 | O17: 0 | Q17: Asigurari | R17: 8811.12
A18: Asigurari | B18: Viata | C18: 138 | D18: 0 | O18: 138 | Q18: Mancare si alte necesitati | R18: 29215.93
A19: Cheltuieli bancare | B19: Comisioane retrageri/OP | C19: 21 | D19: 20 | O19: 41 | Q19: Ingrijire personala | R19: 5742.48
A20: Cheltuieli bancare | B20: Taxe lunare | C20: 5 | D20: 5 | O20: 10 | Q20: Cheltuieli copil | R20: 13554.06
A21: Cheltuieli casa | B21: Alte cheltuieli | C21: 0 | D21: 0 | O21: 0 | Q21: Divertisment | R21: 3628.28
A22: Cheltuieli casa | B22: Cablu si internet | C22: 65 | D22: 65 | O22: 130 | Q22: Imprumuturi si economii | R22: 58974
A23: Cheltuieli casa | B23: Curent | C23: 100 | D23: 100 | O23: 200 | Q23: Cheltuieli exceptionale | R23: 86516.56
A24: Cheltuieli casa | B24: Gaz | C24: 220 | D24: 220 | O24: 440 | Q24: Cheltuieli vacanta | R24: 13299.29
A25: Cheltuieli casa | B25: Impozit casa | C25: 100 | D25: 0 | O25: 100
A26: Cheltuieli casa | B26: Intretinere | C26: 200 | D26: 200 | O26: 400
A27: Cheltuieli casa | B27: Reparatii | C27: 0 | D27: 65 | O27: 65
A28: Cheltuieli casa | B28: Telefon | C28: 250 | D28: 65 | O28: 315
A29: Cheltuieli copil | B29: Alte cheltuieli | C29: 0 | D29: 0 | O29: 0
A30: Cheltuieli copil | B30: Imbracaminte | C30: 0 | D30: 0 | O30: 0
A31: Cheltuieli copil | B31: Jucarii | C31: 0 | D31: 0 | O31: 0
A32: Cheltuieli copil | B32: Medical | C32: 0 | D32: 0 | O32: 0
A33: Cheltuieli copil | B33: Bona | C33: 0 | D33: 0 | O33: 0
A34: Cheltuieli exceptionale | B34: Alte cheltuieli exceptionale | C34: 0 | D34: 0 | O34: 0
A35: Cheltuieli exceptionale | B35: Cadou | C35: 57 | D35: 60 | O35: 117
A36: Cheltuieli vacanta | B36: Cazare | C36: 0 | D36: 300 | O36: 300
A37: Cheltuieli vacanta | B37: Cheltuieli diverse | C37: 0 | D37: 200 | O37: 200
A38: Cheltuieli vacanta | B38: Transport | C38: 0 | D38: 300 | O38: 300
A39: Divertisment | B39: Alte cheltuieli | C39: 0 | D39: 0 | O39: 0
A40: Divertisment | B40: Cinema | C40: 0 | D40: 0 | O40: 0
A41: Divertisment | B41: Iesiri in oras | C41: 250 | D41: 0 | O41: 250
A42: Divertisment | B42: Teatru | C42: 0 | D42: 0 | O42: 0
A43: Imprumuturi si economii | B43: Economisire | C43: 0 | D43: 0 | O43: 0
A44: Imprumuturi si economii | B44: Imprumuturi date | C44: 0 | D44: 56 | O44: 56
A45: Imprumuturi si economii | B45: Rate imprumuturi | C45: 0 | D45: 0 | O45: 0
A46: Ingrijire personala | B46: Alte cheltuieli | C46: 0 | D46: 0 | O46: 0
A47: Ingrijire personala | B47: Cosmetica | C47: 0 | D47: 0 | O47: 0
A48: Ingrijire personala | B48: Imbracaminte | C48: 0 | D48: 0 | O48: 0
A49: Ingrijire personala | B49: Medical | C49: 0 | D49: 0 | O49: 0
A50: Ingrijire personala | B50: Sala | C50: 139.9 | D50: 0 | O50: 139.9
A51: Mancare si alte necesitati | B51: Alte cumparaturi | C51: 0 | D51: 0 | O51: 0
A52: Mancare si alte necesitati | B52: Cumparaturi | C52: 1500 | D52: 2000 | O52: 3500
A53: Transport | B53: Abonament RATB/Metrorex | C53: 0 | D53: 0 | O53: 0
A54: Transport | B54: Alte cheltuieli | C54: 0 | D54: 0 | O54: 0
A55: Transport | B55: Combustibil | C55: 250 | D55: 200 | O55: 450
A56: Transport | B56: Impozit masina | C56: 50 | D56: 0 | O56: 50
A57: Total | C57: =SUM(C13:C56) -> 3345.9 | D57: =SUM(D13:D56) -> 4006 | E57: 0 | F57: 0 | G57: 0 | H57: 0 | I57: 0 | J57: 0 | K57: 0 | L57: 0 | M57: 0 | N57: 0 | O57: 7351.9
A58: YTD Realizat Cheltuieli | C58: =SUM($C57:C57) -> 3345.9 | D58: =SUM($C57:D57) -> 7351.9 | E58: =SUM($C57:E57) -> 7351.9 | F58: =SUM($C57:F57) -> 7351.9 | G58: =SUM($C57:G57) -> 7351.9 | H58: =SUM($C57:H57) -> 7351.9 | I58: =SUM($C57:I57) -> 7351.9 | J58: =SUM($C57:J57) -> 7351.9 | K58: =SUM($C57:K57) -> 7351.9 | L58: =SUM($C57:L57) -> 7351.9 | M58: =SUM($C57:M57) -> 7351.9 | N58: =SUM($C57:N57) -> 7351.9 | O58: 84216.8
A59: YTD Realizat Economii | C59: =SUM($C43:C43) -> 0 | D59: =SUM($C43:D43) -> 0 | E59: =SUM($C43:E43) -> 0 | F59: =SUM($C43:F43) -> 0 | G59: =SUM($C43:G43) -> 0 | H59: =SUM($C43:H43) -> 0 | I59: =SUM($C43:I43) -> 0 | J59: =SUM($C43:J43) -> 0 | K59: =SUM($C43:K43) -> 0 | L59: =SUM($C43:L43) -> 0 | M59: =SUM($C43:M43) -> 0 | N59: =SUM($C43:N43) -> 0
